{"text_format":"1","workbook":"xlsx","n_sheets":41,"sheets":["Print","Title Page","i","1","2","91440F1D0FFA4902BC14BDE93F7637F","3","4","5","6","7","8","9","10","11","12","13","14","15","16","17","18","19","20","21","22","23","BS Equity Parentheticals","Development","Proof-THG","Proof-BS","BS Retrieve","Essbase - P&C BS","Proof-P&C","Proof-Inv.","Proof-History","Ver Doc 2.2","Ver Doc 2.1","Ver Doc 2.0","Ver Doc 1.0","Ver Doc"],"not_rendered":{"charts":0,"images":1,"macros":1,"external_links":12,"defined_names":3280,"comments":0,"pivot_tables":0},"unopened":[],"bounds":{"document_bytes":16777216,"sheet_cells":100000,"rows_first":2000,"rows_last":500,"rows_between":2000,"halvings":0,"cell_chars":16384,"cell_head_chars":4096},"cells_cut":0,"cells_raw":0,"read":"whole","date_system":"1900"}

{"sheet":"Print","index":0,"n_rows":0,"n_cols":0,"rows_kept":0,"cut":false,"hidden":false,"merged":[]}

{"sheet":"Title Page","index":1,"n_rows":1,"n_cols":8,"rows_kept":1,"cut":false,"hidden":false,"merged":[]}
[null,null,"PERIOD","Product Qualifier","Summary Centers","VERSION","Consolidated BU Rollup","All Products"]

{"sheet":"i","index":2,"n_rows":30,"n_cols":3,"rows_kept":30,"cut":false,"hidden":false,"merged":[]}
[null,"THE HANOVER INSURANCE GROUP"]
[null,"FINANCIAL SUPPLEMENT"]
[]
[]
[]
[]
[null,"TABLE OF CONTENTS"]
[]
[]
[null,"Business Descriptions..........................................................................................","1"]
[null,"Financial Highlights..........................................................................................","2"]
[null,"Consolidated Financial Statements"]
[null,"Income Statements..........................................................................................","3"]
[null,"Balance Sheets..................................................................................................","4"]
[null,"GAAP Underwriting Results"]
[null,"Consolidated..............................................................................................","5-7"]
[null,"Commercial Lines..............................................................................................","8-10"]
[null,"Personal Lines..............................................................................................","11-13"]
[null,"Chaucer..............................................................................................................","14-16"]
[null,"Investments"]
[null,"Net Investment Income and Yields..................................................................................",17]
[null,"Investment Portfolio..........................................................................................",18]
[null,"Credit Quality and Duration of Fixed Maturities..................................................................................................",19]
[null,"Top 10 Corporate and Municipal Fixed Maturity Holdings..................................................................................................",20]
[null,"Reconciliation of Operating Income to Net Income..........................................................................................",21]
[null,"Other Information","  "]
[null,"Non-GAAP Financial Measures..............................................................................................",22]
[null,"Corporate Information..............................................................................................",23]
[null,"Market and Dividend Information..............................................................................................",23]
[null,"Financial Strength and Debt Ratings..............................................................................................",23]

{"sheet":"1","index":3,"n_rows":44,"n_cols":1,"rows_kept":44,"cut":false,"hidden":false,"merged":[[43,0,43,37],[13,0,13,37],[10,0,10,37],[11,0,11,37],[15,0,15,37],[17,0,17,37],[21,0,21,37],[33,0,33,37],[31,0,31,37],[37,0,37,37],[35,0,35,37],[39,0,39,37],[29,0,29,37],[0,0,0,37],[2,0,2,37],[25,0,25,37],[23,0,23,37],[4,0,5,37]]}
["THE HANOVER INSURANCE GROUP"]
[]
["BASIS OF PRESENTATION"]
[]
["Prior periods were restated for the effect of the Company's adoption of ASC Update No 2015-03, (Subtopic 835-30) Interest - Imputation of Interest: Simplify the Presentation of Debt Issuance Costs, on the Balance Sheet and Income Statement. "]
[]
[]
["BUSINESS DESCRIPTIONS"]
[]
["COMMERCIAL LINES"]
[]
["Commercial multiple peril coverage insures businesses against third party liability from accidents occurring on their premises or arising out of their operations, such as injuries sustained from products sold. It also insures business property for damage, such as that caused by fire, wind, hail, water damage (except for flooding), theft and vandalism."]
[]
["Commercial automobile coverage insures businesses against losses incurred from personal bodily injury, bodily injury to third parties, property damage to an insured’s vehicle, and property damage to other vehicles and property."]
[]
["Workers’ compensation coverage insures employers against employee medical and indemnity claims resulting from injuries related to work. Workers’ compensation policies are often written in conjunction with other commercial policies."]
[]
["Other Commercial Lines is comprised of inland marine, which insures businesses against physical losses to property, such as contractor’s equipment, builders’ risk and goods in transit. We also offer underwriting and managing of program business, including to under-served markets where there are specialty coverage or risk management needs. Other Commercial Lines also includes bonds, which provides businesses with contract surety coverage in the event of performance or payment claims, and commercial surety coverage related to fiduciary or regulatory obligations. Also included in Other Commercial Lines coverages are umbrella, general liability, fire, specialty property, and professional and management liability."]
[]
["PERSONAL LINES"]
[]
["Personal automobile coverage insures individuals against losses incurred from personal bodily injury, bodily injury to third parties, property damage to an insured’s vehicle, and property damage to other vehicles and other property."]
[]
["Homeowners coverage insures individuals for losses to their residences and personal property, such as those caused by fire, wind, hail, water damage (except for flooding), theft and vandalism, and against third party liability claims."]
[]
["Other Personal Lines are comprised of personal inland marine (jewelry, art, etc.), umbrella, fire, personal watercraft, earthquake and other miscellaneous coverages."]
[]
["CHAUCER"]
[]
["The Chaucer reporting segment represents THG's international business written through Lloyd's and includes international marine and aviation, property, energy, casualty and other and U.K. motor coverages."]
[]
["Marine and Aviation includes coverages that insure marine hull, excess of loss, liability, cargo and specie, in addition to political risk and war business coverages. It also includes aviation coverages that insure airline hull and liability, general aviation, refuellers, aviation products and satellite."]
[]
["Property coverage, including direct, facultative and treaty property accounts, insures property, including commercial, auto, and industrial businesses, against physical loss or damage and business interruption. The property treaty account comprises mainly catastrophe and per risk excess contract acceptances, with a small amount of proportional treaty and reinsurance assumed business."]
[]
["Energy coverage, encompassing exploration and production, construction, liabilities downstream and renewables, insures energy businesses against physical damage, business interruption, control of well, seepage and pollution and liabilities. Energy also includes Nuclear, which predominantly provides coverage relating to power generation at nuclear power stations."]
[]
["Casualty and Other Lines includes coverages that insure financial institutions crime and professional indemnity, medical malpractice, workers' compensation and professional, managerial and general liability, as well as syndicate participations. "]
[]
["UK Motor coverage insures the UK private car and fleet markets. In addition, it writes specialist classes including commercial vehicle, taxi, motorcycle, motor trade and classic/specialist vehicles, as well as other UK small commercial products. The Company exited this business effective June 30, 2015."]
[]
["OTHER "]
[]
["Included in Other are Opus, which provides investment advisory services to affiliates and also manages assets for unaffiliated institutions such as insurance companies, retirement plans and foundations; earnings on holding company assets; and a discontinued voluntary pools business."]

{"sheet":"2","index":4,"n_rows":60,"n_cols":22,"rows_kept":60,"cut":false,"hidden":false,"merged":[[0,0,0,21],[1,0,1,21]]}
["THE HANOVER INSURANCE GROUP"]
["FINANCIAL HIGHLIGHTS"]
[]
[]
[null,null,null,"Q3",null,null,"Q4",null,null,"Q1",null,null,"Q2",null,null,"Q3",null,null,"Sep-YTD",null,null,"Sep-YTD"]
["(In millions, except earnings per share)",null,null,"2015",null,null,"2015",null,null,"2016",null,null,"2016",null,null,"2016",null,null,"2015",null,null,"2016"]
["PREMIUMS"]
["Gross premiums written ",null,"$",1379700000,null,"$",1174300000,null,"$",1375000000,null,"$",1402000000,null,"$",1402200000,null,"$",4270200000,null,"$",4179200000]
[]
["Net premiums written (1)",null,null,1199600000,null,null,1046100000,null,null,1144300000,null,null,1221600000,null,null,1250900000,null,null,3708100000,null,null,3616800000]
[]
["Net premiums earned",null,null,1150100000,null,null,1137900000,null,null,1151300000,null,null,1145500000,null,null,1160900000,null,null,3566900000,null,null,3457700000]
[]
["EARNINGS"]
["Operating income before interest and taxes",null,"$",122600000,null,"$",123600000,null,"$",120400000,null,"$",94700000,null,"$",129800000,null,"$",342500000,null,"$",344900000]
["Operating income after taxes",null,null,72200000,null,null,80300000,null,null,71500000,null,null,54000000,null,null,78600000,null,null,199700000,null,null,204100000]
[]
["Income from continuing operations",null,null,77200000,null,null,77800000,null,null,78100000,null,null,1900000,null,null,88300000,null,null,253000000,null,null,168300000]
[]
["Net income",null,null,78300000,null,null,77600000,null,null,78200000,2000000,null,2000000,null,null,88400000,null,null,253900000,null,null,168600000]
[]
["PER SHARE DATA (DILUTED) "]
[]
["Operating income after taxes",null,"$",1610000,null,"$",1820000,null,"$",1640000,null,"$",1240000,null,"$",1830000,null,"$",4430000,null,"$",4710000]
[]
["Income from continuing operations",null,null,1.72,null,null,1.76,null,null,1.79,null,null,0.04,null,null,2.06,null,null,5.62,null,null,3.89]
[]
["Net income ",null,null,1.74,null,null,1.76,null,null,1.8,null,null,0.05,null,null,2.06,null,null,5.64,null,null,3.89]
[]
["Weighted average shares outstanding",null,null,44900000,null,null,44100000,null,null,43500000,null,null,43400000,null,null,43000000,null,null,45000000,null,null,43300000]
[]
[]
[]
["BALANCE SHEET"]
[null,null,null,"September 30",null,null,"December 31",null,null,"March 31",null,null,"June 30",null,null,"September 30"]
["(In millions, except per share data)",null,null,"2015",null,null,"2015",null,null,"2016",null,null,"2016",null,null,"2016"]
[]
["Total assets",null,"$",14031200000,null,"$",13781200000,null,"$",14027700000,null,"$",14163600000,null,"$",14363700000]
["Total loss and loss adjustment expense reserves",null,null,6606300000,null,null,6574400000,null,null,6722300000,null,null,6778000000,null,null,6802300000]
["Total shareholders' equity",null,null,2877500000,null,null,2844400000,null,null,2957000000,null,null,3009700000,null,null,3045700000]
["Total shareholders' equity, excluding net unrealized appreciation"]
["depreciation on investments, net of tax",null,null,2679600000,null,null,2694500000,null,null,2710600000,null,null,2686200000,null,null,2724300000]
[]
["U.S. Property and Casualty Companies "]
["Statutory surplus",null,"$",2129.4,null,"$",2192.8000000000002,null,"$",2276.6999999999998,null,"$",2152.6,null,"$",2218.5]
["Premium to surplus ratio",null,null,"1.74:1",null,null,"1.70:1",null,null,"1.65:1",null,null,"1.76:1",null,null,"1.73:1"]
[]
["Book value per share",null,"$",66550000,null,"$",66210000,null,"$",69300000,null,"$",70580000,null,"$",72080000]
["Book value per share, excluding net unrealized appreciation"]
["depreciation on investments, net of tax",null,"$",61.97,null,"$",62.72,null,"$",63.52,null,"$",62.99,null,"$",64.48]
["Tangible book value per share (total book value excluding goodwill"]
["and intangibles)",null,"$",60050000,null,"$",59580000,null,"$",62700000,null,"$",64110000,null,"$",65740000]
[]
["Shares outstanding",null,null,43200000,null,null,43000000,null,null,42700000,null,null,42700000,null,null,42300000]
[]
["Total debt/equity",null,null,0.27900000000000003,null,null,0.28199999999999997,null,null,0.27200000000000002,null,null,0.26500000000000001,null,null,0.26200000000000001]
["Total debt/total capital",null,null,0.218,null,null,0.22,null,null,0.214,null,null,0.21,null,null,0.20799999999999999]
[]
["(1) Net premiums written for Chaucer do not reflect the June 30, 2015 transfer of $137.4 million of unearned premium reserves previously written by the U.K. motor business. "]
["This transfer of unearned premium reserves is part of the disposal of the U.K. motor business and has no impact on net premiums earned."]

{"sheet":"91440F1D0FFA4902BC14BDE93F7637F","index":5,"n_rows":0,"n_cols":0,"rows_kept":0,"cut":false,"hidden":true,"merged":[]}

{"sheet":"3","index":6,"n_rows":34,"n_cols":17,"rows_kept":34,"cut":false,"hidden":false,"merged":[[0,0,0,16],[1,0,1,16]]}
["THE HANOVER INSURANCE GROUP"]
["CONSOLIDATED INCOME STATEMENTS"]
[]
[]
[]
[null,null,null,"Three Months ended September 30",null,null,null,null,null,null,null,"Nine Months ended September 30"]
["(In millions)",null,null,"2016",null,null,"2015",null,"% Change",null,null,"2016",null,null,"2015",null,"% Change"]
[]
["REVENUES"]
["Premiums earned",null,"$",1160900000,null,"$",1150100000,null,0.9,null,"$",3457700000,null,"$",3566900000,null,-3.1]
["Net investment income",null,null,67800000,null,null,68300000,null,-0.7,null,null,205200000,null,null,209100000,null,-1.9]
["Net realized investment gains ",null,null,4200000,null,null,8000000,null,-47.5,null,null,5000000,null,null,30000000,null,-83.3]
["Fees and other income",null,null,8300000,null,null,7100000,null,16.899999999999999,null,null,22900000,null,null,23300000,null,-1.7]
["Total revenues",null,null,1241200000,null,null,1233500000,null,0.6,null,null,3690800000,null,null,3829300000,null,-3.6]
[" "]
["LOSSES AND EXPENSES"]
["Losses and loss adjustment expenses",null,null,692000000,null,null,690700000,null,0.2,null,null,2121300000,null,null,2208700000,null,-4]
["Amortization of deferred acquisition costs",null,null,257900000,null,null,259000000,null,-0.4,null,null,771400000,null,null,781600000,null,-1.3]
["Interest expense",null,null,12500000,null,null,14800000,null,-15.5,null,null,42800000,null,null,45900000,null,-6.8]
["Gain on disposal of U.K. motor business",null,null,-100000,null,null,0,null,"N/M",null,null,-1300000,null,null,-37700000,null,"N/M"]
["Net loss from repayment of debt",null,null,0,null,null,5600000,null,"N/M",null,null,86100000,null,null,24100000,null,"N/M"]
["Other operating expenses",null,null,154800000,null,null,153000000,null,1.2,null,null,445400000,null,null,466700000,null,-4.5999999999999996]
["Total losses and expenses",null,null,1117100000,null,null,1123100000,null,-0.5,null,null,3465700000,null,null,3489300000,null,-0.7]
[" "]
[]
["Income from continuing operations before income taxes",null,null,124100000,null,null,110400000,null,12.4,null,null,225100000,null,null,340000000,null,-33.799999999999997]
["Income tax expense",null,null,35800000,null,null,33200000,null,7.8,null,null,56800000,null,null,87000000,null,-34.700000000000003]
[" "]
["Income from continuing operations",null,null,88300000,null,null,77200000,null,14.4,null,null,168300000,null,null,253000000,null,-33.5]
[null,null,null,null,null,null,null,null,"-    "]
["Discontinued operations",null,null,100000,null,null,1100000,null,"N/M",null,null,300000,null,null,900000,null,"N/M"]
[]
["Net income",null,"$",88400000,null,"$",78300000,null,12.9,null,"$",168600000,null,"$",253900000,null,-33.6]
[" "]

{"sheet":"4","index":7,"n_rows":46,"n_cols":14,"rows_kept":46,"cut":false,"hidden":false,"merged":[[0,0,0,8],[1,0,1,8]]}
["THE HANOVER INSURANCE GROUP"]
["CONSOLIDATED BALANCE SHEETS"]
[]
[]
[]
[null,null,null,"September 30",null,null,"December 31"]
["(In millions, except per share data)",null,null,"2016",null,null,"2015",null,"% Change"]
["ASSETS"]
["Investments:"]
["Fixed maturities, at fair value (amortized cost of $7,100.4 and $6,934.0)",null,"$",7400200000,null,"$",6983400000,null,6]
["Equity securities, at fair value (cost of $533.6 and $528.5)",null,null,612500000,null,null,576600000,null,6.2]
["Other investments",null,null,483400000,null,null,393400000,null,22.9]
["Total investments",null,null,8496100000,null,null,7953400000,null,6.8]
["Cash and cash equivalents",null,null,315900000,null,null,338800000,null,-6.8]
["Accrued investment income",null,null,62500000,null,null,62900000,null,-0.6,null,null,null,null," "]
["Premiums and accounts receivable, net",null,null,1534900000,null,null,1391700000,null,10.3]
["Reinsurance recoverable on paid and unpaid losses and unearned premiums",null,null,2655100000,null,null,2635000000,null,0.8]
["Deferred acquisition costs",null,null,537400000,null,null,508800000,null,5.6]
["Deferred income taxes",null,null,16200000,null,null,137900000,null,-88.3]
["Goodwill",null,null,185100000,null,null,186000000,null,-0.5]
["Other assets",null,null,476500000,null,null,483700000,null,-1.5]
["Assets of discontinued operations",null,null,84000000,null,null,83000000,null,1.2]
["Total assets",null,"$",14363700000,null,"$",13781200000,null,4.2]
[" ",null,null," ",null,null," "]
["LIABILITIES AND SHAREHOLDERS' EQUITY",null,null," ",null,null," ",null," "]
[]
["LIABILITIES"]
["Loss and loss adjustment expense reserves",null,"$",6802300000,null,"$",6574400000,null,3.5]
["Unearned premiums",null,null,2684800000,null,null,2540800000,null,5.7]
["Expenses and taxes payable",null,null,662300000,null,null,724900000,null,-8.6]
["Reinsurance premiums payable",null,null,283700000,null,null,205200000,null,38.299999999999997]
["Debt",null,null,797900000,null,null,803100000,null,-0.6]
["Liabilities of discontinued operations",null,null,87000000,null,null,88400000,null,-1.6]
["Total liabilities",null,null,11318000000,null,null,10936800000,null,3.5]
[]
["SHAREHOLDERS' EQUITY"]
["Preferred stock, par value $0.01 per share;"]
["20.0 million shares authorized; none issued",null,null,0,null,null,0,null,"-    "]
["Common stock, par value $0.01 per share; 300.0 million shares"]
["authorized; 60.5 million shares issued",null,null,600000,null,null,600000,null,"-    "]
["Additional paid-in capital",null,null,1838900000,null,null,1833500000,null,0.3]
["Accumulated other comprehensive income",null,null,227000000,null,null,53900000,null,321.2]
["Retained earnings",null,null,1910400000,null,null,1803500000,null,5.9]
["Treasury stock at cost (18.2 and 17.5 million shares)",null,null,-931200000,null,null,-847100000,null,9.9]
["Total shareholders' equity",null,null,3045700000,null,null,2844400000,null,7.1]
["Total liabilities and shareholders' equity",null,"$",14363700000,null,"$",13781200000,null,4.2]

{"sheet":"5","index":8,"n_rows":77,"n_cols":32,"rows_kept":77,"cut":false,"hidden":false,"merged":[[0,0,0,31],[1,0,1,31],[3,0,3,31],[5,0,5,31],[9,3,9,16],[9,18,9,31]]}
["THE HANOVER INSURANCE GROUP"]
["GAAP UNDERWRITING AND OPERATING INCOME INFORMATION AND RATIOS"]
[]
["CONSOLIDATED"]
[]
["Three Months ended September 30"]
[null,null,null,null,null,null,null,null,null,null,null,null,null,null,null,null," "]
[]
[]
[null,null,null,"2016",null,null,null,null,null,null,null,null,null,null,null,null,null,null,"2015"]
[]
[null," "]
[null,null,null,null,"Commercial ",null,null,"Personal",null,null,null,null,null,null,null,null,null,null,null,"Commercial ",null,null,"Personal"]
["(In millions, except percentage data)",null,null,null,"Lines",null,null,"Lines",null,null,"Chaucer",null,null,"Other",null,null,"Total",null,null,"Lines",null,null,"Lines",null,null,"Chaucer",null,null,"Other",null,null,"Total"]
[]
[]
[null,"Gross premiums written",null,"$",730000000,null,"$",428700000,null,"$",243500000,null,"$",0,null,"$",1402200000,null,"$",701200000,null,"$",403000000,null,"$",275500000,null,"$",0,null,"$",1379700000]
[]
[null,"Net premiums written",null,"$",647300000,null,"$",407500000,null,"$",196100000,null,"$",0,null,"$",1250900000,null,"$",617600000,null,"$",383300000,null,"$",198700000,null,"$",0,null,"$",1199600000]
[]
[null,"Net premiums earned",null,"$",587200000,null,"$",371500000,null,"$",202200000,null,"$",0,null,"$",1160900000,null,"$",560400000,null,"$",358600000,null,"$",231100000,null,"$",0,null,"$",1150100000]
[]
[null,"Losses and LAE:"]
[]
[null,"Current accident year, excluding catastrophe losses",null,null,336000000,null,null,226700000,null,null,110400000,null,null,100000,null,null,673200000,null,null,324600000,null,null,219400000,null,null,123300000,null,null,0,null,null,667300000]
[]
[null,"Prior accident year unfavorable (favorable) reserve development, excluding catastrophe losses",null,null,19300000,null,null,-1100000,null,null,-26600000,null,null,300000,null,null,-8100000,null,null,11800000,null,null,-2500000,null,null,-32100000,null,null,400000,null,null,-22400000]
[]
[null,"Current accident year catastrophe losses",null,null,16400000,null,null,10800000,null,null,400000,null,null,0,null,null,27600000,null,null,10100000,null,null,18900000,null,null,29200000,null,null,0,null,null,58200000]
[]
[null,"Prior accident year unfavorable (favorable) catastrophe loss development",null,null,1300000,null,null,1500000,null,null,-3500000,null,null,0,null,null,-700000,null,null,3700000,null,null,1200000,null,null,-17300000,null,null,0,null,null,-12400000]
[]
[null,"Total losses and LAE",null,null,373000000,null,null,237900000,null,null,80700000,null,null,400000,null,null,692000000,null,null,350200000,null,null,237000000,null,null,103100000,null,null,400000,null,null,690700000]
[]
[null,"Amortization of deferred acquisition costs and other underwriting expenses",null,null,210600000,null,null,110300000,null,null,83700000,null,null,400000,null,null,405000000,null,null,201900000,null,null,103700000,null,null,98400000,null,null,500000,null,null,404500000]
[null,null,null,null,null,null,null,null,null,null,null,null,null,0]
[null,"GAAP underwriting profit (loss) ",null,null,3600000,null,null,23300000,null,null,37800000,null,null,-800000,null,null,63900000,null,null,8300000,null,null,17900000,null,null,29600000,null,null,-900000,null,null,54900000]
[]
[null,"Net investment income",null,null,39000000,null,null,17100000,null,null,10300000,null,null,1400000,null,null,67800000,null,null,38700000,null,null,18000000,null,null,10500000,null,null,1100000,null,null,68300000]
[]
[null,"Other income",null,null,2200000,null,null,2900000,null,null,2500000,null,null,700000,null,null,8300000,null,null,2100000,null,null,3100000,null,null,1100000,null,null,800000,null,null,7100000]
[]
[null,"Other operating expenses",null,null,-2300000,null,null,-1600000,null,null,-2200000,null,null,-4100000,null,null,-10200000,null,null,-2000000,null,null,-1800000,null,null,0,null,null,-3900000,null,null,-7700000]
[]
[null,"Operating income (loss) before income taxes",null,"$",42500000,null,"$",41700000,null,"$",48400000,null,"$",-2800000,null,"$",129800000,null,"$",47100000,null,"$",37200000,null,"$",41200000,null,"$",-2900000,null,"$",122600000]
[]
[]
[]
[]
[null,"Loss and LAE ratio:"]
[]
[null,"Current accident year, excluding catastrophe losses",null,null,0.57199999999999995,null,null,0.61099999999999999,null,null,0.54600000000000004,null,null,"N/M",null,null,0.57999999999999996,null,null,0.57899999999999996,null,null,0.61199999999999999,null,null,0.53400000000000003,null,null,"N/M",null,null,0.57999999999999996]
[]
[null,"Prior accident year unfavorable (favorable) reserve development, excluding catastrophe losses",null,null,3.3000000000000002E-2,null,null,-3.0000000000000001E-3,null,null,-0.13200000000000001,null,null,"N/M",null,null,-7.0000000000000001E-3,null,null,2.1000000000000001E-2,null,null,-7.0000000000000001E-3,null,null,-0.13900000000000001,null,null,"N/M",null,null,-1.9E-2]
[]
[null,"Current accident year catastrophe losses",null,null,2.8000000000000001E-2,null,null,2.9000000000000001E-2,null,null,2E-3,null,null,"N/M",null,null,2.4E-2,null,null,1.7999999999999999E-2,null,null,5.2999999999999999E-2,null,null,0.126,null,null,"N/M",null,null,5.0999999999999997E-2]
[]
[null,"Prior accident year unfavorable (favorable) catastrophe loss development",null,null,2E-3,null,null,4.0000000000000001E-3,null,null,-1.7000000000000001E-2,null,null,"N/M",null,null,-1E-3,null,null,7.0000000000000001E-3,null,null,3.0000000000000001E-3,null,null,-7.4999999999999997E-2,null,null,"N/M",null,null,-1.0999999999999999E-2]
[null,"Total loss and LAE ratio",null,null,0.63500000000000001,null,null,0.64100000000000001,null,null,0.39900000000000002,null,null,"N/M",null,null,0.59599999999999997,null,null,0.625,null,null,0.66100000000000003,null,null,0.44600000000000001,null,null,"N/M",null,null,0.60099999999999998]
[]
[null,"Expense ratio",null,null,0.35699999999999998,null,null,0.28999999999999998,null,null,0.41399999999999998,null,null,"N/M",null,null,0.34599999999999997,null,null,0.35799999999999998,null,null,0.28100000000000003,null,null,0.42599999999999999,null,null,"N/M",null,null,0.34799999999999998]
[]
[null,"Combined ratio",null,null,0.99199999999999999,null,null,0.93100000000000005,null,null,0.81299999999999994,null,null,"N/M",null,null,0.94199999999999995,null,null,0.98299999999999998,null,null,0.94199999999999995,null,null,0.872,null,null,"N/M",null,null,0.94899999999999995]
[]
[]
[]
[]
[]
[]
[]
[]
[]
[]
[]
[]
[]
[" "]

{"sheet":"6","index":9,"n_rows":76,"n_cols":32,"rows_kept":76,"cut":false,"hidden":false,"merged":[[0,0,0,31],[1,0,1,31],[3,0,3,31],[5,0,5,31],[9,2,9,16],[9,18,9,31]]}
["THE HANOVER INSURANCE GROUP"]
["GAAP UNDERWRITING AND OPERATING INCOME INFORMATION AND RATIOS"]
[]
["CONSOLIDATED"]
[]
["Nine Months ended September 30"]
[]
[]
[]
[null,null,"2016",null,null,null,null,null,null,null,null,null,null,null,null,null,null,null,"2015"]
[]
[null," "]
[null,null,null,null,"Commercial ",null,null,"Personal",null,null,null,null,null,null,null,null,null,null,null,"Commercial ",null,null,"Personal"]
[null,"(In millions, except percentage data)",null,null,"Lines",null,null,"Lines",null,null,"Chaucer",null,null,"Other",null,null,"Total",null,null,"Lines",null,null,"Lines",null,null,"Chaucer",null,null,"Other",null,null,"Total"]
[]
[null,"Gross premiums written",null,"$",2073000000,null,"$",1202100000,null,"$",904100000,null,"$",0,null,"$",4179200000,null,"$",2000100000,null,"$",1153900000,null,"$",1116200000,null,"$",0,null,"$",4270200000]
[]
[null,"Net premiums written (1)",null,"$",1831500000,null,"$",1139800000,null,"$",645500000,null,"$",0,null,"$",3616800000,null,"$",1768600000,null,"$",1088000000,null,"$",851500000,null,"$",0,null,"$",3708100000]
[]
[null,"Net premiums earned",null,"$",1733300000,null,"$",1094800000,null,"$",629600000,null,"$",0,null,"$",3457700000,null,"$",1663600000,null,"$",1068200000,null,"$",835100000,null,"$",0,null,"$",3566900000]
[]
[null,"Losses and LAE:"]
[]
[null,"Current accident year, excluding catastrophe losses",null,null,969700000,null,null,663600000,null,null,381900000,null,null,100000,null,null,2015300000,null,null,960500000,null,null,668200000,null,null,501500000,null,null,100000,null,null,2130300000]
[]
[null,"Prior accident year unfavorable (favorable) reserve development, excluding catastrophe losses",null,null,61500000,null,null,-900000,null,null,-64600000,null,null,900000,null,null,-3100000,null,null,18700000,null,null,-6600000,null,null,-89300000,null,null,1000000,null,null,-76200000]
[]
[null,"Current accident year catastrophe losses",null,null,62200000,null,null,31000000,null,null,36600000,null,null,0,null,null,129800000,null,null,73300000,null,null,58200000,null,null,39400000,null,null,0,null,null,170900000]
[]
[null,"Prior accident year unfavorable (favorable) catastrophe loss development",null,null,300000,null,null,4300000,null,null,-25300000,null,null,0,null,null,-20700000,null,null,-2400000,null,null,8300000,null,null,-22200000,null,null,0,null,null,-16300000]
[]
[null,"Total losses and LAE",null,null,1093700000,null,null,698000000,null,null,328600000,null,null,1000000,null,null,2121300000,null,null,1050100000,null,null,728100000,null,null,429400000,null,null,1100000,null,null,2208700000]
[]
[null,"Amortization of deferred acquisition costs and other underwriting expenses",null,null,627200000,null,null,315600000,null,null,247200000,null,null,1100000,null,null,1191100000,null,null,602600000,null,null,305800000,null,null,313000000,null,null,1200000,null,null,1222600000]
[null,null,null,null,null,null,null,null,null,null,null,null,null,0]
[null,"GAAP underwriting profit (loss) ",null,null,12400000,null,null,81200000,null,null,53800000,null,null,-2100000,null,null,145300000,null,null,10900000,null,null,34300000,null,null,92700000,null,null,-2300000,null,null,135600000]
[]
[null,"Net investment income",null,null,117500000,null,null,51600000,null,null,32300000,null,null,3800000,null,null,205200000,null,null,116700000,null,null,54200000,null,null,34800000,null,null,3400000,null,null,209100000]
[]
[null,"Other income",null,null,6400000,null,null,8400000,null,null,6000000,null,null,2100000,null,null,22900000,null,null,6400000,null,null,9000000,null,null,5600000,null,null,2300000,null,null,23300000]
[]
[null,"Other operating expenses",null,null,-7100000,null,null,-5000000,null,null,-4500000,null,null,-11900000,null,null,-28500000,null,null,-7500000,null,null,-5900000,null,null,-700000,null,null,-11400000,null,null,-25500000]
[]
[null,"Operating income (loss) before income taxes",null,"$",129200000,null,"$",136200000,null,"$",87600000,null,"$",-8100000,null,"$",344900000,null,"$",126500000,null,"$",91600000,null,"$",132400000,null,"$",-8000000,null,"$",342500000]
[]
[]
[null,null,null,null,null,null,null,null,null,null,null,null,null,null,null,null,null,null,null,null,null,null,null,null,null,null,null,null,null,null,null," "]
[]
[null,"Loss and LAE ratio:"]
[]
[null,"Current accident year, excluding catastrophe losses",null,null,0.56000000000000005,null,null,0.60599999999999998,null,null,0.60699999999999998,null,null,"N/M",null,null,0.58299999999999996,null,null,0.57699999999999996,null,null,0.626,null,null,0.6,null,null,"N/M",null,null,0.59699999999999998]
[]
[null,"Prior accident year unfavorable (favorable) reserve development, excluding catastrophe losses",null,null,3.5000000000000003E-2,null,null,-1E-3,null,null,-0.10299999999999999,null,null,"N/M",null,null,-1E-3,null,null,1.0999999999999999E-2,null,null,-6.0000000000000001E-3,null,null,-0.107,null,null,"N/M",null,null,-2.1000000000000001E-2]
[]
[null,"Current accident year catastrophe losses",null,null,3.5999999999999997E-2,null,null,2.8000000000000001E-2,null,null,5.8000000000000003E-2,null,null,"N/M",null,null,3.7999999999999999E-2,null,null,4.3999999999999997E-2,null,null,5.3999999999999999E-2,null,null,4.7E-2,null,null,"N/M",null,null,4.8000000000000001E-2]
[]
[null,"Prior accident year unfavorable (favorable) catastrophe loss development",null,null,0,null,null,4.0000000000000001E-3,null,null,-0.04,null,null,"N/M",null,null,-6.0000000000000001E-3,null,null,-1E-3,null,null,8.0000000000000002E-3,null,null,-2.5999999999999999E-2,null,null,"N/M",null,null,-5.0000000000000001E-3]
[null,"Total loss and LAE ratio",null,null,0.63100000000000001,null,null,0.63700000000000001,null,null,0.52200000000000002,null,null,"N/M",null,null,0.61399999999999999,null,null,0.63100000000000001,null,null,0.68200000000000005,null,null,0.51400000000000001,null,null,"N/M",null,null,0.61899999999999999]
[]
[null,"Expense ratio",null,null,0.36,null,null,0.28199999999999997,null,null,0.39300000000000002,null,null,"N/M",null,null,0.34100000000000003,null,null,0.36099999999999999,null,null,0.27900000000000003,null,null,0.375,null,null,"N/M",null,null,0.34]
[]
[null,"Combined ratio",null,null,0.99099999999999999,null,null,0.91900000000000004,null,null,0.91500000000000004,null,null,"N/M",null,null,0.95499999999999996,null,null,0.99199999999999999,null,null,0.96099999999999997,null,null,0.88900000000000001,null,null,"N/M",null,null,0.95899999999999996]
[]
[]
[null,"(1)   Net premiums written for Chaucer do not reflect the June 30, 2015 transfer of $137.4 million of unearned premium reserves previously written by the U.K. motor business."]
[null,"This transfer of unearned premium reserves is part of the disposal of the U.K. motor business and has no impact on net premiums earned."]
[]
[]
[]
[]
[]
[]
[]
[]
[]
[" "]

{"sheet":"7","index":10,"n_rows":63,"n_cols":17,"rows_kept":63,"cut":false,"hidden":false,"merged":[[0,0,0,16],[1,0,1,16],[4,0,4,16]]}
["THE HANOVER INSURANCE GROUP"]
["GAAP UNDERWRITING INFORMATION AND RELATED RATIOS"]
[]
[]
["CONSOLIDATED"]
[]
[]
[]
[null," "]
[null," ",null,null,"Q3",null,"Q4",null,"Q1",null,"Q2",null,"Q3",null,"Sep-YTD",null,"Sep-YTD"]
[null,"(In millions, except percentage data)",null,null,"2015",null,"2015",null,"2016",null,"2016",null,"2016",null,"2015",null,"2016"]
[]
[]
[]
[null,"Gross premiums written ",null,"$",1379700000,"$",1174300000,"$",1375000000,"$",1402000000,"$",1402200000,"$",4270200000,"$",4179200000]
[]
[null,"Net premiums written (1)",null,"$",1199600000,"$",1046100000,"$",1144300000,"$",1221600000,"$",1250900000,"$",3708100000,"$",3616800000]
[]
[null,"Net premiums earned",null,"$",1150100000,"$",1137900000,"$",1151300000,"$",1145500000,"$",1160900000,"$",3566900000,"$",3457700000]
[]
[null,"Losses and LAE:"]
[]
[null,"Current accident year, excluding catastrophe losses",null,null,667300000,null,666800000,null,678400000,null,663700000,null,673200000,null,2130300000,null,2015300000]
[]
[null,"Prior accident year unfavorable (favorable) reserve development, excluding catastrophe losses",null,null,-22400000,null,-18100000,null,-10000000,null,15000000,null,-8100000,null,-76200000,null,-3100000]
[]
[null,"Current accident year catastrophe losses",null,null,58200000,null,32200000,null,39900000,null,62300000,null,27600000,null,170900000,null,129800000]
[]
[null,"Prior accident year favorable catastrophe loss development",null,null,-12400000,null,-5500000,null,-8700000,null,-11300000,null,-700000,null,-16300000,null,-20700000]
[]
[null,"Total losses and LAE",null,null,690700000,null,675400000,null,699600000,null,729700000,null,692000000,null,2208700000,null,2121300000]
[]
[null,"Amortization of deferred acquisition costs and other underwriting expenses",null,null,404500000,null,409200000,null,397600000,null,388500000,null,405000000,null,1222600000,null,1191100000]
[]
[null,"GAAP underwriting profit ",null,"$",54900000,"$",53300000,"$",54100000,"$",27300000,"$",63900000,"$",135600000,"$",145300000]
[]
[]
[]
[null,"Loss and LAE ratio:"]
[]
[null,"Current accident year, excluding catastrophe losses",null,null,0.57999999999999996,null,0.58699999999999997,null,0.59,null,0.57899999999999996,null,0.57999999999999996,null,0.59699999999999998,null,0.58299999999999996]
[]
[null,"Prior accident year reserve unfavorable (favorable) development, excluding catastrophe losses",null,null,-1.9E-2,null,-1.6E-2,null,-8.9999999999999993E-3,null,1.2999999999999999E-2,null,-7.0000000000000001E-3,null,-2.1000000000000001E-2,null,-1E-3]
[]
[null,"Current accident year catastrophe losses",null,null,5.0999999999999997E-2,null,2.8000000000000001E-2,null,3.5000000000000003E-2,null,5.5E-2,null,2.4E-2,null,4.8000000000000001E-2,null,3.7999999999999999E-2]
[]
[null,"Prior accident year favorable catastrophe loss development",null,null,-1.0999999999999999E-2,null,-5.0000000000000001E-3,null,-8.0000000000000002E-3,null,-0.01,null,-1E-3,null,-5.0000000000000001E-3,null,-6.0000000000000001E-3]
[]
[null,"Total loss and LAE ratio",null,null,0.60099999999999998,null,0.59399999999999997,null,0.60799999999999998,null,0.63700000000000001,null,0.59599999999999997,null,0.61899999999999999,null,0.61399999999999999]
[]
[null,"Expense ratio",null,null,0.34799999999999998,null,0.35599999999999998,null,0.34200000000000003,null,0.33600000000000002,null,0.34599999999999997,null,0.34,null,0.34100000000000003]
[]
[null,"Combined ratio",null,null,0.94899999999999995,null,0.95,null,0.95,null,0.97299999999999998,null,0.94199999999999995,null,0.95899999999999996,null,0.95499999999999996]
[]
[]
[]
[null,"Combined ratio, excluding catastrophe losses",null,null,0.90900000000000003,null,0.92700000000000005,null,0.92300000000000004,null,0.92800000000000005,null,0.91900000000000004,null,0.91600000000000004,null,0.92300000000000004]
[]
[null,"Current accident year combined ratio, excluding catastrophe losses",null,null,0.92800000000000005,null,0.94299999999999995,null,0.93200000000000005,null,0.91500000000000004,null,0.92600000000000005,null,0.93700000000000006,null,0.92400000000000004]
[]
[]
[null,"(1)  Net premiums written for Chaucer do not reflect the June 30, 2015 transfer of $137.4 million of unearned premium reserves previously written by the U.K. motor business. "]
[null,"This transfer of unearned premium reserves is part of the disposal of the U.K. motor business and has no impact on net premiums earned."]

{"sheet":"8","index":11,"n_rows":76,"n_cols":23,"rows_kept":76,"cut":false,"hidden":false,"merged":[[0,0,0,22],[1,0,1,22],[3,0,3,22],[5,0,5,22],[9,2,9,11],[9,13,9,22]]}
["THE HANOVER INSURANCE GROUP"]
["GAAP UNDERWRITING AND OPERATING INCOME INFORMATION AND RATIOS"]
[]
["COMMERCIAL LINES"]
[]
["Three Months ended September 30"]
[]
[]
[]
[null,null,"2016",null,null,null,null,null,null,null,null,null,null,"2015"]
[]
[null," "]
[null," ",null,"Multiple",null,null,null,"Workers'",null,null,null,null,null,null,"Multiple",null,null,null,"Workers'"]
[null,"(In millions, except percentage data)",null,"Peril",null,"Auto",null,"Comp",null,"Other",null,"Total ",null,null,"Peril",null,"Auto",null,"Comp",null,"Other",null,"Total "]
[]
[]
[null,"Net premiums written","$",229300000,"$",81700000,"$",73600000,"$",262700000,"$",647300000,null,"$",218300000,"$",81700000,"$",66000000,"$",251600000,"$",617600000]
[]
[null,"Net premiums earned","$",195600000,"$",76400000,"$",69900000,"$",245300000,"$",587200000,null,"$",185000000,"$",76100000,"$",64900000,"$",234400000,"$",560400000]
[]
[null,"Losses and LAE:"]
[]
[null,"Current accident year, excluding catastrophe losses",null,98300000,null,54400000,null,48000000,null,135300000,null,336000000,null,null,96900000,null,52600000,null,44300000,null,130800000,null,324600000]
[]
[null,"Prior accident year unfavorable (favorable) reserve development, excluding catastrophe losses",null,9100000,null,1900000,null,-3800000,null,12100000,null,19300000,null,null,7400000,null,1700000,null,-4800000,null,7500000,null,11800000]
[]
[null,"Current accident year catastrophe losses",null,11500000,null,1700000,null,0,null,3200000,null,16400000,null,null,4500000,null,-300000,null,0,null,5900000,null,10100000]
[]
[null,"Prior accident year unfavorable (favorable) catastrophe loss development",null,1500000,null,0,null,0,null,-200000,null,1300000,null,null,1600000,null,0,null,0,null,2100000,null,3700000]
[]
[null,"Total losses and LAE",null,120400000,null,58000000,null,44200000,null,150400000,null,373000000,null,null,110400000,null,54000000,null,39500000,null,146300000,null,350200000]
[]
[null,"Amortization of deferred acquisition costs and other underwriting expenses",null,null,null,null,null,null,null,null,null,210600000,null,null,null,null,null,null,null,null,null,null,201900000]
[]
[null,"GAAP underwriting profit",null,null,null,null,null,null,null,null,null,3600000,null,null,null,null,null,null,null,null,null,null,8300000]
[]
[null,"Net investment income",null,null,null,null,null,null,null,null,null,39000000,null,null,null,null,null,null,null,null,null,null,38700000]
[]
[null,"Other income",null,null,null,null,null,null,null,null,null,2200000,null,null,null,null,null,null,null,null,null,null,2100000]
[]
[null,"Other operating expenses",null,null,null,null,null,null,null,null,null,-2300000,null,null,null,null,null,null,null,null,null,null,-2000000]
[]
[null,"Operating income before income taxes",null,null,null,null,null,null,null,null,"$",42500000,null,null,null,null,null,null,null,null,null,"$",47100000]
[null,null,null,null,null,null,null,null,null,null,null,null,null,null,null,null,null,null,"."]
[]
[]
[]
[null,"Loss and LAE ratio:"]
[]
[null,"Current accident year, excluding catastrophe losses",null,0.502,null,0.71199999999999997,null,0.68700000000000006,null,0.55200000000000005,null,0.57199999999999995,null,null,0.52300000000000002,null,0.69199999999999995,null,0.68200000000000005,null,0.55800000000000005,null,0.57899999999999996]
[]
[null,"Prior accident year unfavorable (favorable) reserve development, excluding catastrophe losses",null,4.7E-2,null,2.5000000000000001E-2,null,-5.3999999999999999E-2,null,4.9000000000000002E-2,null,3.3000000000000002E-2,null,null,0.04,null,2.1999999999999999E-2,null,-7.3999999999999996E-2,null,3.2000000000000001E-2,null,2.1000000000000001E-2]
[]
[null,"Current accident year catastrophe losses",null,5.8000000000000003E-2,null,2.1999999999999999E-2,null,"-",null,1.2999999999999999E-2,null,2.8000000000000001E-2,null,null,2.4E-2,null,-4.0000000000000001E-3,null,"-",null,2.5000000000000001E-2,null,1.7999999999999999E-2]
[]
[null,"Prior accident year unfavorable (favorable) catastrophe loss development",null,8.0000000000000002E-3,null,"-",null,"-",null,-1E-3,null,2E-3,null,null,8.9999999999999993E-3,null,"-",null,"-",null,8.9999999999999993E-3,null,7.0000000000000001E-3]
[null,"Total loss and LAE ratio",null,0.61499999999999999,null,0.75900000000000001,null,0.63300000000000001,null,0.61299999999999999,null,0.63500000000000001,null,null,0.59599999999999997,null,0.71,null,0.60799999999999998,null,0.624,null,0.625]
[]
[null,"Expense ratio",null,null,null,null,null,null,null,null,null,0.35699999999999998,null,null,null,null,null,null,null,null,null,null,0.35799999999999998]
[]
[null,"Combined ratio",null,null,null,null,null,null,null,null,null,0.99199999999999999,null,null,null,null,null,null,null,null,null,null,0.98299999999999998]
[]
[]
[]
[null,"Change in policies in force",null,5.0999999999999997E-2,null,-3.2000000000000001E-2,null,0.03,null,4.9000000000000002E-2,null,3.6999999999999998E-2,null,null,6.4000000000000001E-2,null,-3.6999999999999998E-2,null,-8.3000000000000004E-2,null,4.8000000000000001E-2,null,2.4E-2]
[]
[null,"Retention",null,0.88200000000000001,null,0.84799999999999998,null,0.85599999999999998,null,"N/M",null,0.87,null,null,0.872,null,0.81399999999999995,null,0.75800000000000001,null,"N/M",null,0.84099999999999997]
[]
[]
[]
[]
[]
[]
[]
[]
[" "]

{"sheet":"9","index":12,"n_rows":76,"n_cols":23,"rows_kept":76,"cut":false,"hidden":false,"merged":[[0,0,0,22],[1,0,1,22],[3,0,3,22],[5,0,5,22],[9,2,9,11],[9,13,9,22]]}
["THE HANOVER INSURANCE GROUP"]
["GAAP UNDERWRITING AND OPERATING INCOME INFORMATION AND RATIOS"]
[]
["COMMERCIAL LINES"]
[]
["Nine Months ended September 30"]
[]
[]
[]
[null,null,"2016",null,null,null,null,null,null,null,null,null,null,"2015"]
[]
[null," "]
[null," ",null,"Multiple",null,null,null,"Workers'",null,null,null,null,null,null,"Multiple",null,null,null,"Workers'"]
[null,"(In millions, except percentage data)",null,"Peril",null,"Auto",null,"Comp",null,"Other",null,"Total ",null,null,"Peril",null,"Auto",null,"Comp",null,"Other",null,"Total "]
[]
[]
[null,"Net premiums written","$",618900000,"$",238900000,"$",222400000,"$",751300000,"$",1831500000,null,"$",586800000,"$",237600000,"$",207500000,"$",736700000,"$",1768600000]
[]
[null,"Net premiums earned","$",575200000,"$",228900000,"$",204400000,"$",724800000,"$",1733300000,null,"$",543600000,"$",228400000,"$",196800000,"$",694800000,"$",1663600000]
[]
[null,"Losses and LAE:"]
[]
[null,"Current accident year, excluding catastrophe losses",null,282300000,null,160900000,null,138700000,null,387800000,null,969700000,null,null,284000000,null,161300000,null,134800000,null,380400000,null,960500000]
[]
[null,"Prior accident year unfavorable (favorable) reserve development, excluding catastrophe losses",null,30500000,null,9100000,null,-14700000,null,36600000,null,61500000,null,null,7600000,null,6500000,null,-11500000,null,16100000,null,18700000]
[]
[null,"Current accident year catastrophe losses",null,42900000,null,2600000,null,0,null,16700000,null,62200000,null,null,47400000,null,600000,null,0,null,25300000,null,73300000]
[]
[null,"Prior accident year unfavorable (favorable) catastrophe loss development",null,-400000,null,0,null,0,null,700000,null,300000,null,null,-5000000,null,-100000,null,0,null,2700000,null,-2400000]
[]
[null,"Total losses and LAE",null,355300000,null,172600000,null,124000000,null,441800000,null,1093700000,null,null,334000000,null,168300000,null,123300000,null,424500000,null,1050100000]
[]
[null,"Amortization of deferred acquisition costs and other underwriting expenses",null,null,null,null,null,null,null,null,null,627200000,null,null,null,null,null,null,null,null,null,null,602600000]
[]
[null,"GAAP underwriting profit",null,null,null,null,null,null,null,null,null,12400000,null,null,null,null,null,null,null,null,null,null,10900000]
[]
[null,"Net investment income",null,null,null,null,null,null,null,null,null,117500000,null,null,null,null,null,null,null,null,null,null,116700000]
[]
[null,"Other income",null,null,null,null,null,null,null,null,null,6400000,null,null,null,null,null,null,null,null,null,null,6400000]
[]
[null,"Other operating expenses",null,null,null,null,null,null,null,null,null,-7100000,null,null,null,null,null,null,null,null,null,null,-7500000]
[]
[null,"Operating income before income taxes",null,null,null,null,null,null,null,null,"$",129200000,null,null,null,null,null,null,null,null,null,"$",126500000]
[]
[]
[]
[]
[null,"Loss and LAE ratio:"]
[]
[null,"Current accident year, excluding catastrophe losses",null,0.49099999999999999,null,0.70299999999999996,null,0.67900000000000005,null,0.53600000000000003,null,0.56000000000000005,null,null,0.52300000000000002,null,0.70699999999999996,null,0.68400000000000005,null,0.54800000000000004,null,0.57699999999999996]
[]
[null,"Prior accident year unfavorable (favorable) reserve development, excluding catastrophe losses",null,5.2999999999999999E-2,null,0.04,null,-7.1999999999999995E-2,null,0.05,null,3.5000000000000003E-2,null,null,1.4E-2,null,2.8000000000000001E-2,null,-5.8000000000000003E-2,null,2.3E-2,null,1.0999999999999999E-2]
[]
[null,"Current accident year catastrophe losses",null,7.4999999999999997E-2,null,1.0999999999999999E-2,null,"-",null,2.3E-2,null,3.5999999999999997E-2,null,null,8.6999999999999994E-2,null,2E-3,null,"-",null,3.5999999999999997E-2,null,4.3999999999999997E-2]
[]
[null,"Prior accident year unfavorable (favorable) catastrophe loss development",null,-1E-3,null,"-",null,"-",null,1E-3,null,0,null,null,-8.9999999999999993E-3,null,0,null,"-",null,4.0000000000000001E-3,null,-1E-3]
[null,"Total loss and LAE ratio",null,0.61799999999999999,null,0.754,null,0.60699999999999998,null,0.61,null,0.63100000000000001,null,null,0.61499999999999999,null,0.73699999999999999,null,0.626,null,0.61099999999999999,null,0.63100000000000001]
[]
[null,"Expense ratio",null,null,null,null,null,null,null,null,null,0.36,null,null,null,null,null,null,null,null,null,null,0.36099999999999999]
[]
[null,"Combined ratio",null,null,null,null,null,null,null,null,null,0.99099999999999999,null,null,null,null,null,null,null,null,null,null,0.99199999999999999]
[]
[]
[]
[null,"Change in policies in force",null,5.0999999999999997E-2,null,-3.2000000000000001E-2,null,0.03,null,4.9000000000000002E-2,null,3.6999999999999998E-2,null,null,6.4000000000000001E-2,null,-3.6999999999999998E-2,null,-8.3000000000000004E-2,null,4.8000000000000001E-2,null,2.4E-2]
[]
[null,"Retention",null,0.86799999999999999,null,0.81499999999999995,null,0.80300000000000005,null,"N/M",null,0.84499999999999997,null,null,0.86399999999999999,null,0.81200000000000006,null,0.77300000000000002,null,"N/M",null,0.83699999999999997]
[]
[]
[]
[]
[]
[]
[]
[]
[" "]

{"sheet":"10","index":13,"n_rows":58,"n_cols":17,"rows_kept":58,"cut":false,"hidden":false,"merged":[[0,0,0,16],[1,0,1,16],[4,0,4,16]]}
["THE HANOVER INSURANCE GROUP"]
["GAAP UNDERWRITING INFORMATION AND RELATED RATIOS"]
[]
[]
["COMMERCIAL LINES"]
[]
[]
[]
[null," "]
[null," ",null,null,"Q3",null,"Q4",null,"Q1",null,"Q2",null,"Q3",null,"Sep-YTD",null,"Sep-YTD"]
[null,"(In millions, except percentage data)",null,null,"2015",null,"2015",null,"2016",null,"2016",null,"2016",null,"2015",null,"2016"]
[]
[]
[null,"Gross premiums written ",null,"$",701200000,"$",592400000,"$",680100000,"$",662900000,"$",730000000,"$",2000100000,"$",2073000000]
[]
[null,"Net premiums written",null,"$",617600000,"$",513300000,"$",604300000,"$",579900000,"$",647300000,"$",1768600000,"$",1831500000]
[]
[null,"Net premiums earned",null,"$",560400000,"$",563400000,"$",571400000,"$",574700000,"$",587200000,"$",1663600000,"$",1733300000]
[]
[null,"Losses and LAE:"]
[]
[null,"Current accident year, excluding catastrophe losses",null,null,324600000,null,330700000,null,320800000,null,312900000,null,336000000,null,960500000,null,969700000]
[]
[null,"Prior accident year unfavorable reserve development, excluding catastrophe losses",null,null,11800000,null,26500000,null,20100000,null,22100000,null,19300000,null,18700000,null,61500000]
[]
[null,"Current accident year catastrophe losses",null,null,10100000,null,13400000,null,19200000,null,26600000,null,16400000,null,73300000,null,62200000]
[]
[null,"Prior accident year unfavorable (favorable) catastrophe loss development",null,null,3700000,null,4400000,null,-300000,null,-700000,null,1300000,null,-2400000,null,300000]
[]
[null,"Total losses and LAE",null,null,350200000,null,375000000,null,359800000,null,360900000,null,373000000,null,1050100000,null,1093700000]
[]
[null,"Amortization of deferred acquisition costs and other underwriting expenses",null,null,201900000,null,212000000,null,207900000,null,208700000,null,210600000,null,602600000,null,627200000]
[null,null,null,null,0]
[null,"GAAP underwriting profit (loss) ",null,"$",8300000,"$",-23600000,"$",3700000,"$",5100000,"$",3600000,"$",10900000,"$",12400000]
[]
[]
[]
[null,"Loss and LAE ratio:"]
[]
[null,"Current accident year, excluding catastrophe losses",null,null,0.57899999999999996,null,0.58699999999999997,null,0.56200000000000006,null,0.54500000000000004,null,0.57199999999999995,null,0.57699999999999996,null,0.56000000000000005]
[]
[null,"Prior accident year unfavorable reserve development, excluding catastrophe losses",null,null,2.1000000000000001E-2,null,4.7E-2,null,3.5000000000000003E-2,null,3.7999999999999999E-2,null,3.3000000000000002E-2,null,1.0999999999999999E-2,null,3.5000000000000003E-2]
[]
[null,"Current accident year catastrophe losses",null,null,1.7999999999999999E-2,null,2.4E-2,null,3.4000000000000002E-2,null,4.5999999999999999E-2,null,2.8000000000000001E-2,null,4.3999999999999997E-2,null,3.5999999999999997E-2]
[]
[null,"Prior accident year unfavorable (favorable) catastrophe loss development",null,null,7.0000000000000001E-3,null,8.0000000000000002E-3,null,-1E-3,null,-1E-3,null,2E-3,null,-1E-3,null,0]
[]
[null,"Total loss and LAE ratio",null,null,0.625,null,0.66600000000000004,null,0.63,null,0.628,null,0.63500000000000001,null,0.63100000000000001,null,0.63100000000000001]
[]
[null,"Expense ratio",null,null,0.35799999999999998,null,0.374,null,0.36199999999999999,null,0.36099999999999999,null,0.35699999999999998,null,0.36099999999999999,null,0.36]
[]
[null,"Combined ratio",null,null,0.98299999999999998,null,1.04,null,0.99199999999999999,null,0.98899999999999999,null,0.99199999999999999,null,0.99199999999999999,null,0.99099999999999999]
[]
[]
[]
[null,"Combined ratio, excluding catastrophe losses",null,null,0.95799999999999996,null,1.008,null,0.95899999999999996,null,0.94399999999999995,null,0.96199999999999997,null,0.94899999999999995,null,0.95499999999999996]
[]
[null,"Current accident year combined ratio, excluding catastrophe losses",null,null,0.93700000000000006,null,0.96099999999999997,null,0.92400000000000004,null,0.90600000000000003,null,0.92900000000000005,null,0.93799999999999994,null,0.92]

{"sheet":"11","index":14,"n_rows":76,"n_cols":20,"rows_kept":76,"cut":false,"hidden":false,"merged":[[0,0,0,19],[1,0,1,19],[3,0,3,19],[5,0,5,19],[9,3,9,10],[9,12,9,19]]}
["THE HANOVER INSURANCE GROUP"]
["GAAP UNDERWRITING AND OPERATING INCOME INFORMATION AND RATIOS"]
[]
["PERSONAL LINES"]
[]
["Three Months ended September 30"]
[]
[]
[]
[null,null,null,"2016",null,null,null,null,null,null,null,null,"2015"]
[]
[null," "]
[null," "]
["(In millions, except percentage data)",null,null,null,"Auto",null,"Home",null,"Other",null,"Total ",null,null,"Auto",null,"Home",null,"Other",null,"Total "]
[]
[]
[null,"Net premiums written",null,"$",249600000,"$",147500000,"$",10400000,"$",407500000,null,"$",232300000,"$",140700000,"$",10300000,"$",383300000]
[]
[null,"Net premiums earned",null,"$",231700000,"$",130500000,"$",9300000,"$",371500000,null,"$",223000000,"$",126200000,"$",9400000,"$",358600000]
[]
[null,"Losses and LAE:"]
[]
[null,"Current accident year, excluding catastrophe losses",null,null,164000000,null,60500000,null,2200000,null,226700000,null,null,155300000,null,61100000,null,3000000,null,219400000]
[]
[null,"Prior accident year unfavorable (favorable) reserve development, excluding catastrophe losses",null,null,-1300000,null,0,null,200000,null,-1100000,null,null,-1500000,null,0,null,-1000000,null,-2500000]
[]
[null,"Current accident year catastrophe losses",null,null,3700000,null,7000000,null,100000,null,10800000,null,null,2200000,null,16200000,null,500000,null,18900000]
[]
[null,"Prior accident year unfavorable catastrophe loss development",null,null,0,null,1500000,null,0,null,1500000,null,null,0,null,1200000,null,0,null,1200000]
[]
[null,"Total losses and LAE",null,null,166400000,null,69000000,null,2500000,null,237900000,null,null,156000000,null,78500000,null,2500000,null,237000000]
[]
[null,"Amortization of deferred acquisition costs and other underwriting expenses",null,null,null,null,null,null,null,null,110300000,null,null,null,null,null,null,null,null,103700000]
[]
[null,"GAAP underwriting profit ",null,null,null,null,null,null,null,null,23300000,null,null,null,null,null,null,null,null,17900000]
[]
[null,"Net investment income",null,null,null,null,null,null,null,null,17100000,null,null,null,null,null,null,null,null,18000000]
[]
[null,"Other income",null,null,null,null,null,null,null,null,2900000,null,null,null,null,null,null,null,null,3100000]
[]
[null,"Other operating expenses",null,null,null,null,null,null,null,null,-1600000,null,null,null,null,null,null,null,null,-1800000]
[]
[null,"Operating income before income taxes",null,null,null,null,null,null,null,"$",41700000,null,null,null,null,null,null,null,"$",37200000]
[]
[]
[]
[]
[null,"Loss and LAE ratio:"]
[]
[null,"Current accident year, excluding catastrophe losses",null,null,0.70799999999999996,null,0.46400000000000002,null,0.23599999999999999,null,0.61099999999999999,null,null,0.69599999999999995,null,0.48399999999999999,null,0.31900000000000001,null,0.61199999999999999]
[]
[null,"Prior accident year unfavorable (favorable) reserve development, excluding catastrophe losses",null,null,-6.0000000000000001E-3,null,"-",null,2.1999999999999999E-2,null,-3.0000000000000001E-3,null,null,-7.0000000000000001E-3,null,"-",null,-0.106,null,-7.0000000000000001E-3]
[]
[null,"Current accident year catastrophe losses",null,null,1.6E-2,null,5.3999999999999999E-2,null,1.0999999999999999E-2,null,2.9000000000000001E-2,null,null,0.01,null,0.128,null,5.2999999999999999E-2,null,5.2999999999999999E-2]
[]
[null,"Prior accident year unfavorable catastrophe loss development",null,null,"-",null,1.0999999999999999E-2,null,"-",null,4.0000000000000001E-3,null,null,"-",null,0.01,null,"-",null,3.0000000000000001E-3]
[null,"Total loss and LAE ratio",null,null,0.71799999999999997,null,0.52900000000000003,null,0.26900000000000002,null,0.64100000000000001,null,null,0.69899999999999995,null,0.622,null,0.26600000000000001,null,0.66100000000000003]
[]
[null,"Expense ratio",null,null,null,null,null,null,null,null,0.28999999999999998,null,null,null,null,null,null,null,null,0.28100000000000003]
[]
[null,"Combined ratio",null,null,null,null,null,null,null,null,0.93100000000000005,null,null,null,null,null,null,null,null,0.94199999999999995]
[]
[]
[]
[null,"Change in policies in force",null,null,-6.0000000000000001E-3,null,3.0000000000000001E-3,null,-0.11700000000000001,null,-6.0000000000000001E-3,null,null,-2.5000000000000001E-2,null,-1.7999999999999999E-2,null,-0.123,null,-2.5999999999999999E-2]
[]
[null,"Retention",null,null,0.84099999999999997,null,0.81899999999999995,null,"N/M",null,0.83099999999999996,null,null,0.82699999999999996,null,0.80800000000000005,null,"N/M",null,0.81799999999999995]
[]
[]
[]
[]
[]
[]
[]
[]
[" "]

{"sheet":"12","index":15,"n_rows":76,"n_cols":20,"rows_kept":76,"cut":false,"hidden":false,"merged":[[0,0,0,19],[1,0,1,19],[3,0,3,19],[5,0,5,19],[9,3,9,10],[9,12,9,19]]}
["THE HANOVER INSURANCE GROUP"]
["GAAP UNDERWRITING AND OPERATING INCOME INFORMATION AND RATIOS"]
[]
["PERSONAL LINES"]
[]
["Nine Months ended September 30"]
[]
[]
[]
[null,null,null,"2016",null,null,null,null,null,null,null,null,"2015"]
[]
[null," "]
[null," "]
["(In millions, except percentage data)",null,null,null,"Auto",null,"Home",null,"Other",null,"Total ",null,null,"Auto",null,"Home",null,"Other",null,"Total "]
[]
[]
[null,"Net premiums written",null,"$",717200000,"$",394000000,"$",28600000,"$",1139800000,null,"$",681500000,"$",377800000,"$",28700000,"$",1088000000]
[]
[null,"Net premiums earned",null,"$",679900000,"$",386400000,"$",28500000,"$",1094800000,null,"$",661800000,"$",377300000,"$",29100000,"$",1068200000]
[]
[null,"Losses and LAE:"]
[]
[null,"Current accident year, excluding catastrophe losses",null,null,481200000,null,172200000,null,10200000,null,663600000,null,null,469000000,null,189000000,null,10200000,null,668200000]
[]
[null,"Prior accident year unfavorable (favorable) reserve development, excluding catastrophe losses",null,null,-3400000,null,800000,null,1700000,null,-900000,null,null,-4300000,null,-1400000,null,-900000,null,-6600000]
[]
[null,"Current accident year catastrophe losses",null,null,5300000,null,25400000,null,300000,null,31000000,null,null,3300000,null,54000000,null,900000,null,58200000]
[]
[null,"Prior accident year unfavorable (favorable) catastrophe loss development",null,null,-100000,null,4300000,null,100000,null,4300000,null,null,0,null,8300000,null,0,null,8300000]
[]
[null,"Total losses and LAE",null,null,483000000,null,202700000,null,12300000,null,698000000,null,null,468000000,null,249900000,null,10200000,null,728100000]
[]
[null,"Amortization of deferred acquisition costs and other underwriting expenses",null,null,null,null,null,null,null,null,315600000,null,null,null,null,null,null,null,null,305800000]
[]
[null,"GAAP underwriting profit",null,null,null,null,null,null,null,null,81200000,null,null,null,null,null,null,null,null,34300000]
[]
[null,"Net investment income",null,null,null,null,null,null,null,null,51600000,null,null,null,null,null,null,null,null,54200000]
[]
[null,"Other income",null,null,null,null,null,null,null,null,8400000,null,null,null,null,null,null,null,null,9000000]
[]
[null,"Other operating expenses",null,null,null,null,null,null,null,null,-5000000,null,null,null,null,null,null,null,null,-5900000]
[]
[null,"Operating income before income taxes",null,null,null,null,null,null,null,"$",136200000,null,null,null,null,null,null,null,"$",91600000]
[]
[]
[]
[]
[null,"Loss and LAE ratio:"]
[]
[null,"Current accident year, excluding catastrophe losses",null,null,0.70799999999999996,null,0.44500000000000001,null,0.35799999999999998,null,0.60599999999999998,null,null,0.70799999999999996,null,0.501,null,0.35099999999999998,null,0.626]
[]
[null,"Prior accident year unfavorable (favorable) reserve development, excluding catastrophe losses",null,null,-5.0000000000000001E-3,null,2E-3,null,0.06,null,-1E-3,null,null,-6.0000000000000001E-3,null,-4.0000000000000001E-3,null,-3.1E-2,null,-6.0000000000000001E-3]
[]
[null,"Current accident year catastrophe losses",null,null,8.0000000000000002E-3,null,6.6000000000000003E-2,null,0.01,null,2.8000000000000001E-2,null,null,5.0000000000000001E-3,null,0.14299999999999999,null,3.1E-2,null,5.3999999999999999E-2]
[]
[null,"Prior accident year unfavorable catastrophe loss development",null,null,0,null,1.0999999999999999E-2,null,4.0000000000000001E-3,null,4.0000000000000001E-3,null,null,"-",null,2.1999999999999999E-2,null,"-",null,8.0000000000000002E-3]
[null,"Total loss and LAE ratio",null,null,0.71099999999999997,null,0.52400000000000002,null,0.432,null,0.63700000000000001,null,null,0.70699999999999996,null,0.66200000000000003,null,0.35099999999999998,null,0.68200000000000005]
[]
[null,"Expense ratio",null,null,null,null,null,null,null,null,0.28199999999999997,null,null,null,null,null,null,null,null,0.27900000000000003]
[]
[null,"Combined ratio",null,null,null,null,null,null,null,null,0.91900000000000004,null,null,null,null,null,null,null,null,0.96099999999999997]
[]
[]
[]
[null,"Change in policies in force",null,null,-6.0000000000000001E-3,null,3.0000000000000001E-3,null,-0.11700000000000001,null,-6.0000000000000001E-3,null,null,-2.5000000000000001E-2,null,-1.7999999999999999E-2,null,-0.123,null,-2.5999999999999999E-2]
[]
[null,"Retention",null,null,0.84299999999999997,null,0.82,null,"N/M",null,0.83199999999999996,null,null,0.83399999999999996,null,0.80800000000000005,null,"N/M",null,0.82299999999999995]
[]
[]
[]
[]
[]
[]
[]
[]
[" "]

{"sheet":"13","index":16,"n_rows":59,"n_cols":17,"rows_kept":59,"cut":false,"hidden":false,"merged":[[0,0,0,16],[1,0,1,16],[4,0,4,16]]}
["THE HANOVER INSURANCE GROUP"]
["GAAP UNDERWRITING INFORMATION AND RELATED RATIOS"]
[]
[]
["PERSONAL LINES"]
[]
[]
[]
[null," "]
[null," ",null,null,"Q3",null,"Q4",null,"Q1",null,"Q2",null,"Q3",null,"Sep-YTD",null,"Sep-YTD"]
["(In millions, except percentage data)",null,null,null,"2015",null,"2015",null,"2016",null,"2016",null,"2016",null,"2015",null,"2016"]
[]
[]
[]
[null,"Gross premiums written ",null,"$",403000000,"$",376600000,"$",356800000,"$",416600000,"$",428700000,"$",1153900000,"$",1202100000]
[]
[null,"Net premiums written",null,"$",383300000,"$",357600000,"$",337000000,"$",395300000,"$",407500000,"$",1088000000,"$",1139800000]
[]
[null,"Net premiums earned",null,"$",358600000,"$",358400000,"$",358600000,"$",364700000,"$",371500000,"$",1068200000,"$",1094800000]
[]
[null,"Losses and LAE:"]
[]
[null,"Current accident year, excluding catastrophe losses",null,null,219400000,null,217600000,null,215700000,null,221200000,null,226700000,null,668200000,null,663600000]
[]
[null,"Prior accident year unfavorable (favorable) reserve development, excluding catastrophe losses",null,null,-2500000,null,-13100000,null,-700000,null,900000,null,-1100000,null,-6600000,null,-900000]
[]
[null,"Current accident year catastrophe losses",null,null,18900000,null,8500000,null,10500000,null,9700000,null,10800000,null,58200000,null,31000000]
[]
[null,"Prior accident year unfavorable catastrophe loss development",null,null,1200000,null,800000,null,1300000,null,1500000,null,1500000,null,8300000,null,4300000]
[]
[null,"Total losses and LAE",null,null,237000000,null,213800000,null,226800000,null,233300000,null,237900000,null,728100000,null,698000000]
[]
[null,"Amortization of deferred acquisition costs and other underwriting expenses",null,null,103700000,null,106900000,null,103200000,null,102100000,null,110300000,null,305800000,null,315600000]
[]
[null,"GAAP underwriting profit",null,"$",17900000,"$",37700000,"$",28600000,"$",29300000,"$",23300000,"$",34300000,"$",81200000]
[]
[]
[]
[null,"Loss and LAE ratio:"]
[]
[null,"Current accident year, excluding catastrophe losses",null,null,0.61199999999999999,null,0.60799999999999998,null,0.60199999999999998,null,0.60699999999999998,null,0.61099999999999999,null,0.626,null,0.60599999999999998]
[]
[null,"Prior accident year unfavorable (favorable) reserve development, excluding catastrophe losses",null,null,-7.0000000000000001E-3,null,-3.6999999999999998E-2,null,-2E-3,null,2E-3,null,-3.0000000000000001E-3,null,-6.0000000000000001E-3,null,-1E-3]
[]
[null,"Current accident year catastrophe losses",null,null,5.2999999999999999E-2,null,2.4E-2,null,2.9000000000000001E-2,null,2.7E-2,null,2.9000000000000001E-2,null,5.3999999999999999E-2,null,2.8000000000000001E-2]
[]
[null,"Prior accident year unfavorable catastrophe loss development",null,null,3.0000000000000001E-3,null,2E-3,null,4.0000000000000001E-3,null,4.0000000000000001E-3,null,4.0000000000000001E-3,null,8.0000000000000002E-3,null,4.0000000000000001E-3]
[]
[null,"Total loss and LAE ratio",null,null,0.66100000000000003,null,0.59699999999999998,null,0.63300000000000001,null,0.64,null,0.64100000000000001,null,0.68200000000000005,null,0.63700000000000001]
[]
[null,"Expense ratio",null,null,0.28100000000000003,null,0.29099999999999998,null,0.28100000000000003,null,0.27300000000000002,null,0.28999999999999998,null,0.27900000000000003,null,0.28199999999999997]
[]
[null,"Combined ratio",null,null,0.94199999999999995,null,0.88800000000000001,null,0.91400000000000003,null,0.91300000000000003,null,0.93100000000000005,null,0.96099999999999997,null,0.91900000000000004]
[]
[]
[]
[null,"Combined ratio, excluding catastrophe losses",null,null,0.88600000000000001,null,0.86199999999999999,null,0.88100000000000001,null,0.88200000000000001,null,0.89800000000000002,null,0.89900000000000002,null,0.88700000000000001]
[]
[null,"Current accident year combined ratio, excluding catastrophe losses",null,null,0.89300000000000002,null,0.89900000000000002,null,0.88300000000000001,null,0.88,null,0.90100000000000002,null,0.90500000000000003,null,0.88800000000000001]

{"sheet":"14","index":17,"n_rows":74,"n_cols":28,"rows_kept":74,"cut":false,"hidden":false,"merged":[[66,1,67,27],[0,0,0,27],[1,0,1,27],[3,0,3,27],[5,0,5,27],[9,3,9,14],[9,16,9,27]]}
["THE HANOVER INSURANCE GROUP"]
["GAAP UNDERWRITING AND OPERATING INCOME INFORMATION AND RATIOS"]
[]
["CHAUCER"]
[]
["Three Months ended September 30"]
[]
[]
[]
[null,null,null,"2016",null,null,null,null,null,null,null,null,null,null,null,null,"2015"]
[null," "]
[null,null,null,null,null,null," Marine & ",null,null,null,"UK",null,"Casualty",null,null,null,null,null,null," Marine & ",null,null,null,"UK",null,"Casualty"]
[null,"(In millions, except percentage data)",null,null,"Property",null,"Aviation",null,"Energy",null,"Motor",null,"& Other",null,"Total ",null,null,"Property",null,"Aviation",null,"Energy",null,"Motor",null,"& Other",null,"Total "]
[]
[]
[null,"Gross premiums written",null,"$",39600000,"$",85600000,"$",28800000,"$",200000,"$",89500000,"$",243500000,null,"$",32400000,"$",81500000,"$",28900000,"$",46300000,"$",86400000,"$",275500000]
[]
[null,"Net premiums written",null,"$",34500000,"$",67000000,"$",18800000,"$",0,"$",75800000,"$",196100000,null,"$",29500000,"$",70400000,"$",21400000,"$",0,"$",77400000,"$",198700000]
[]
[null,"Net premiums earned",null,"$",38800000,"$",66800000,"$",25200000,"$",0,"$",71400000,"$",202200000,null,"$",42500000,"$",71200000,"$",41100000,"$",0,"$",76300000,"$",231100000]
[]
[null,"Losses and LAE:"]
[]
[null,"Current accident year, excluding catastrophe losses",null,null,null,null,null,null,null,null,null,null,null,null,110400000,null,null,null,null,null,null,null,null,null,null,null,null,123300000]
[]
[null,"Prior accident year favorable reserve development, excluding catastrophe losses",null,null,null,null,null,null,null,null,null,null,null,null,-26600000,null,null,null,null,null,null,null,null,null,null,null,null,-32100000]
[]
[null,"Current accident year catastrophe losses",null,null,null,null,null,null,null,null,null,null,null,null,400000,null,null,null,null,null,null,null,null,null,null,null,null,29200000]
[]
[null,"Prior accident year favorable catastrophe loss development",null,null,null,null,null,null,null,null,null,null,null,null,-3500000,null,null,null,null,null,null,null,null,null,null,null,null,-17300000]
[]
[null,"Total losses and LAE",null,null,null,null,null,null,null,null,null,null,null,null,80700000,null,null,null,null,null,null,null,null,null,null,null,null,103100000]
[]
[null,"Amortization of deferred acquisition costs and other underwriting expenses",null,null,null,null,null,null,null,null,null,null,null,null,83700000,null,null,null,null,null,null,null,null,null,null,null,null,98400000]
[]
[null,"GAAP underwriting profit",null,null,null,null,null,null,null,null,null,null,null,null,37800000,null,null,null,null,null,null,null,null,null,null,null,null,29600000]
[]
[null,"Net investment income",null,null,null,null,null,null,null,null,null,null,null,null,10300000,null,null,null,null,null,null,null,null,null,null,null,null,10500000]
[]
[null,"Other income",null,null,null,null,null,null,null,null,null,null,null,null,2500000,null,null,null,null,null,null,null,null,null,null,null,null,1100000]
[]
[null,"Other operating expenses",null,null,null,null,null,null,null,null,null,null,null,null,-2200000,null,null,null,null,null,null,null,null,null,null,null,null,0]
[]
[null,"Operating income before income taxes",null,null,null,null,null,null,null,null,null,null,null,"$",48400000,null,null,null,null,null,null,null,null,null,null,null,"$",41200000]
[]
[]
[]
[]
[null,"Loss and LAE ratio:"]
[]
[null,"Current accident year, excluding catastrophe losses",null,null,null,null,null,null,null,null,null,null,null,null,0.54600000000000004,null,null,null,null,null,null,null,null,null,null,null,null,0.53400000000000003]
[]
[null,"Prior accident year favorable reserve development, excluding catastrophe losses",null,null,null,null,null,null,null,null,null,null,null,null,-0.13200000000000001,null,null,null,null,null,null,null,null,null,null,null,null,-0.13900000000000001]
[]
[null,"Current accident year catastrophe losses",null,null,null,null,null,null,null,null,null,null,null,null,2E-3,null,null,null,null,null,null,null,null,null,null,null,null,0.126]
[]
[null,"Prior accident year favorable catastrophe loss development",null,null,null,null,null,null,null,null,null,null,null,null,-1.7000000000000001E-2,null,null,null,null,null,null,null,null,null,null,null,null,-7.4999999999999997E-2]
[null,"Total loss and LAE ratio",null,null,null,null,null,null,null,null,null,null,null,null,0.39900000000000002,null,null,null,null,null,null,null,null,null,null,null,null,0.44600000000000001]
[]
[null,"Expense ratio",null,null,null,null,null,null,null,null,null,null,null,null,0.41399999999999998,null,null,null,null,null,null,null,null,null,null,null,null,0.42599999999999999]
[]
[null,"Combined ratio",null,null,null,null,null,null,null,null,null,null,null,null,0.81299999999999994,null,null,null,null,null,null,null,null,null,null,null,null,0.872]
[]
[]
[]
[]
[]
[]
[]
[]
[]
[]
[]
[" "]

{"sheet":"15","index":18,"n_rows":74,"n_cols":28,"rows_kept":74,"cut":false,"hidden":false,"merged":[[64,1,65,27],[0,0,0,27],[1,0,1,27],[3,0,3,27],[5,0,5,27],[9,3,9,14],[9,16,9,27]]}
["THE HANOVER INSURANCE GROUP"]
["GAAP UNDERWRITING AND OPERATING INCOME INFORMATION AND RATIOS"]
[]
["CHAUCER"]
[]
["Nine Months ended September 30"]
[]
[]
[]
[null,null,null,"2016",null,null,null,null,null,null,null,null,null,null,null,null,"2015"]
[null," "]
[null,null,null,null,null,null," Marine & ",null,null,null,"UK",null,"Casualty",null,null,null,null,null,null," Marine & ",null,null,null,"UK",null,"Casualty"]
[null,"(In millions, except percentage data)",null,null,"Property",null,"Aviation",null,"Energy",null,"Motor",null,"& Other",null,"Total ",null,null,"Property",null,"Aviation",null,"Energy",null,"Motor",null,"& Other",null,"Total "]
[]
[]
[null,"Gross premiums written",null,"$",214700000,"$",281800000,"$",131700000,"$",-1100000,"$",275900000,"$",904100000,null,"$",212700000,"$",277600000,"$",162700000,"$",185900000,"$",277300000,"$",1116200000]
[]
[null,"Net premiums written (1)",null,"$",127600000,"$",205200000,"$",76200000,"$",0,"$",236500000,"$",645500000,null,"$",143200000,"$",224200000,"$",107100000,"$",129100000,"$",247900000,"$",851500000]
[]
[null,"Net premiums earned",null,"$",109900000,"$",195000000,"$",100800000,"$",0,"$",223900000,"$",629600000,null,"$",125700000,"$",214000000,"$",140000000,"$",135400000,"$",220000000,"$",835100000]
[]
[null,"Losses and LAE:"]
[]
[null,"Current accident year, excluding catastrophe losses",null,null,null,null,null,null,null,null,null,null,null,null,381900000,null,null,null,null,null,null,null,null,null,null,null,null,501500000]
[]
[null,"Prior accident year favorable reserve development, excluding catastrophe losses",null,null,null,null,null,null,null,null,null,null,null,null,-64600000,null,null,null,null,null,null,null,null,null,null,null,null,-89300000]
[]
[null,"Current accident year catastrophe losses",null,null,null,null,null,null,null,null,null,null,null,null,36600000,null,null,null,null,null,null,null,null,null,null,null,null,39400000]
[]
[null,"Prior accident year favorable catastrophe loss development",null,null,null,null,null,null,null,null,null,null,null,null,-25300000,null,null,null,null,null,null,null,null,null,null,null,null,-22200000]
[]
[null,"Total losses and LAE",null,null,null,null,null,null,null,null,null,null,null,null,328600000,null,null,null,null,null,null,null,null,null,null,null,null,429400000]
[]
[null,"Amortization of deferred acquisition costs and other underwriting expenses",null,null,null,null,null,null,null,null,null,null,null,null,247200000,null,null,null,null,null,null,null,null,null,null,null,null,313000000]
[]
[null,"GAAP underwriting profit ",null,null,null,null,null,null,null,null,null,null,null,null,53800000,null,null,null,null,null,null,null,null,null,null,null,null,92700000]
[]
[null,"Net investment income",null,null,null,null,null,null,null,null,null,null,null,null,32300000,null,null,null,null,null,null,null,null,null,null,null,null,34800000]
[]
[null,"Other income",null,null,null,null,null,null,null,null,null,null,null,null,6000000,null,null,null,null,null,null,null,null,null,null,null,null,5600000]
[]
[null,"Other operating expenses",null,null,null,null,null,null,null,null,null,null,null,null,-4500000,null,null,null,null,null,null,null,null,null,null,null,null,-700000]
[]
[null,"Operating income before income taxes",null,null,null,null,null,null,null,null,null,null,null,"$",87600000,null,null,null,null,null,null,null,null,null,null,null,"$",132400000]
[]
[]
[]
[]
[null,"Loss and LAE ratio:"]
[]
[null,"Current accident year, excluding catastrophe losses",null,null,null,null,null,null,null,null,null,null,null,null,0.60699999999999998,null,null,null,null,null,null,null,null,null,null,null,null,0.6]
[]
[null,"Prior accident year favorable reserve development, excluding catastrophe losses",null,null,null,null,null,null,null,null,null,null,null,null,-0.10299999999999999,null,null,null,null,null,null,null,null,null,null,null,null,-0.107]
[]
[null,"Current accident year catastrophe losses",null,null,null,null,null,null,null,null,null,null,null,null,5.8000000000000003E-2,null,null,null,null,null,null,null,null,null,null,null,null,4.7E-2]
[]
[null,"Prior accident year favorable catastrophe loss development",null,null,null,null,null,null,null,null,null,null,null,null,-0.04,null,null,null,null,null,null,null,null,null,null,null,null,-2.5999999999999999E-2]
[null,"Total loss and LAE ratio",null,null,null,null,null,null,null,null,null,null,null,null,0.52200000000000002,null,null,null,null,null,null,null,null,null,null,null,null,0.51400000000000001]
[]
[null,"Expense ratio",null,null,null,null,null,null,null,null,null,null,null,null,0.39300000000000002,null,null,null,null,null,null,null,null,null,null,null,null,0.375]
[]
[null,"Combined ratio",null,null,null,null,null,null,null,null,null,null,null,null,0.91500000000000004,null,null,null,null,null,null,null,null,null,null,null,null,0.88900000000000001]
[]
[]
[null,"(1)  Net premiums written for Chaucer do not reflect the June 30, 2015 transfer of $137.4 million of unearned premium reserves previously written by the U.K. motor business. This transfer of unearned premium reserves is part of the disposal of the U.K. motor business and has no impact on net premiums earned."]
[]
[]
[]
[]
[]
[]
[]
[]
[" "]

{"sheet":"16","index":19,"n_rows":63,"n_cols":16,"rows_kept":63,"cut":false,"hidden":false,"merged":[[0,0,0,15],[1,0,1,15],[4,0,4,15],[62,1,63,15]]}
["THE HANOVER INSURANCE GROUP"]
["GAAP UNDERWRITING INFORMATION AND RELATED RATIOS"]
[]
[]
["CHAUCER"]
[]
[]
[]
[null," "]
[null," ",null,"Q3",null,"Q4",null,"Q1",null,"Q2",null,"Q3",null,"Sep-YTD",null,"Sep-YTD"]
[null,"(In millions, except percentage data)",null,"2015",null,"2015",null,"2016",null,"2016",null,"2016",null,"2015",null,"2016"]
[]
[]
[]
[null,"Gross premiums written ","$",275500000,"$",205300000,"$",338100000,"$",322500000,"$",243500000,"$",1116200000,"$",904100000]
[]
[null,"Net premiums written (1)","$",198700000,"$",175200000,"$",203000000,"$",246400000,"$",196100000,"$",851500000,"$",645500000]
[]
[null,"Net premiums earned","$",231100000,"$",216100000,"$",221300000,"$",206100000,"$",202200000,"$",835100000,"$",629600000]
[]
[null,"Losses and LAE:"]
[]
[null,"Current accident year, excluding catastrophe losses",null,123300000,null,118500000,null,141900000,null,129600000,null,110400000,null,501500000,null,381900000]
[]
[null,"Prior accident year favorable reserve development, excluding catastrophe losses",null,-32100000,null,-30800000,null,-29700000,null,-8300000,null,-26600000,null,-89300000,null,-64600000]
[]
[null,"Current accident year catastrophe losses",null,29200000,null,10300000,null,10200000,null,26000000,null,400000,null,39400000,null,36600000]
[]
[null,"Prior accident year favorable catastrophe loss development",null,-17300000,null,-10700000,null,-9700000,null,-12100000,null,-3500000,null,-22200000,null,-25300000]
[]
[null,"Total losses and LAE",null,103100000,null,87300000,null,112700000,null,135200000,null,80700000,null,429400000,null,328600000]
[]
[null,"Amortization of deferred acquisition costs and other underwriting expenses",null,98400000,null,90000000,null,86100000,null,77400000,null,83700000,null,313000000,null,247200000]
[]
[null,"GAAP underwriting profit (loss)","$",29600000,"$",38800000,"$",22500000,"$",-6500000,"$",37800000,"$",92700000,"$",53800000]
[]
[]
[]
[null,"Loss and LAE ratio:"]
[]
[null,"Current accident year, excluding catastrophe losses",null,0.53400000000000003,null,0.54900000000000004,null,0.64100000000000001,null,0.629,null,0.54600000000000004,null,0.6,null,0.60699999999999998]
[]
[null,"Prior accident year favorable reserve development, excluding catastrophe losses",null,-0.13900000000000001,null,-0.14299999999999999,null,-0.13400000000000001,null,-0.04,null,-0.13200000000000001,null,-0.107,null,-0.10299999999999999]
[]
[null,"Current accident year catastrophe losses",null,0.126,null,4.8000000000000001E-2,null,4.5999999999999999E-2,null,0.126,null,2E-3,null,4.7E-2,null,5.8000000000000003E-2]
[]
[null,"Prior accident year favorable catastrophe loss development",null,-7.4999999999999997E-2,null,-0.05,null,-4.3999999999999997E-2,null,-5.8999999999999997E-2,null,-1.7000000000000001E-2,null,-2.5999999999999999E-2,null,-0.04]
[]
[null,"Total loss and LAE ratio",null,0.44600000000000001,null,0.40400000000000003,null,0.50900000000000001,null,0.65600000000000003,null,0.39900000000000002,null,0.51400000000000001,null,0.52200000000000002]
[]
[null,"Expense ratio",null,0.42599999999999999,null,0.41599999999999998,null,0.38900000000000001,null,0.376,null,0.41399999999999998,null,0.375,null,0.39300000000000002]
[]
[null,"Combined ratio",null,0.872,null,0.82,null,0.89800000000000002,null,1.032,null,0.81299999999999994,null,0.88900000000000001,null,0.91500000000000004]
[]
[]
[]
[null,"Combined ratio, excluding catastrophe losses",null,0.82099999999999995,null,0.82199999999999995,null,0.89600000000000002,null,0.96499999999999997,null,0.82799999999999996,null,0.86799999999999999,null,0.89700000000000002]
[]
[null,"Current accident year combined ratio, excluding catastrophe losses",null,0.96,null,0.96499999999999997,null,1.03,null,1.0049999999999999,null,0.96,null,0.97499999999999998,null,1]
[]
[]
[]
[null,"(1)  Net premiums written for Chaucer do not reflect the June 30, 2015 transfer of $137.4 million of unearned premium reserves previously written by the U.K. motor business. This transfer of unearned premium reserves is part of the disposal of the U.K. motor business and has no impact on net premiums earned."]

{"sheet":"17","index":20,"n_rows":29,"n_cols":16,"rows_kept":29,"cut":false,"hidden":false,"merged":[[0,0,0,15],[1,0,1,15],[23,0,24,15]]}
["THE HANOVER INSURANCE GROUP"]
["NET INVESTMENT INCOME AND YIELDS"]
[]
[]
[]
[null,null,null,"Q3",null,"Q4",null,"Q1",null,"Q2",null,"Q3",null,"YTD",null,"YTD"]
["(In millions, except yields)",null,null,"2015",null,"2015",null,"2016",null,"2016",null,"2016",null,"2015",null,"2016"]
[]
["Net Investment Income"]
["Fixed maturities",null,null,62.5,null,63,null,61.1,null,61.3,null,59.8,null,190.8,null,182.2]
["Equity securities",null,null,4.2,null,4.5999999999999996,null,4.3,null,4.8,null,4.4000000000000004,null,12.9,null,13.5]
["Other investments",null,null,4,null,5.2,null,5.6,null,5.7,null,6.4,null,12.9,null,17.7]
["Investment expenses",null,null,-2.4,null,-2.8,null,-2.7,null,-2.7,null,-2.8,null,-7.5,null,-8.1999999999999993]
["Total",null,null,68.3,null,70,null,68.3,null,69.099999999999994,null,67.8,null,209.1,null,205.2]
[]
[]
["Pre-tax Yields"]
[]
["Fixed maturities",null,null,3.6400000000000002E-2,null,3.6299999999999999E-2,null,3.5400000000000001E-2,null,3.56E-2,null,3.4299999999999997E-2,null,3.61E-2,null,3.5099999999999999E-2]
["Total ",null,null,3.4500000000000003E-2,null,3.4700000000000002E-2,null,3.4000000000000002E-2,null,3.39E-2,null,3.3099999999999997E-2,null,3.4299999999999997E-2,null,3.3599999999999998E-2]
[]
[]
[]
["Pre-tax yields are calculated as annualized net investment income divided by the average of investment balances, excluding unrealized capital gains and losses, at the end of each month during the period."]
[]
[]
[]
[]
["                                                                                                                                                                                                                                                                                                                                                                                                                                                                                                                                                                                                                                                                                                                                                                                                                                                                                                                                                                                                                                                                                                                                               "]

{"sheet":"18","index":21,"n_rows":33,"n_cols":10,"rows_kept":33,"cut":false,"hidden":false,"merged":[[6,3,6,7],[0,1,0,9],[1,1,1,9],[2,1,2,9]]}
[null,"THE HANOVER INSURANCE GROUP"]
[null,"INVESTMENT PORTFOLIO"]
[null,"September 30,  2016  "]
[]
[]
[]
[null,"(In millions)"]
[null,null,null,null,null,null,null,null,"Change in","Change in"]
[null,null,null,"Weighted",null,null,null,"Net","Net ","Net "]
[null,null,null,"Average ","Amortized","Fair","% of","Unrealized","Unrealized","Unrealized"]
[null,"Investment Type",null,"Quality","Cost or Cost","Value","Total","Gain","During Q3","YTD"]
[]
[null,"Fixed maturities:"]
[null,"U.S. Treasury and government agencies",null,"AAA",311.10000000000002,320.39999999999998,3.5999999999999997E-2,9.3000000000000007,-2.2999999999999998,7.3]
[null,"Foreign government",null,"AA+",234.5,242.7,2.8000000000000001E-2,8.1999999999999993,1,7.1]
[null,"Municipals:"]
[null,null,"Taxable","AA",963.2,1023.9,0.11600000000000001,60.7,-9.6999999999999993,17.8]
[null,null,"Tax exempt","AA",108.6,112.5,1.2999999999999999E-2,3.9,-1,1]
[null,"Corporate:"]
[null,"NAIC 1","NAIC 1","A",1665.3,1741.1,0.19700000000000001,75.8,-3.6,43.9]
[null,"NAIC 2","NAIC 2","BBB",1859.6,1938,0.22,78.400000000000006,7.3,79.8]
[null,"NAIC 3 and below","NAIC 3 and below","B+",412.5,429.1,4.9000000000000002E-2,16.600000000000001,13.2,56]
[null,"Total corporate",null,"BBB+",3937.4,4108.2,0.46600000000000003,170.8,16.899999999999999,179.7]
[null,"Asset backed:"]
[null,null,"Residential mortgage-backed","AAA",921.8,944.3,0.107,22.5,-2.7,14]
[null,null,"Commercial mortgage-backed ","AAA",546.5,569.79999999999995,6.5000000000000002E-2,23.3,-2.1,21.8]
[null,null,"Asset-backed ","AAA",77.3,78.400000000000006,8.9999999999999993E-3,1.1000000000000001,0.5,1.7]
[null,"Total fixed maturities ",null,"A+",7100.4,7400.2,0.84,299.8,0.6,250.4]
[null,"Equity securities",null,null,533.6,612.5,6.9000000000000006E-2,78.900000000000006,4,30.8]
[null,"Other investments",null,null,480,483.4,5.5E-2,3.4,0,0]
[null,"Total investments",null,null,8114,8496.1,0.96399999999999997,382.1,4.5999999999999996,281.2]
[null,"Cash and cash equivalents ",null,null,315.89999999999998,315.89999999999998,3.5999999999999997E-2,0,0,0]
[null,"Total ",null,null,8429.9,8812,1,382.1,4.5999999999999996,281.2]

{"sheet":"19","index":22,"n_rows":35,"n_cols":9,"rows_kept":35,"cut":false,"hidden":false,"merged":[[0,0,0,8],[1,0,1,8],[2,0,2,8]]}
["THE HANOVER INSURANCE GROUP"]
["CREDIT QUALITY AND DURATION OF FIXED MATURITIES"]
["September 30,  2016 "]
[]
["(In millions)"]
[]
["CREDIT QUALITY OF FIXED MATURITIES"]
[]
[null,null,"Rating Agency","Amortized",null,null,"Fair",null,"% of Total"]
[null,"NAIC Designation","Equivalent Designation","Cost",null,null,"Value",null,"Fair Value"]
[]
[null,1,"Aaa/Aa/A",null,4786.7,null,4990.1000000000004,null,0.67400000000000004]
[null,2,"Baa",null,1893.5,null,1972.5,null,0.26700000000000002]
[null,3,"Ba",null,210.7,null,219.6,null,0.03]
[null,4,"B",null,195.7,null,202.9,null,2.7E-2]
[null,5,"Caa and lower",null,11.6,null,11.6,null,2E-3]
[null,6,"In or near default",null,2.2000000000000002,null,3.5,null,0]
["Total fixed maturities ",null,null,null,7100.4,null,7400.2,null,1]
[]
[]
[]
[null,"DURATION OF FIXED MATURITIES"]
[]
[null,null,null,"Amortized",null,null,"Fair",null,"% of Total"]
[null,null,null,"Cost",null,null,"Value",null,"Fair Value"]
[]
[null,null,"0-2 Years",null,1389.7,null,1419.1,null,0.192]
[null,null,"2-4 Years",null,2369.5,null,2481.6999999999998,null,0.33500000000000002]
[null,null,"4-6 Years",null,1678.6,null,1759.4,null,0.23799999999999999]
[null,null,"6-8 Years",null,1157.8,null,1216.8,null,0.16400000000000001]
[null,null,"8-10 Years",null,434,null,444.9,null,0.06]
[null,null,"10+ Years",null,70.8,null,78.3,null,1.0999999999999999E-2]
[null,null,"Total fixed maturities",null,7100.4,null,7400.2,null,1]
[]
[null,null,"Weighted Average Duration",null,4.17]

{"sheet":"20","index":23,"n_rows":23,"n_cols":7,"rows_kept":23,"cut":false,"hidden":false,"merged":[[0,1,0,6],[1,1,1,6],[2,1,2,6]]}
[null,"THE HANOVER INSURANCE GROUP"]
[null,"TOP 10 CORPORATE AND MUNICIPAL FIXED MATURITY HOLDINGS"]
[null,"September 30,  2016 "]
[]
[]
[null,null,"(In millions, except percentage data)"]
[null,null,"Issuer","Amortized Cost","Fair Value","As a Percent of  Invested Assets","S&P Ratings"]
[null,null,"Royal Bank of Scotland: (1)"]
[null,null,"Term deposits",48.8,82.1,9.5999999999999992E-3,"A-"]
[null,null,"Notes ",7.6,9,1.1000000000000001E-3,"A"]
[null,null,"Anheuser-Busch",31.5,32.9,3.7000000000000002E-3,"A-"]
[null,null,"AT&T",27.1,27.9,3.2000000000000002E-3,"BBB+"]
[null,null,"Enterprise Holdings",26.9,27.7,3.0999999999999999E-3,"BBB+"]
[null,null,"Bank of America",25.4,26.9,3.0999999999999999E-3,"BBB+"]
[null,null,"Glencore International",24.8,24.9,2.8E-3,"BBB-"]
[null,null,"Morgan Stanley",24.6,25.3,2.8999999999999998E-3,"BBB+"]
[null,null,"Southern Company",24.1,25.5,2.8999999999999998E-3,"A-"]
[null,null,"US Bancorp",24,25,2.8E-3,"A"]
[null,null,"AbbVie",24,24.8,2.8E-3,"A-"]
[null,null,"Oracle",23.9,24.8,2.8E-3,"AA-"]
[null,null,"     Top 10 Corporate and Municipal Fixed",256.3,265.7,3.0099999999999998E-2]
[]
[null,null,"(1) UK government owns 79% of bank equity; term deposits mature in the fourth quarter of 2014."]

{"sheet":"21","index":24,"n_rows":34,"n_cols":21,"rows_kept":34,"cut":false,"hidden":false,"merged":[[9,9,9,10],[9,4,9,5],[9,14,9,15],[9,19,9,20],[1,0,1,20],[2,0,2,20],[7,2,7,10],[7,12,7,20],[8,2,8,5],[8,7,8,10],[8,12,8,15],[8,17,8,20]]}
[]
["THE HANOVER INSURANCE GROUP"]
["RECONCILIATION OF OPERATING INCOME TO NET INCOME "]
[]
[]
[]
[]
[null,null,"Three Months ended September 30",null,null,null,null,null,null,null,null,null,"Nine Months ended September 30"]
[null,null,"2016",null,null,null,null,"2015",null,null,null,null,"2016",null,null,null,null,"2015"]
["(In millions, except per share data)",null,null,"$","Per\nShare (Diluted)",null,null,null,"$","Per\nShare (Diluted)",null,null,null,"$","Per\nShare (Diluted)",null,null,null,"$","Per\nShare (Diluted)"]
["OPERATING INCOME (LOSS)"]
["Commercial Lines",null,"$",42500000,null,null,null,"$",47100000,null,null,null,"$",129200000,null,null,null,"$",126500000]
["Personal Lines",null,null,41700000,null,null,null,null,37200000,null,null,null,null,136200000,null,null,null,null,91600000]
["Chaucer",null,null,48400000,null,null,null,null,41200000,null,null,null,null,87600000,null,null,null,null,132400000]
["Other ",null,null,-2800000,null,null,null,null,-2900000,null,null,null,null,-8100000,null,null,null,null,-8000000]
["Total",null,null,129800000,null,null,null,null,122600000,null,null,null,null,344900000,null,null,null,null,342500000]
[]
["Interest expense ",null,null,-12500000,null,null,null,null,-14800000,null,null,null,null,-42800000,null,null,null,null,-45900000]
[]
["Operating income before income taxes",null,null,117300000,"$",2.73,null,null,107800000,"$",2.4,null,null,302100000,"$",6.97,null,null,296600000,"$",6.58]
[]
["Income tax expense on operating income",null,null,-38700000,null,-0.9,null,null,-35600000,null,-0.79,null,null,-98000000,null,-2.2599999999999998,null,null,-96900000,null,-2.15]
[]
["Operating income after income taxes",null,null,78600000,null,1.83,null,null,72200000,null,1.61,null,null,204100000,null,4.71,null,null,199700000,null,4.43]
["Gain on disposal of U.K. motor business, net of tax",null,null,0,null,0,null,null,0,null,0,null,null,900000,null,0.02,null,null,40300000,null,0.9]
["Other non-operating items:"]
["Net realized investment gains",null,null,4200000,null,0.1,null,null,8000000,null,0.18,null,null,5000000,null,0.12,null,null,30000000,null,0.67]
["Loss from repayment of debt",null,null,0,null,0,null,null,-5600000,null,-0.12,null,null,-86100000,null,-1.99,null,null,-24100000,null,-0.54]
["Other ",null,null,2500000,null,0.06,null,null,200000,null,0,null,null,2800000,null,7.0000000000000007E-2,null,null,-200000,null,0]
["Income tax benefit on other non-operating items",null,null,3000000,null,7.0000000000000007E-2,null,null,2400000,null,0.05,null,null,41600000,null,0.96,null,null,7300000,null,0.16]
["Income from continuing operations, net of taxes",null,null,88300000,null,2.06,null,null,77200000,null,1.72,null,null,168300000,null,3.89,null,null,253000000,null,5.62]
[]
["Discontinued operations, net of taxes",null,null,100000,null,0,null,null,1100000,null,0.02,null,null,300000,null,0,null,null,900000,null,0.02]
["NET INCOME",null,"$",88400000,"$",2.06,null,"$",78300000,"$",1.74,null,"$",168600000,"$",3.89,null,"$",253900000,"$",5.64]

{"sheet":"22","index":25,"n_rows":14,"n_cols":2,"rows_kept":14,"cut":false,"hidden":false,"merged":[[1,0,1,1]]}
[]
["   Non-GAAP Financial Measures"]
[]
[null,"The Hanover uses non-GAAP financial measures as important measures of the Company’s operating performance, which we believe provide investors with additional information regarding management’s evaluation of our results of operations and financial performance. The Company's non-GAAP measures include operating income before interest expense and taxes, total operating income after taxes, total operating income after taxes per share, total book value per share, total book value per share excluding net unrealized gains and losses related to investments, net of tax, tangible book value per share and measures of operating income and loss and combined ratios excluding catastrophe losses (catastrophe losses as discussed here and in all other measures include catastrophe loss development) and reserve development. After-tax operating income EPS (sometimes referred to as “after-tax operating income per share”) is a non-GAAP measure. It is defined as net income (loss) excluding the after-tax impact of net realized investment gains (losses), as well as results from discontinued operations for a period divided by the average number of diluted shares of common stock. "]
[]
[null,"Operating income before interest expense and taxes is net income, excluding interest expense on debt, income taxes and net realized investment gains and losses, because fluctuations in these gains and losses are determined by interest rates, financial markets and the timing of sales.  Operating income before interest expense and taxes also excludes net gains and losses on disposals of businesses, discontinued operations, restructuring costs, extraordinary items, the cumulative effect of accounting changes and certain other items. Operating income before interest expense and taxes is the sum of the operating income from:  Commercial Lines, Personal Lines, Chaucer, and Other.  The Hanover believes that measures of operating income before interest expense and taxes provide investors with a valuable measure of the performance of the Company’s ongoing businesses because they highlight net income attributable to the core operations of the business.  "]
[]
[null,"Book value per share is total shareholders’ equity divided by the number of common shares outstanding. Book value per share excluding net unrealized gains and losses related to investments, net of tax is total shareholders’ equity excluding the after-tax effect of unrealized investment gains and losses divided by the number of common shares outstanding.  Tangible book value per share is total shareholders' equity, excluding goodwill, divided by the number of common shares outstanding."]
[]
[null,"The Hanover also provides measures of operating income and loss ratios that exclude the effects of catastrophe losses.  A catastrophe is a severe loss, resulting from natural or manmade events, including risks such as fire, hurricane, earthquake, windstorm, explosion, terrorism or other similar events. Each catastrophe has unique characteristics. Catastrophes are not predictable as to timing or loss amount in advance. The Hanover believes that providing certain financial metrics and trends excluding the effects of catastrophes is meaningful for investors to understand the variability of periodic earnings and loss ratios.                                               "]
[]
[null,"Prior year reserve development, which can be favorable or unfavorable, represents changes in our estimate of the costs to pay claims from prior years. We believe that a discussion of operating income excluding prior year reserve development is helpful to investors since it provides insight into both our estimate of current year accident results and changes to prior-year reserve estimates."]
[]
[null,"Operating income before and after interest expense and taxes and measures of operating income that exclude the effects of catastrophe losses or reserve development should not be construed as substitutes for net income determined in accordance with GAAP. A reconciliation of income from continuing operations to operating income before interest expense and taxes and income from continuing operations per share to operating income after taxes per share for the three and nine months ended September 30, 2016 and 2015 is set forth on page 21 of this document. The presentation of loss ratios calculated excluding the effects of reserve development and/or catastrophe losses should not be construed as a substitute for loss ratios determined in accordance with GAAP."]

{"sheet":"23","index":26,"n_rows":53,"n_cols":16,"rows_kept":53,"cut":false,"hidden":false,"merged":[[30,2,30,3],[39,2,39,3],[38,2,38,4],[29,2,29,4]]}
[]
[]
[null,"CORPORATE OFFICES AND",null,null,null,null,null,null,"INDUSTRY RATINGS AS OF NOVEMBER 3, 2016",null,null,null,null,null,null,"TRANSFER AGENT"]
[null,"PRINCIPAL SUBSIDIARIES"]
[]
[null,"THE HANOVER INSURANCE GROUP, INC.",null,null,null,null,null,null,null," ","A.M.","Standard",null,null,null,"Computershare Investor Services"]
[null,"440 Lincoln Street",null,null,null,null,null,null,"Financial Strength Ratings",null,"Best","& Poor's","Moody's",null,null,"PO Box 30170"]
[null,"Worcester, MA 01653",null,null,null,null,null,null,null,"The Hanover Insurance",null,null,null,null,null,"College Station, TX  77842-3170"]
[null,null,null,null,null,null,null,null,null,"Company","A","A","A3",null,null,"1-800-317-4454"]
[null,"The Hanover Insurance Company",null,null,null,null,null,null,null,"Citizens Insurance Company"]
[null,"440 Lincoln Street",null,null,null,null,null,null,null,"of America","A","A","-"]
[null,"Worcester, MA 01653"]
[null,null,null,null,null,null,null,null,null,null,null,null,null,null,null,"COMMON STOCK"]
[null,"Citizens Insurance Company of America",null,null,null,null,null,null,null,null,"A.M.","Standard"]
[null,"808 North Highlander Way",null,null,null,null,null,null,"Debt Ratings",null,"Best","& Poor's","Moody's",null,null,"Common stock of The Hanover Insurance Group is traded "]
[null,"Howell, MI 48843",null,null,null,null,null,null,null,"The Hanover Insurance Group, Inc.",null,null,null,null,null,"on the New York Stock Exchange under the symbol \"THG\"."]
[null,null,null,null,null,null,null,null,null,"Senior Debt","bbb","BBB","Baa3"]
[null,"Chaucer Holdings Limited",null,null,null,null,null,null,null,"Subordinated Debentures","bb+","BB+","Ba1"]
[null,"Plantation Place",null,null,null,null,null,null,null,null,null,null,null,null,null,"INQUIRIES "]
[null,"30 Fenchurch Street"]
[null,"London",null,null,null,null,null,null,null,null,null,null,null,null,null,"Oksana Lukasheva"]
[null,"EC3M 3AD",null,null,null,null,null,null,null,null,null,null,null,null,null,"Vice President"]
[null,null,null,null,null,null,null,null,null,null,null,null,null,null,null,"Investor Relations"]
[null,"MARKET AND DIVIDEND INFORMATION",null,null,null,null,null,null,null,null,null,null,null,null,null,"(508) 855-2063"]
[null,null,null,null,null,null,null,null,null,null,null,null,null,null,null,"olukasheva@hanover.com"]
[null,"The following tables set forth the high and low closing "]
[null,"sales prices of our common stock and cash dividends ",null,null,null,null,null,null,null,null,null,null," "]
[null,"for the periods indicated:",null,null,null,null,null,null,null,null,null,null,null,null,null,"INVESTOR INFORMATION LINE"]
[]
[null,"Quarter Ended","2016",null,null,null,null,null,null,null,null,null,null,null,null,"Dial 1-800-407-5222 to receive additional printed information,"]
[null,null,"Price Range",null,"Dividends",null,null,null,null,null,null,null,null,null,null,"fax-on-demand services or other prerecorded messages."]
[null,null,"High","Low","Per Share",null," "]
[null,{"$f":"\"March 31\"","v":"March 31"},90.68,76.900000000000006,0.46,null,null,null,null,null,null,null,null,null,null,"Please visit our internet site at http:// www.Hanover.com"]
[null,{"$f":"\"June 30\"","v":"June 30"},91.15,80.41,0.46]
[null,{"$f":"\"September 30\"","v":"September 30"},84.58,74.099999999999994,0.46]
[null,null,null,null,null,null,null,null,null,null,null,null," "]
[]
[]
[null,"Quarter Ended","2015"]
[null,null,"Price Range",null,"Dividends"]
[null,null,"High","Low","Per Share",null," "]
[null,{"$f":"\"March 31\"","v":"March 31"},73.349999999999994,68.180000000000007,0.41]
[null,{"$f":"\"June 30\"","v":"June 30"},74.87,68.569999999999993,0.41]
[null,{"$f":"\"September 30\"","v":"September 30"},82.82,75.39,0.41]
[null,{"$f":"\"December 31\"","v":"December 31"},86.58,77.400000000000006,0.46]
[]
[null,null,null," "]
[null," ",null," "," "]
[null," "]
[null," "]
[null," "]
[null," "]
[null," "]

{"sheet":"BS Equity Parentheticals","index":27,"n_rows":23,"n_cols":10,"rows_kept":23,"cut":false,"hidden":true,"merged":[]}
[]
["FOOTNOTE INPUT"]
[{"$f":"FORMQTR&\", \"&VALUE(CV)","v":{"$error":"#REF!"}}]
[]
[]
["Page #","Footnote",null,null,null,null,{"$f":"\"YTD \"&RIGHT(CV,2)","v":{"$error":"#REF!"}},null,null,{"$f":"\"YTD \"&RIGHT(PV,2)","v":{"$error":"#REF!"}}]
[]
[]
[null,null,null,null,null,null,"CENTER-SUM",null,null,{"$f":"+G9","v":"CENTER-SUM"}]
[null,null,null,null,null,null,"PRODUCT",null,null,{"$f":"+G10","v":"PRODUCT"}]
[null,null,null,null,null,null,"LEGAL",null,null,"LEGAL"]
[null,null,null,null,null,null,"PROD-Q",null,null,"PROD-Q"]
[null,null,null,null,null,null,{"$f":"VALUE(CV)&\" Actuals\"","v":{"$error":"#REF!"}},null,null,{"$f":"VALUE(PV)&\" Actuals\"","v":{"$error":"#REF!"}}]
[null,null,null,null,null,null,{"$f":"CY","v":{"$error":"#REF!"}},null,null,{"$f":"PYE","v":{"$error":"#REF!"}}]
[null,null,null,null,null,null,"BOOK TYPE",null,null,"BOOK TYPE"]
[]
[3,"Commons Stock Issued"]
[null,"Commons Stock Issued",{"$f":"+CSISSUE_CY","v":60.5},null,null,"ICSTOCK",{"$f":"ROUND(G19/1000000,1)","v":60.5},null,"ICSTOCK",{"$f":"ROUND(J19/1000000,1)","v":60.5}]
[null,null,null,null,null,"ICSTOCK",60475872,null,"ICSTOCK",60475872]
[3,"Treasury Stock Shares Outstanding"]
[null,"Treasury Stock Shares Outstanding - per essbase",{"$f":"+TSOUT_CY","v":18.2},null,null,"TSTOCKOUT",{"$f":"(ROUND(G22/1000000,1))+(M21/1000000)","v":16.7},null,"TSTOCKOUT",{"$f":"(ROUND(J22/1000000,1))+(P21/1000000)","v":16.8}]
[null,"Common shares outstanding",{"$f":"ROUND('2'!P54/1000000,1)","v":42.3},null,null,"TSTOCKOUT",16733094,null,"TSTOCKOUT",16820438]
[null,"Treasury Stock Shares Outstanding - rounded for balance sheet",{"$f":"+C18-C22","v":18.2}]

{"sheet":"Development","index":28,"n_rows":19,"n_cols":22,"rows_kept":19,"cut":false,"hidden":true,"merged":[]}
[null,"BOOK TYPE","Product Qualifier","Summary Centers","Consolidated BU Rollup"]
[null,{"$f":"CQ","v":{"$error":"#REF!"}},{"$f":"CQ","v":{"$error":"#REF!"}},{"$f":"CQ","v":{"$error":"#REF!"}},{"$f":"_TEB2","v":{"$error":"#REF!"}},{"$f":"_TEB2","v":{"$error":"#REF!"}},{"$f":"_TEB2","v":{"$error":"#REF!"}},{"$f":"_TEB3","v":{"$error":"#REF!"}},{"$f":"_TEB3","v":{"$error":"#REF!"}},{"$f":"_TEB3","v":{"$error":"#REF!"}},{"$f":"_TEB4","v":{"$error":"#REF!"}},{"$f":"_TEB4","v":{"$error":"#REF!"}},{"$f":"_TEB4","v":{"$error":"#REF!"}},{"$f":"CQ","v":{"$error":"#REF!"}},{"$f":"CQ","v":{"$error":"#REF!"}},{"$f":"CQ","v":{"$error":"#REF!"}},{"$f":"CY","v":{"$error":"#REF!"}},{"$error":"#REF!"},{"$error":"#REF!"},{"$error":"#REF!"},{"$error":"#REF!"},{"$error":"#REF!"}]
[null,{"$f":"VALUE(PV)&\" Actuals\"","v":{"$error":"#REF!"}},{"$f":"VALUE(PV)&\" Actuals\"","v":{"$error":"#REF!"}},{"$f":"VALUE(PV)&\" Actuals\"","v":{"$error":"#REF!"}},{"$f":"VALUE(_TYR2)&\" Actuals\"","v":{"$error":"#REF!"}},{"$f":"VALUE(_TYR2)&\" Actuals\"","v":{"$error":"#REF!"}},{"$f":"VALUE(_TYR2)&\" Actuals\"","v":{"$error":"#REF!"}},{"$f":"VALUE(_TYR3)&\" Actuals\"","v":{"$error":"#REF!"}},{"$f":"VALUE(_TYR3)&\" Actuals\"","v":{"$error":"#REF!"}},{"$f":"VALUE(_TYR3)&\" Actuals\"","v":{"$error":"#REF!"}},{"$f":"VALUE(_TYR4)&\" Actuals\"","v":{"$error":"#REF!"}},{"$f":"VALUE(_TYR4)&\" Actuals\"","v":{"$error":"#REF!"}},{"$f":"VALUE(_TYR4)&\" Actuals\"","v":{"$error":"#REF!"}},{"$f":"VALUE(CV)&\" Actuals\"","v":{"$error":"#REF!"}},{"$f":"VALUE(CV)&\" Actuals\"","v":{"$error":"#REF!"}},{"$f":"VALUE(CV)&\" Actuals\"","v":{"$error":"#REF!"}},{"$f":"VALUE(PV)&\" Actuals\"","v":{"$error":"#REF!"}},{"$f":"VALUE(PV)&\" Actuals\"","v":{"$error":"#REF!"}},{"$f":"VALUE(PV)&\" Actuals\"","v":{"$error":"#REF!"}},{"$f":"VALUE(CV)&\" Actuals\"","v":{"$error":"#REF!"}},{"$f":"VALUE(CV)&\" Actuals\"","v":{"$error":"#REF!"}},{"$f":"VALUE(CV)&\" Actuals\"","v":{"$error":"#REF!"}}]
[null,"PY-Loss-Dev(Fav)Unfav","PY-LAE-Dev(Fav)Unfav","PYLOSS-LAE DEV (Fav)Unfav","PY-Loss-Dev(Fav)Unfav","PY-LAE-Dev(Fav)Unfav","PYLOSS-LAE DEV (Fav)Unfav","PY-Loss-Dev(Fav)Unfav","PY-LAE-Dev(Fav)Unfav","PYLOSS-LAE DEV (Fav)Unfav","PY-Loss-Dev(Fav)Unfav","PY-LAE-Dev(Fav)Unfav","PYLOSS-LAE DEV (Fav)Unfav","PY-Loss-Dev(Fav)Unfav","PY-LAE-Dev(Fav)Unfav","PYLOSS-LAE DEV (Fav)Unfav","PY-Loss-Dev(Fav)Unfav","PY-LAE-Dev(Fav)Unfav","PYLOSS-LAE DEV (Fav)Unfav","PY-Loss-Dev(Fav)Unfav","PY-LAE-Dev(Fav)Unfav","PYLOSS-LAE DEV (Fav)Unfav"]
["Workers' Compensation",-3500000,"-",-3500000,-5100000,700000,-4400000,-1800000,200000,-1600000,-500000,200000,-300000,"-","-","-",-11100000,100000,-11000000,-2300000,400000,-1900000]
["Commercial Automobile",1900000,600000,2500000,2000000,600000,2600000,2700000,700000,3400000,3900000,200000,4100000,"-","-","-",6500000,1400000,7900000,6600000,900000,7500000]
["Commercial Multiple Peril",-1100000,1100000,0,-2300000,300000,-2000000,100000,-800000,-700000,-4400000,300000,-4100000,"-","-","-",-5200000,1200000,-4000000,-4300000,-500000,-4800000]
["Other Property & Casualty",4200000,-900000,3300000,2600000,1500000,4100000,-1300000,800000,-500000,900000,1200000,2100000,"-","-","-",9600000,500000,10100000,-400000,2000000,1600000]
["Total Commercial",1500000,800000,2300000,-2800000,3100000,300000,-300000,900000,600000,-100000,1900000,1800000,"-","-","-",-200000,3200000,3000000,-400000,2800000,2400000]
["Personal Automobile",2700000,400000,3100000,2300000,900000,3200000,-700000,-300000,-1000000,-2600000,-400000,-3000000,"-","-","-",9700000,700000,10400000,-3300000,-700000,-4000000]
["Homeowners",-1000000,"-",-1000000,100000,-100000,0,400000,-400000,0,1400000,-400000,1000000,"-","-","-",300000,-300000,0,1800000,-800000,1000000]
["Personal Other","-","-","-",100000,-100000,0,100000,-100000,0,-300000,100000,-200000,"-","-","-",100000,0,100000,-200000,0,-200000]
["Total Personal",1700000,400000,2100000,2500000,700000,3200000,-200000,-800000,-1000000,-1500000,-700000,-2200000,"-","-","-",10100000,400000,10500000,-1700000,-1500000,-3200000]
["Opus Investment Mgmt","-","-","-","-","-","-","-","-","-","-","-","-","-","-","-","-","-","-","-","-","-"]
["AMGRO-PROD","-","-","-","-","-","-","-","-","-","-","-","-","-","-","-","-","-","-","-","-","-"]
["VOLPROD",-200000,"-",-200000,400000,"-",400000,300000,0,300000,300000,100000,400000,"-","-","-",200000,700000,900000,600000,100000,700000]
["CORP-OTHER","-","-","-","-","-","-","-","-","-","-","-","-","-","-","-","-","-","-","-","-","-"]
["OTHERP&C",-200000,"-",-200000,400000,"-",400000,300000,0,300000,300000,100000,400000,"-","-","-",200000,700000,900000,600000,100000,700000]
["P&C Products",-24800000,1200000,-23600000,-22700000,3800000,-18900000,-19800000,100000,-19700000,-30500000,1300000,-29200000,"-","-","-",-61700000,4300000,-57400000,-50300000,1400000,-48900000]

{"sheet":"Proof-THG","index":29,"n_rows":41,"n_cols":14,"rows_kept":41,"cut":false,"hidden":true,"merged":[]}
[]
["Financial Highlights"]
[{"$f":"FORMQTR&\", \"&VALUE(CV)","v":{"$error":"#REF!"}}]
[null,null,null,null,{"$f":"CQ&\"' \"&RIGHT(CV,2)","v":{"$error":"#REF!"}},null,{"$f":"CQ&\"' \"&RIGHT(PV,2)","v":{"$error":"#REF!"}},null,null,null,null,{"$f":"\"YTD\"&\" \"&RIGHT(CV,2)","v":{"$error":"#REF!"}},null,{"$f":"\"YTD\"&\" \"&RIGHT(PV,2)","v":{"$error":"#REF!"}}]
[null,"Page #'s",null,null,"Variance",null,"Variance",null,"Page #'s",null,null,"Variance",null,"Variance"]
[]
["SEGMENT INCOME "]
["    Property and Casualty"]
["         Personal Lines",1,9,null,{"$f":"+#REF!-#REF!","v":{"$error":"#REF!"}},null,{"$f":"+#REF!-#REF!","v":{"$error":"#REF!"}},null,{"$f":"+$B$9","v":1},10,null,{"$f":"+#REF!-#REF!","v":{"$error":"#REF!"}},null,{"$f":"+#REF!-#REF!","v":{"$error":"#REF!"}}]
["        Commercial Lines ",{"$f":"+B$9","v":1},9,null,{"$f":"+#REF!-#REF!","v":{"$error":"#REF!"}},null,{"$f":"+#REF!-#REF!","v":{"$error":"#REF!"}},null,{"$f":"+$B$9","v":1},{"$f":"+J9","v":10},null,{"$f":"+#REF!-#REF!","v":{"$error":"#REF!"}},null,{"$f":"+#REF!-#REF!","v":{"$error":"#REF!"}}]
["        Other",1,9,null,{"$f":"+#REF!-#REF!","v":{"$error":"#REF!"}},null,{"$f":"+#REF!-#REF!","v":{"$error":"#REF!"}},null,{"$f":"+$B$9","v":1},{"$f":"+J9","v":10},null,{"$f":"+#REF!-#REF!","v":{"$error":"#REF!"}},null,{"$f":"+#REF!-#REF!","v":{"$error":"#REF!"}}]
["Total Property and Casualty",1,9,null,{"$f":"+#REF!-#REF!","v":{"$error":"#REF!"}},null,{"$f":"+#REF!-#REF!","v":{"$error":"#REF!"}},null,{"$f":"+$B$9","v":1},{"$f":"+J9","v":10},null,{"$f":"+#REF!-#REF!","v":{"$error":"#REF!"}},null,{"$f":"+#REF!-#REF!","v":{"$error":"#REF!"}}]
[]
["Life Companies",{"$f":"+B9","v":1},13,null,{"$f":"+#REF!-#REF!","v":{"$error":"#REF!"}},null,{"$f":"+#REF!-#REF!","v":{"$error":"#REF!"}},null,{"$f":"+B9","v":1},13,null,{"$f":"+#REF!-#REF!","v":{"$error":"#REF!"}},null,{"$f":"+#REF!-#REF!","v":{"$error":"#REF!"}}]
[]
["Income Reconciliation"]
["Income from continuing operations, net of taxes",{"$f":"+B9","v":1},4,null,{"$f":"+#REF!-'3'!D29","v":{"$error":"#REF!"}},null,{"$f":"+#REF!-'3'!G29","v":{"$error":"#REF!"}},null,{"$f":"+$B$17","v":1},{"$f":"+$C$17","v":4},null,{"$f":"+#REF!-'3'!L29","v":{"$error":"#REF!"}},null,{"$f":"+#REF!-'3'!O29","v":{"$error":"#REF!"}}]
["(Loss) Income from operations of discontinued FAFLIC"]
["   business, net of taxes",{"$f":"+B$17","v":1},{"$f":"+C$17","v":4},null,{"$f":"+#REF!-'3'!D31","v":{"$error":"#REF!"}},null,{"$f":"+#REF!-'3'!G31","v":{"$error":"#REF!"}},null,{"$f":"+$B$17","v":1},{"$f":"+$C$17","v":4},null,{"$f":"+#REF!-'3'!L31","v":{"$error":"#REF!"}},null,{"$f":"+#REF!-'3'!#REF!","v":{"$error":"#REF!"}}]
["Income from operations of AMGRO, net of taxes",1,4,null,{"$f":"+#REF!-'3'!#REF!","v":{"$error":"#REF!"}},null,{"$f":"+#REF!-'3'!#REF!","v":{"$error":"#REF!"}},null,1,4,null,{"$f":"+#REF!-'3'!#REF!","v":{"$error":"#REF!"}},null,{"$f":"+#REF!-'3'!#REF!","v":{"$error":"#REF!"}}]
["Gain on disposal of variable business",{"$f":"+B$17","v":1},4,null,{"$f":"+#REF!-'3'!#REF!","v":{"$error":"#REF!"}},null,{"$f":"+#REF!-'3'!#REF!","v":{"$error":"#REF!"}},null,1,4,null,{"$f":"+#REF!-'3'!#REF!","v":{"$error":"#REF!"}},null,{"$f":"+#REF!-'3'!#REF!","v":{"$error":"#REF!"}}]
[" Income before cumulative effect of accounting change",1,4,null,{"$f":"+#REF!-'3'!#REF!","v":{"$error":"#REF!"}},null,{"$f":"+#REF!-'3'!#REF!","v":{"$error":"#REF!"}},null,1,4,null,{"$f":"+#REF!-'3'!#REF!","v":{"$error":"#REF!"}},null,{"$f":"+#REF!-'3'!#REF!","v":{"$error":"#REF!"}}]
["Other",1,4,null,{"$f":"+#REF!-'3'!#REF!","v":{"$error":"#REF!"}},null,{"$f":"+#REF!-'3'!#REF!","v":{"$error":"#REF!"}},null,1,4,null,{"$f":"+#REF!-'3'!#REF!","v":{"$error":"#REF!"}},null,{"$f":"+#REF!-'3'!#REF!","v":{"$error":"#REF!"}}]
["Net (loss) income ",1,4,null,{"$f":"+#REF!-'3'!D33","v":{"$error":"#REF!"}},null,{"$f":"+#REF!-'3'!G33","v":{"$error":"#REF!"}},null,1,4,null,{"$f":"+#REF!-'3'!L33","v":{"$error":"#REF!"}},null,{"$f":"+#REF!-'3'!O33","v":{"$error":"#REF!"}}]
[]
["Shareholders' Equity"]
["   The Hanover Insurance Company (consolidated)",3,8,null,{"$f":"+#REF!-#REF!","v":{"$error":"#REF!"}},null,{"$f":"+#REF!-#REF!","v":{"$error":"#REF!"}},null,"xxxxxxxxxx","xxxxxxx",null,"xxxxxxxxxxx",null,"xxxxxxxxxxx"]
["   First Allmerica Financial Life Ins Company (consolidated) ",{"$f":"+B27","v":3},14,null,{"$f":"+#REF!-#REF!","v":{"$error":"#REF!"}},null,{"$f":"+#REF!-#REF!","v":{"$error":"#REF!"}},null,"xxxxxxxxxx","xxxxxxx",null,"xxxxxxxxxxx",null,"xxxxxxxxxxx"]
["   THG Holding Company debt (1)",{"$f":"+B27","v":3},"PQ",null,{"$f":"+#REF!-#REF!","v":{"$error":"#REF!"}},null,{"$f":"+#REF!+499.5*1000000","v":{"$error":"#REF!"}},null,"xxxxxxxxxx","xxxxxxx",null,"xxxxxxxxxxx",null,"xxxxxxxxxxx"]
["Total shareholders' equity",{"$f":"+B27","v":3},6,null,{"$f":"+#REF!-'4'!D45","v":{"$error":"#REF!"}},null,{"$f":"+#REF!-'4'!G45","v":{"$error":"#REF!"}},null,"xxxxxxxxxx","xxxxxxx",null,"xxxxxxxxxxx",null,"xxxxxxxxxxx"]
[]
["PER SHARE DATA (DILUTED):"]
["Income from continuing operations, net of taxes",2,5,null,{"$f":"+#REF!-#REF!","v":{"$error":"#REF!"}},null,{"$f":"+#REF!-#REF!","v":{"$error":"#REF!"}},null,{"$f":"+$B$33","v":2},{"$f":"+$C$33","v":5},null,{"$f":"+#REF!-#REF!","v":{"$error":"#REF!"}},null,{"$f":"+#REF!-#REF!","v":{"$error":"#REF!"}}]
["(Loss) Income from operations of discontinued FAFLIC"]
["   business, net of taxes",{"$f":"+$B$33","v":2},{"$f":"+$C$33","v":5},null,{"$f":"+#REF!-#REF!","v":{"$error":"#REF!"}},null,{"$f":"+#REF!-#REF!","v":{"$error":"#REF!"}},null,{"$f":"+$B$33","v":2},{"$f":"+$C$33","v":5},null,{"$f":"+#REF!-#REF!","v":{"$error":"#REF!"}},null,{"$f":"+#REF!-#REF!","v":{"$error":"#REF!"}}]
["Income from operations of AMGRO, net of taxes",{"$f":"+$B$33","v":2},{"$f":"+$C$33","v":5},null,{"$f":"+#REF!-#REF!","v":{"$error":"#REF!"}},null,{"$f":"+#REF!-#REF!","v":{"$error":"#REF!"}},null,{"$f":"+$B$33","v":2},{"$f":"+$C$33","v":5},null,{"$f":"+#REF!-#REF!","v":{"$error":"#REF!"}},null,{"$f":"+#REF!-#REF!","v":{"$error":"#REF!"}}]
["Gain on disposal of variable business",{"$f":"+$B$33","v":2},{"$f":"+$C$33","v":5},null,{"$f":"+#REF!-#REF!","v":{"$error":"#REF!"}},null,{"$f":"+#REF!-#REF!","v":{"$error":"#REF!"}},null,{"$f":"+$B$33","v":2},{"$f":"+$C$33","v":5},null,{"$f":"+#REF!-#REF!","v":{"$error":"#REF!"}},null,{"$f":"+#REF!-#REF!","v":{"$error":"#REF!"}}]
["Other",{"$f":"+$B$33","v":2},{"$f":"+$C$33","v":5},null,{"$f":"+#REF!-#REF!","v":{"$error":"#REF!"}},null,{"$f":"+#REF!-#REF!","v":{"$error":"#REF!"}},null,{"$f":"+$B$33","v":2},{"$f":"+$C$33","v":5},null,{"$f":"+#REF!-#REF!","v":{"$error":"#REF!"}},null,{"$f":"+#REF!-#REF!","v":{"$error":"#REF!"}}]
["Cumulative effect of change in accounting "]
["   principle, net of taxes",{"$f":"+$B$33","v":2},{"$f":"+$C$33","v":5},null,{"$f":"+#REF!-#REF!","v":{"$error":"#REF!"}},null,{"$f":"+#REF!-#REF!","v":{"$error":"#REF!"}},null,{"$f":"+$B$33","v":2},{"$f":"+$C$33","v":5},null,{"$f":"+#REF!-#REF!","v":{"$error":"#REF!"}},null,{"$f":"+#REF!-#REF!","v":{"$error":"#REF!"}}]
["Net income ",{"$f":"+$B$33","v":2},{"$f":"+$C$33","v":5},null,{"$f":"+#REF!-#REF!","v":{"$error":"#REF!"}},null,{"$f":"+#REF!-#REF!","v":{"$error":"#REF!"}},null,{"$f":"+$B$33","v":2},{"$f":"+$C$33","v":5},null,{"$f":"+#REF!-#REF!","v":{"$error":"#REF!"}},null,{"$f":"+#REF!-#REF!","v":{"$error":"#REF!"}}]

{"sheet":"Proof-BS","index":30,"n_rows":57,"n_cols":12,"rows_kept":57,"cut":false,"hidden":true,"merged":[]}
["CONSOLIDATED BALANCE SHEETS"]
[null,null,null,null,null,null,"THG"]
[null,null,"THG",null,"P&C",null,"less P&C",null,"Ref #",null,"Variance","Comments"]
["ASSETS",null,"SS Page #6",null,"SS Page #8",null,null,null,null,null,null," "]
["Investments:"]
["     Fixed maturities, at fair value",null,{"$f":"+'4'!D10","v":7400200000},null,{"$f":"+#REF!","v":{"$error":"#REF!"}},null,{"$f":"+C6-E6","v":{"$error":"#REF!"}},null,1,null,{"$f":"SUM(G6)-SUM(#REF!)","v":{"$error":"#REF!"}}]
[{"$f":"\"     Equity securities, at fair value\"","v":"     Equity securities, at fair value"},null,{"$f":"+'4'!D11","v":612500000},null,{"$f":"+#REF!","v":{"$error":"#REF!"}},null,{"$f":"+C7-E7","v":{"$error":"#REF!"}},null,2,null,{"$f":"SUM(G7)-SUM(#REF!)","v":{"$error":"#REF!"}},"Rounding must go to P&C or Life"]
["     Mortgage loans",null,{"$f":"+'4'!#REF!","v":{"$error":"#REF!"}},null,{"$f":"+#REF!","v":{"$error":"#REF!"}},null,{"$f":"+C8-E8","v":{"$error":"#REF!"}},null,3,null,{"$f":"SUM(G8)-SUM(#REF!)","v":{"$error":"#REF!"}},"ok - mtg elim"]
["     Policy loans",null,{"$f":"+'4'!#REF!","v":{"$error":"#REF!"}},null,null,null,{"$f":"+C9-E9","v":{"$error":"#REF!"}},null,4,null,{"$f":"SUM(G9)-SUM(#REF!)","v":{"$error":"#REF!"}}]
["     Other long-term investments",null,{"$f":"+'4'!D12","v":483400000},null,{"$f":"+#REF!","v":{"$error":"#REF!"}},null,{"$f":"+C10-E10","v":{"$error":"#REF!"}},null,5,null,{"$f":"SUM(G10)-SUM(#REF!)","v":{"$error":"#REF!"}}]
["          Total investments",null,{"$f":"+'4'!D13","v":8496100000},null,{"$f":"+#REF!","v":{"$error":"#REF!"}},null,"xxxxxxxxxxxxxxxx"]
["Cash and cash equivalents",null,{"$f":"+'4'!D14","v":315900000},null,{"$f":"+#REF!","v":{"$error":"#REF!"}},null,{"$f":"+C12-E12","v":{"$error":"#REF!"}},null,6,null,{"$f":"SUM(G12)-SUM(#REF!)","v":{"$error":"#REF!"}}]
["Accrued investment income",null,{"$f":"+'4'!D15","v":62500000},null,{"$f":"+#REF!","v":{"$error":"#REF!"}},null,{"$error":"#REF!"},null,7,null,{"$f":"SUM(G13)-SUM(#REF!)","v":{"$error":"#REF!"}}]
["Premiums, accounts and notes receivable, net",null,{"$f":"+'4'!D16","v":1534900000},null,{"$f":"+#REF!","v":{"$error":"#REF!"}},null,{"$error":"#REF!"},null,8,null,{"$f":"SUM(G14)-SUM(#REF!)","v":{"$error":"#REF!"}}]
["Reinsurance receivable on paid and unpaid",null," ",null," "]
["     losses, benefits and unearned premiums",null,{"$f":"+'4'!D17","v":2655100000},null,{"$f":"+#REF!","v":{"$error":"#REF!"}},null,{"$error":"#REF!"},null,9,null,{"$f":"SUM(G16)-SUM(#REF!)","v":{"$error":"#REF!"}}]
["Deferred policy acquistion costs",null,{"$f":"+'4'!D18","v":537400000},null,{"$f":"+#REF!","v":{"$error":"#REF!"}},null,{"$error":"#REF!"},null,10,null,{"$f":"SUM(G17)-SUM(#REF!)","v":{"$error":"#REF!"}}]
["Deferred federal income taxes",null,{"$f":"+'4'!D19","v":16200000},null,{"$f":"+#REF!","v":{"$error":"#REF!"}},null,{"$error":"#REF!"},null,11,null,{"$f":"SUM(G18)-SUM(#REF!)","v":{"$error":"#REF!"}}]
["Goodwill",null,{"$f":"+'4'!D20","v":185100000},null,{"$f":"+#REF!","v":{"$error":"#REF!"}},null,{"$error":"#REF!"},null,12,null,{"$f":"SUM(G19)-SUM(#REF!)","v":{"$error":"#REF!"}}]
["Other assets",null,{"$f":"+'4'!D21","v":476500000},null,{"$f":"+#REF!","v":{"$error":"#REF!"}},null,{"$error":"#REF!"},null,13,null,{"$f":"SUM(G20)-SUM(#REF!-#REF!-#REF!)","v":{"$error":"#REF!"}}]
["Separate account assets",null,{"$f":"+'4'!#REF!","v":{"$error":"#REF!"}},null,null,null,{"$error":"#REF!"},null,"n/a",null," "]
["     Total assets",null,{"$f":"+'4'!D23","v":14363700000},null,{"$f":"+#REF!","v":{"$error":"#REF!"}},null,"xxxxxxxxxxxxxxxx",null,null,null,{"$f":"SUM(K6:K20)","v":{"$error":"#REF!"}}]
[" "]
["LIABILITIES AND SHAREHOLDERS' EQUITY"]
[]
["LIABILITIES"]
["Policy liabilities and accruals:"]
["     Future policy benefits",null,{"$f":"+'4'!#REF!","v":{"$error":"#REF!"}},null,null,null,{"$f":"+C28-E28","v":{"$error":"#REF!"}},null,14,null,{"$f":"SUM(G28)+SUM(#REF!)","v":{"$error":"#REF!"}}]
["     Outstanding claims, losses and loss adjustment expenses",null,{"$f":"+'4'!D28","v":6802300000},null,{"$f":"+#REF!","v":{"$error":"#REF!"}},null,{"$f":"+C29-E29","v":{"$error":"#REF!"}},null,15,null,{"$f":"SUM(G29)+SUM(#REF!)","v":{"$error":"#REF!"}}]
["     Unearned premiums",null,{"$f":"+'4'!D29","v":2684800000},null,{"$f":"+#REF!","v":{"$error":"#REF!"}},null,{"$f":"+C30-E30","v":{"$error":"#REF!"}},null,16,null,{"$f":"SUM(G30)+SUM(#REF!)","v":{"$error":"#REF!"}}]
["     Contractholder deposit funds and other policy liabilities",null,{"$f":"+'4'!#REF!","v":{"$error":"#REF!"}},null,{"$f":"+#REF!","v":{"$error":"#REF!"}},null,{"$f":"+C31-E31","v":{"$error":"#REF!"}},null,17,null,{"$f":"SUM(G31)+SUM(#REF!)","v":{"$error":"#REF!"}}]
["          Total policy liabilities and accruals",null,{"$f":"+'4'!#REF!","v":{"$error":"#REF!"}},null,{"$f":"+#REF!","v":{"$error":"#REF!"}},null,"xxxxxxxxxxxxxxxx"]
["Expenses and taxes payable",null,{"$f":"+'4'!D30","v":662300000},null,{"$f":"+#REF!","v":{"$error":"#REF!"}},null,{"$f":"+C33-E33","v":{"$error":"#REF!"}},null,18,null,{"$f":"SUM(G33)+SUM(#REF!+#REF!)","v":{"$error":"#REF!"}},"Rounding is okay here."]
["Reinsurance premiums payable",null,{"$f":"+'4'!D31","v":283700000},null,{"$f":"+#REF!","v":{"$error":"#REF!"}},null,{"$f":"+C34-E34","v":{"$error":"#REF!"}},null,19,null,{"$f":"SUM(G34)+SUM(#REF!)","v":{"$error":"#REF!"}}]
["Trust instruments supported by funding obligations",null,{"$f":"+'4'!#REF!","v":{"$error":"#REF!"}},null,null,null,{"$f":"+C35-E35","v":{"$error":"#REF!"}},null,20,null,{"$f":"SUM(G35)+SUM(#REF!)","v":{"$error":"#REF!"}}]
["Long-term debt",null,{"$f":"+'4'!D32","v":797900000},null,{"$f":"#REF!","v":{"$error":"#REF!"}},null,{"$f":"+C36-E36","v":{"$error":"#REF!"}},null,21,null,{"$f":"SUM(G36)+SUM(#REF!)","v":{"$error":"#REF!"}},"PDI"]
["Separate account liabilities",null,{"$f":"+'4'!#REF!","v":{"$error":"#REF!"}},null,null,null,{"$f":"+C37-E37","v":{"$error":"#REF!"}},null,22,null,{"$f":"SUM(G37)+SUM(#REF!)","v":{"$error":"#REF!"}}]
["     Total liabilities",null,{"$f":"+'4'!D34","v":11318000000},null,{"$f":"+#REF!","v":{"$error":"#REF!"}},null,"xxxxxxxxxxxxxxxx"]
[]
["SHAREHOLDERS' EQUITY"]
["Preferred stock, par value $xx per share;"]
["     authorized xxx million shares; issued none",null,{"$f":"+'4'!D38","v":0},null,null,null,{"$f":"+C42-E42","v":0},null,23,null,{"$f":"SUM(G42)+SUM(#REF!)","v":{"$error":"#REF!"}}]
["Common stock, par value $.xx per share; authorized xxx.0 million"]
[{"$f":"\"     shares; issued\"","v":"     shares; issued"},null,{"$f":"+'4'!D40","v":600000},null,{"$f":"+#REF!","v":{"$error":"#REF!"}},null,{"$error":"#REF!"},null,24,null,{"$f":"SUM(G44)+SUM(#REF!)","v":{"$error":"#REF!"}}]
["Additional paid-in capital",null,{"$f":"+'4'!D41","v":1838900000},null,{"$f":"+#REF!","v":{"$error":"#REF!"}},null,{"$error":"#REF!"},null,25,null,{"$f":"SUM(G45)+SUM(#REF!+#REF!)","v":{"$error":"#REF!"}}]
["Accumulated other comprehensive (loss) income",null,{"$f":"+'4'!D42","v":227000000},null,{"$f":"+#REF!","v":{"$error":"#REF!"}},null,{"$error":"#REF!"},null,26,null,{"$f":"SUM(G46)+SUM(#REF!)","v":{"$error":"#REF!"}},"rounding ok here…assume variance is other P&C"]
["Retained earnings",null,{"$f":"+'4'!D43","v":1910400000},null,{"$f":"+#REF!","v":{"$error":"#REF!"}},null,{"$error":"#REF!"},null,27,null,{"$f":"SUM(G47)+SUM(#REF!)","v":{"$error":"#REF!"}},"rounding ok here…assume variance is other P&C"]
[{"$f":"\"Treasury stock at cost\"","v":"Treasury stock at cost"},null,{"$f":"+'4'!D44","v":-931200000},null,null,null,-931200000,null,28,null,{"$f":"SUM(G48)+SUM(#REF!)","v":{"$error":"#REF!"}}]
["     Total shareholders' equity",null,{"$f":"+'4'!D45","v":3045700000},null,{"$f":"+#REF!","v":{"$error":"#REF!"}},null,"xxxxxxxxxxxxxxxx"]
["     Total liabilities and shareholders' equity",null,{"$f":"+'4'!D46","v":14363700000},null,{"$f":"+#REF!","v":{"$error":"#REF!"}},null,"xxxxxxxxxxxxxxxx"]
[]
[]
[]
[]
[null,null,null,"= Items highlighted are not applicable to the individual business unit noted."]
[]
[null,null,null,"= Items that should be zero (no reconciliation necessary)."]

{"sheet":"BS Retrieve","index":31,"n_rows":48,"n_cols":10,"rows_kept":48,"cut":false,"hidden":true,"merged":[]}
[null,"BOOK TYPE","Product Qualifier","Corporate-Capacity","2010 Non Rounded",{"$f":"CY","v":{"$error":"#REF!"}},"All Products"]
[null,"SMAFCO Consolidated","Campania Consolidated","Verlan Consolidated","Benchmark Professionals Ins Svcs","Educators Insurance Agency, Inc.","Benchmark Purchasing Acctg Adj","The Hanover Insurance Group Total",null,"Rounded"]
["Fixed Maturities",4581634874.5699997,0,"-    ","-    ","-    ","-    ",{"$f":"SUM(B3:G3)","v":4581634874.5699997},null,{"$f":"ROUND((H3+H4),)","v":4586400000}]
["S.T. Fixed Maturities",4803100.91,"-    ",0,"-    ","-    ","-    ",4803100.91]
["Equity Securities",124677939.73999999,"-    ","-    ","-    ","-    ","-    ",124677939.73999999,null,{"$f":"+H5","v":124700000}]
["Mortgage Loans Receivable",5665879.2999999998,"-    ","-    ","-    ","-    ","-    ",5665879.2999999998,null,{"$f":"+H6","v":5700000}]
["Policy Loans Receivable","-    ","-    ","-    ","-    ","-    ","-    ",0,null,{"$f":"+H7","v":0}]
["Real Estate",8872141.8100000005,"-    ","-    ","-    ","-    ","-    ",8872141.8100000005,null,{"$f":"+H8+H9","v":31900000}]
["Other Long Term Investments",23031525.02,"-    ","-    ","-    ","-    ","-    ",23031525.02]
["Cash & Cash Equivalents",235154256.08000001,832049.63,1538081.32,133440.12,1604867.52,"-    ",239262694.66999999,null,{"$f":"+H10","v":239300000}]
["Accrued Investment Income Receivable",50705359.140000001,0,0,"-    ","-    ","-    ",50705359.140000001,null,50700000]
["Premiums, Accounts, & Notes Receivable",807813790.62,27205.66,"-    ",-6754.78,188223.02,"-    ",808022464.51999998,null,808000000]
["Total Reinsurance Receivables",1230299516.23,"-    ","-    ","-    ","-    ","-    ",1230299516.23,null,1230300000]
["Deferred Policy Acquistion Costs",347163997.50999999,"-    ","-    ","-    ","-    ","-    ",347163997.50999999,null,347200000]
["Deferred FIT","-    ","-    ","-    ","-    ","-    ","-    ",0,null,0]
["Deferred FIT Asset",119114560,44367.91,-69038.63,"-    ",-0.01,-300437.21999999997,118789452.05,null,118800000]
["Goodwill",176180464.38,"-    ",2572667.64,"-    ",194000,428228,179375360.02000001,null,179400000]
["Property & Equipment",95925543.319999993,164253.29,"-    ","-    ","-    ","-    ",96089796.609999999,null,{"$f":"ROUND((H18+H21),-1)","v":375300000}]
["Other Assets (Receivable)",446477822.94,74291.66,3628827.04,12857.22,7150000,1286620.8600000001,458630419.72000003]
["Goodwill",176180464.38,"-    ",2572667.64,"-    ",194000,428228,179375360.02000001,null,{"$f":"+H20","v":179400000}]
[null,null,null,null,null,null,null,{"$f":"SUM(H19)-SUM(H20)","v":279255059.69999999}]
["Assets of Discontinued Operations",134127301.23,"-    ","-    ","-    ","-    ","-    ",{"$f":"SUM(B22:G22)","v":134127301.23},null,{"$f":"+H22","v":134100000}]
["ASSET",8215467608.4099998,1142168.1499999999,5097869.7300000004,139542.56,8943090.5299999993,986183.64,{"$f":"SUM(B23:G23)","v":8231776463.0200005},null,{"$f":"+H23","v":8231800000}]
[]
[]
[]
["Future Policy Benefits Payable","-    ","-    ","-    ","-    ","-    ","-    ",{"$f":"SUM(B27:G27)","v":0},null,{"$f":"+H27","v":0}]
["Outstanding Claims, Losses & LAE",-3230006824.7199998,"-    ","-    ","-    ","-    ","-    ",-3230006824.7199998,null,{"$f":"ROUND((H28+H30),)","v":-3232100000}]
["Unearned Premiums Payable",-1553550175.8399999,"-    ","-    ","-    ","-    ","-    ",-1553550175.8399999,null,{"$f":"+H29","v":-1553600000}]
["Other Policy Funds & Liabilities",-2087722.36,"-    ","-    ","-    ","-    ","-    ",-2087722.36]
["Expenses & Taxes Payable",-508976097.88,82531.199999999997,-1320768.68,-44886.96,-1505943.53,"-    ",-511765165.85000002,null,{"$f":"ROUND((H31+H32),-1)","v":-524800000}]
["Net Inter-Company",-12824542.93,41510.43,-85008.61,-33382.050000000003,-139918.17000000001,"-    ",-13041341.33]
["Reinsurance Premiums Payable",-33172296.41,"-    ","-    ","-    ","-    ","-    ",-33172296.41,null,{"$f":"+H33","v":-33200000}]
["Trust Instruments Supported by Funding Obligations","-    ","-    ","-    ","-    ","-    ","-    ",0,null,0]
["Long-Term Debt",-154045837.15000001,0,"-    ","-    ","-    ","-    ",-154045837.15000001,null,-154000000]
["Deferred FIT","-    ","-    ","-    ","-    ","-    ","-    ",0,null,0]
["Separate Account Liabilities","-    ","-    ","-    ","-    ","-    ","-    ",0,null,0]
["Liabilities of Discontinued Operations",-135253959.50999999,"-    ","-    ","-    ","-    ","-    ",-135253959.50999999,null,-135300000]
["LIABILITY",-5629917456.8000002,124041.63,-1405777.29,-78269.009999999995,-1645861.7,"-    ",-5632923323.1700001,null,-5632900000]
[]
["Capital Stock Preferred",0,"-    ","-    ","-    ","-    ","-    ",{"$f":"SUM(B41:G41)","v":0},null,{"$f":"+H41","v":0}]
["Capital Stock Common",-1045.22,574617.84,0,"-    ",-1000,"-    ",572572.62,null,600000]
["Additional Paid-In Capital",-786608243.37,-2585520.98,-21240437.780000001,"-    ",-7150000,-1063928,-818648130.13,null,-818600000]
["Treasury Stock Additional Paid-In Capital","-    ","-    ","-    ","-    ","-    ","-    ",0,null,0]
["Unrealized Capital Gains(Losses)",-164926688.31999999,"-    ",0.08,"-    ",0.01,"-    ",-164926688.22999999,null,-164900000]
["Retained Earnings",-1634014174.71,744693.36,17548345.260000002,-61273.55,-146228.84,77744.36,-1615850894.1199999,null,-1615900000]
["Treasury Stock",0,"-    ","-    ","-    ","-    ","-    ",0,null,0]
["Total Stockholders Equity",-2585550151.6199999,-1266209.78,-3692092.44,-61273.55,-7297228.8300000001,-986183.64,-2598853139.8600001,null,-2598900000]

{"sheet":"Essbase - P&C BS","index":32,"n_rows":65,"n_cols":10,"rows_kept":65,"cut":false,"hidden":true,"merged":[]}
[null,"BOOK TYPE","Product Qualifier","Corporate-Capacity",null,"2010 Non Rounded",{"$f":"CY","v":{"$error":"#REF!"}},"All Products"]
[null,"SMAFCO Consolidated","Campania Consolidated","Verlan Consolidated","Educators Insurance Agency, Inc.","Benchmark Professionals Ins Svcs","Benchmark Purchasing Acctg Adj","The Hanover Insurance Group Total",null,"Rounded"]
["Fixed Maturities",4409339433.7700005,0,"-    ","-    ","-    ","-    ",{"$f":"SUM(B3:G3)","v":4409339433.7700005},null,{"$f":"ROUND((H3+H4),)","v":4417300000}]
["S.T. Fixed Maturities",7935675.5999999996,"-    ",0,"-    ","-    ","-    ",7935675.5999999996]
["Equity Securities",127623741.8,"-    ","-    ","-    ","-    ","-    ",127623741.8,null,{"$f":"+H5","v":127600000}]
["Mortgage Loans Receivable",5454367.29,"-    ","-    ","-    ","-    ","-    ",5454367.29,null,{"$f":"+H6","v":5500000}]
["Policy Loans Receivable","-    ","-    ","-    ","-    ","-    ","-    ",0,null,{"$f":"+H7","v":0}]
["Real Estate",10384960.279999999,"-    ","-    ","-    ","-    ","-    ",10384960.279999999]
["Other Long Term Investments",23585156.469999999,"-    ","-    ","-    ","-    ","-    ",23585156.469999999,null,{"$f":"ROUND((H9+H8),-1)","v":34000000}]
["Cash & Cash Equivalents",218869711,522117.91,1530130.83,1471047.1,64741.73,"-    ",222457748.56999999,null,{"$f":"+H10","v":222500000}]
["Accrued Investment Income Receivable",50428063.939999998,0,0,"-    ","-    ","-    ",50428063.939999998,null,{"$f":"+H11","v":50400000}]
["Premiums, Accounts, & Notes Receivable",770447419.33000004,37308.839999999997,"-    ",217709.27,0,"-    ",770702437.44000006,null,{"$f":"+H12","v":770700000}]
["Future Policy Benefits Receivable","-    ","-    ","-    ","-    ","-    ","-    "]
["OSL-LIFEADJ","-    ","-    ","-    ","-    ","-    ","-    "]
["OSL-PCADJ",1064780707.37,"-    ","-    ","-    ","-    ","-    "]
["Outstanding Claims, Losses, & LAE Receivable",1064780707.37,"-    ","-    ","-    ","-    ","-    "]
["UNPREM-PC",77849755.519999996,"-    ","-    ","-    ","-    ","-    "]
["UNPREM-LIFE","-    ","-    ","-    ","-    ","-    ","-    "]
["Unearned Premiums Receivable",77849755.519999996,"-    ","-    ","-    ","-    ","-    "]
["Exhibit8-FG LIAB Reclass","-    ","-    ","-    ","-    ","-    ","-    "]
["Reinsurance Recoverables",1119102937.23,"-    ","-    ","-    ","-    ","-    "]
["ORR-PCADJ",-1064780707.37,"-    ","-    ","-    ","-    ","-    "]
["Ceded Reinsurance Recover Affiliates",5613938.7400000002,"-    ","-    ","-    ","-    ","-    "]
["Ceded Reinsurance Receivable",0,"-    ","-    ","-    ","-    ","-    "]
["Group Conv Charges Receivable","-    ","-    ","-    ","-    ","-    ","-    "]
["Amounts Recoverable On Reinsurance",0,"-    ","-    ","-    ","-    ","-    "]
["Commission & Expense Allowance Due-Reinsurance",1708850.17,"-    ","-    ","-    ","-    ","-    "]
["Experience Refund Receivable","-    ","-    ","-    ","-    ","-    ","-    "]
["Other Reinsurance Receivable",61645018.770000003,"-    ","-    ","-    ","-    ","-    "]
["Total Reinsurance Receivables",1204275481.6600001,"-    ","-    ","-    ","-    ","-    ",{"$f":"SUM(B30:G30)","v":1204275481.6600001},null,{"$f":"+H30","v":1204300000}]
["Deferred Policy Acquistion Costs",346674708.10000002,"-    ","-    ","-    ","-    ","-    ",346674708.10000002,null,{"$f":"+H31","v":346700000}]
["Deferred FIT","-    ","-    ","-    ","-    ","-    ","-    ",0,null,{"$f":"+H32","v":0}]
["Deferred FIT Asset",154785750.75999999,17960.91,-48826.13,-0.01,"-    ",-286483.06,154468402.47,null,{"$f":"+H33","v":154500000}]
["Goodwill",175772914.38,"-    ",2572667.64,194000,"-    ",428228,178967810.02000001,null,{"$f":"+H34","v":179000000}]
["Property & Equipment",96621651.560000002,0,"-    ","-    ","-    ","-    ",96621651.560000002,null,{"$f":"ROUND((H35+H38),-1)","v":402100000}]
["Other Assets (Receivable)",473547849.50999999,66713.56,3201496.91,6421447,9642.9599999999991,1246751.82,484493901.75999999]
["Goodwill",175772914.38,"-    ",2572667.64,194000,"-    ",428228,178967810.02000001,null,{"$f":"+H37","v":179000000}]
[null,null,null,null,null,null,null,{"$f":"SUM(H36)-SUM(H37)","v":305526091.74000001}]
["Assets of Discontinued Operations",133633081.77,"-    ","-    ","-    ","-    ","-    ",{"$f":"SUM(B39:G39)","v":133633081.77},null,{"$f":"+H39","v":133600000}]
["ASSET",8033607052.8299999,644101.22,4682801.6100000003,8110203.3600000003,74384.69,960268.76,{"$f":"SUM(B40:G40)","v":8048078812.4700003},null,{"$f":"+H40","v":8048100000}]
[]
[]
[]
["Future Policy Benefits Payable","-    ","-    ","-    ","-    ","-    ","-    ",{"$f":"SUM(B44:G44)","v":0},null,{"$f":"-H44","v":0}]
["Outstanding Claims, Losses & LAE",-3227564281,"-    ","-    ","-    ","-    ","-    ",-3227564281,null,{"$f":"-ROUND((H45+H47),)","v":3229400000}]
["Unearned Premiums Payable",-1522745682.28,"-    ","-    ","-    ","-    ","-    ",-1522745682.28,null,{"$f":"-H46","v":1522700000}]
["Other Policy Funds & Liabilities",-1846090.61,"-    ","-    ","-    ","-    ","-    ",-1846090.61]
["Expenses & Taxes Payable",-451059498.94,475424.94,-928965.21,-1157979.3400000001,-321.41000000000003,"-    ",-452671339.95999998,null,{"$f":"-ROUND((H48+H49),-1)","v":465500000}]
["Net Inter-Company",-12759281.74,111058.69,-67662.17,-80006.95,-14248.73,"-    ",-12810140.9]
["Reinsurance Premiums Payable",-33941820.219999999,"-    ","-    ","-    ","-    ","-    ",-33941820.219999999,null,{"$f":"-H50","v":33900000}]
["Trust Instruments Supported by Funding Obligations","-    ","-    ","-    ","-    ","-    ","-    ",0,null,0]
["Long-Term Debt",-156008510.99000001,0,"-    ","-    ","-    ","-    ",-156008510.99000001,null,156000000]
["Deferred FIT","-    ","-    ","-    ","-    ","-    ","-    ",0,null,0]
["Separate Account Liabilities","-    ","-    ","-    ","-    ","-    ","-    ",0,null,0]
["Liabilities of Discontinued Operations",-129400337.61,"-    ","-    ","-    ","-    ","-    ",-129400337.61,null,129400000]
["LIABILITY",-5535325503.3999996,586483.63,-996627.38,-1237986.29,-14570.14,"-    ",-5536988203.5799999,null,5537000000]
[]
["Capital Stock Preferred",0,"-    ","-    ","-    ","-    ","-    ",{"$f":"SUM(B58:G58)","v":0},null,{"$f":"-H58","v":0}]
["Capital Stock Common",-1045.22,574617.84,0,-1000,"-    ","-    ",572572.62,null,-600000]
["Additional Paid-In Capital",-786608243.37,-2585520.98,-21240437.780000001,-7150000,"-    ",-1063928,-818648130.13,null,818600000]
["Treasury Stock Additional Paid-In Capital","-    ","-    ","-    ","-    ","-    ","-    ",0,null,0]
["Unrealized Capital Gains(Losses)",-97235801.530000001,"-    ",0.08,0.01,"-    ","-    ",-97235801.439999998,null,97200000]
["Retained Earnings",-1614436459.3099999,780318.29,17554263.469999999,278782.92,-59814.55,103659.24,-1595779249.9400001,null,1595800000]
["Treasury Stock",0,"-    ","-    ","-    ","-    ","-    ",0,null,0]
["Total Stockholders Equity",-2498281549.4400001,-1230584.8500000001,-3686174.23,-6872217.0700000003,-59814.55,-960268.76,-2511090608.9000001,null,2511100000]

{"sheet":"Proof-P&C","index":33,"n_rows":37,"n_cols":14,"rows_kept":37,"cut":false,"hidden":true,"merged":[]}
[]
["Property and Casualty"]
[{"$f":"FORMQTR&\", \"&VALUE(CV)","v":{"$error":"#REF!"}}]
[null,null,null,null,{"$f":"CQ&\"' \"&RIGHT(CV,2)","v":{"$error":"#REF!"}},null,{"$f":"CQ&\"' \"&RIGHT(PV,2)","v":{"$error":"#REF!"}},null,null,null,null,{"$f":"\"YTD\"&\" \"&RIGHT(CV,2)","v":{"$error":"#REF!"}},null,{"$f":"\"YTD\"&\" \"&RIGHT(PV,2)","v":{"$error":"#REF!"}}]
[null,"Page #'s",null,null,"Variance",null,"Variance",null,"Page #'s",null,null,"Variance",null,"Variance"]
[]
["Net investment income   ",7,9,null,{"$f":"+#REF!-#REF!","v":{"$error":"#REF!"}},null,{"$f":"+#REF!-#REF!","v":{"$error":"#REF!"}},null,7,10,null,{"$f":"+#REF!-#REF!","v":{"$error":"#REF!"}},null,{"$f":"+#REF!-#REF!","v":{"$error":"#REF!"}}]
[]
["Segment Income Before Taxes:"]
["     Personal Lines",1,9,null,{"$f":"+#REF!-#REF!","v":{"$error":"#REF!"}},null,{"$f":"+#REF!-#REF!","v":{"$error":"#REF!"}},null,{"$f":"+B10","v":1},10,null,{"$f":"+#REF!-#REF!","v":{"$error":"#REF!"}},null,{"$f":"+#REF!-#REF!","v":{"$error":"#REF!"}}]
["     Commercial Lines",1,{"$f":"+C$10","v":9},null,{"$f":"+#REF!-#REF!","v":{"$error":"#REF!"}},null,{"$f":"+#REF!-#REF!","v":{"$error":"#REF!"}},null,1,{"$f":"+J10","v":10},null,{"$f":"+#REF!-#REF!","v":{"$error":"#REF!"}},null,{"$f":"+#REF!-#REF!","v":{"$error":"#REF!"}}]
["     Other P&C",1,{"$f":"+C$10","v":9},null,{"$f":"+#REF!-#REF!","v":{"$error":"#REF!"}},null,{"$f":"+#REF!-#REF!","v":{"$error":"#REF!"}},null,1,{"$f":"+J10","v":10},null,{"$f":"+#REF!-#REF!","v":{"$error":"#REF!"}},null,{"$f":"+#REF!-#REF!","v":{"$error":"#REF!"}}]
["     Total P&C segment income",1,{"$f":"+C$10","v":9},null,{"$f":"+#REF!-#REF!","v":{"$error":"#REF!"}},null,{"$f":"+#REF!-#REF!","v":{"$error":"#REF!"}},null,1,{"$f":"+J10","v":10},null,{"$f":"+#REF!-#REF!","v":{"$error":"#REF!"}},null,{"$f":"+#REF!-#REF!","v":{"$error":"#REF!"}}]
[]
["Segment income before taxes",{"$f":"+C7","v":9},{"$f":"+C10","v":9},null,{"$f":"+#REF!-#REF!","v":{"$error":"#REF!"}},null,{"$f":"+#REF!-#REF!","v":{"$error":"#REF!"}},null,{"$f":"+B15","v":9},{"$f":"+J10","v":10},null,{"$f":"+#REF!-#REF!","v":{"$error":"#REF!"}},null,{"$f":"+#REF!-#REF!","v":{"$error":"#REF!"}}]
[]
["GAAP to Stat: Prior year reserve development:"]
["  Personal auto",{"$f":"+C10","v":9},"Calc 20",null,{"$f":"+#REF!-#REF!","v":{"$error":"#REF!"}},null,{"$f":"+#REF!-#REF!","v":{"$error":"#REF!"}},null,{"$f":"+J10","v":10},"calc 21",null,{"$f":"+#REF!-#REF!","v":{"$error":"#REF!"}},null,{"$f":"+#REF!-#REF!","v":{"$error":"#REF!"}}]
["  Homeowners",{"$f":"+B$18","v":9},"Calc 20",null,{"$f":"+#REF!-#REF!","v":{"$error":"#REF!"}},null,{"$f":"+#REF!-#REF!","v":{"$error":"#REF!"}},null,{"$f":"+I$18","v":10},"calc 21",null,{"$f":"+#REF!-#REF!","v":{"$error":"#REF!"}},null,{"$f":"+#REF!-#REF!","v":{"$error":"#REF!"}}]
["  Other personal",9,"Calc 20",null,{"$f":"+#REF!-#REF!","v":{"$error":"#REF!"}},null,{"$f":"+#REF!-#REF!","v":{"$error":"#REF!"}},null,10,"calc 21",null,{"$f":"+#REF!-#REF!","v":{"$error":"#REF!"}},null,{"$f":"+#REF!-#REF!","v":{"$error":"#REF!"}}]
["  Total personal",9,"Calc 20",null,{"$f":"+#REF!-#REF!","v":{"$error":"#REF!"}},null,{"$f":"+#REF!-#REF!","v":{"$error":"#REF!"}},null,10,"calc 21",null,{"$f":"+#REF!-#REF!","v":{"$error":"#REF!"}},null,{"$f":"+#REF!-#REF!","v":{"$error":"#REF!"}}]
[]
["  Workers compensation",{"$f":"+B$18","v":9},"Calc 20",null,{"$f":"+#REF!-#REF!","v":{"$error":"#REF!"}},null,{"$f":"+#REF!-#REF!","v":{"$error":"#REF!"}},null,{"$f":"+I$18","v":10},"calc 21",null,{"$f":"+#REF!-#REF!","v":{"$error":"#REF!"}},null,{"$f":"+#REF!-#REF!","v":{"$error":"#REF!"}}]
["  Commercial Automobile",9,"Calc 20",null,{"$f":"+#REF!-#REF!","v":{"$error":"#REF!"}},null,{"$f":"+#REF!-#REF!","v":{"$error":"#REF!"}},null,10,"calc 21",null,{"$f":"+#REF!-#REF!","v":{"$error":"#REF!"}},null,{"$f":"+#REF!-#REF!","v":{"$error":"#REF!"}}]
["  Commercial multiple peril",9,"Calc 20",null,{"$f":"+#REF!-#REF!","v":{"$error":"#REF!"}},null,{"$f":"+#REF!-#REF!","v":{"$error":"#REF!"}},null,10,"calc 21",null,{"$f":"+#REF!-#REF!","v":{"$error":"#REF!"}},null,{"$f":"+#REF!-#REF!","v":{"$error":"#REF!"}}]
["  Other commercial lines",9,"Calc 20",null,{"$f":"+#REF!-#REF!","v":{"$error":"#REF!"}},null,{"$f":"+#REF!-#REF!","v":{"$error":"#REF!"}},null,10,"calc 21",null,{"$f":"+#REF!-#REF!","v":{"$error":"#REF!"}},null,{"$f":"+#REF!-#REF!","v":{"$error":"#REF!"}}]
["  Total commericial",9,"Calc 20",null,{"$f":"+#REF!-#REF!","v":{"$error":"#REF!"}},null,{"$f":"+#REF!-#REF!","v":{"$error":"#REF!"}},null,10,"calc 21",null,{"$f":"+#REF!-#REF!","v":{"$error":"#REF!"}},null,{"$f":"+#REF!-#REF!","v":{"$error":"#REF!"}}]
[]
["  Other property and casualty",{"$f":"+B$18","v":9},{"$f":"+C$18","v":"Calc 20"},null,{"$f":"+#REF!-#REF!","v":{"$error":"#REF!"}},null,{"$f":"+#REF!-#REF!","v":{"$error":"#REF!"}},null,{"$f":"+I$18","v":10},{"$f":"+J$18","v":"calc 21"},null,{"$f":"+#REF!-#REF!","v":{"$error":"#REF!"}},null,{"$f":"+#REF!-#REF!","v":{"$error":"#REF!"}}]
[]
["  Total Property and Casualty",{"$f":"+B$18","v":9},{"$f":"+C$18","v":"Calc 20"},null,{"$f":"+#REF!-#REF!","v":{"$error":"#REF!"}},null,{"$f":"+#REF!-#REF!","v":{"$error":"#REF!"}},null,{"$f":"+I$18","v":10},{"$f":"+J$18","v":"calc 21"},null,{"$f":"+#REF!-#REF!","v":{"$error":"#REF!"}},null,{"$f":"+#REF!-#REF!","v":{"$error":"#REF!"}}]
[]
["Net premiums written",7,9,null,{"$f":"+#REF!-#REF!","v":{"$error":"#REF!"}},null,{"$f":"+#REF!-#REF!","v":{"$error":"#REF!"}},null,7,10,null,{"$f":"+#REF!-#REF!","v":{"$error":"#REF!"}},null,{"$f":"+#REF!-#REF!","v":{"$error":"#REF!"}}]
["Net premiums earned",{"$f":"+B33","v":7},{"$f":"+C33","v":9},null,{"$f":"+#REF!-#REF!","v":{"$error":"#REF!"}},null,{"$f":"+#REF!-#REF!","v":{"$error":"#REF!"}},null,{"$f":"+I33","v":7},{"$f":"+J33","v":10},null,{"$f":"+#REF!-#REF!","v":{"$error":"#REF!"}},null,{"$f":"+#REF!-#REF!","v":{"$error":"#REF!"}}]
["Other Income",{"$f":"+B33","v":7},{"$f":"+C33","v":9},null,{"$f":"+#REF!-#REF!","v":{"$error":"#REF!"}},null,{"$f":"+#REF!-#REF!","v":{"$error":"#REF!"}},null,{"$f":"+I33","v":7},{"$f":"+J33","v":10},null,{"$f":"+#REF!-#REF!","v":{"$error":"#REF!"}},null,{"$f":"+#REF!-#REF!","v":{"$error":"#REF!"}}]
["Policy benefits, claims, losses and LAE",{"$f":"+B33","v":7},{"$f":"+C33","v":9},null,{"$f":"+#REF!-#REF!-#REF!-#REF!-#REF!-#REF!-#REF!","v":{"$error":"#REF!"}},null,{"$f":"+#REF!-#REF!-#REF!-#REF!-#REF!-#REF!-#REF!","v":{"$error":"#REF!"}},null,{"$f":"+I33","v":7},{"$f":"+J33","v":10},null,{"$f":"+#REF!-#REF!-#REF!-#REF!-#REF!-#REF!-#REF!","v":{"$error":"#REF!"}},null,{"$f":"+#REF!-#REF!-#REF!-#REF!-#REF!-#REF!-#REF!","v":{"$error":"#REF!"}}]
["Policy acquisition and other op ex",{"$f":"+B33","v":7},{"$f":"+C33","v":9},null,{"$f":"+#REF!+#REF!-#REF!+#REF!","v":{"$error":"#REF!"}},null,{"$f":"+#REF!+#REF!-#REF!+#REF!","v":{"$error":"#REF!"}},null,{"$f":"+I33","v":7},{"$f":"+J33","v":10},null,{"$f":"+#REF!+#REF!-#REF!+#REF!","v":{"$error":"#REF!"}},null,{"$f":"+#REF!+#REF!-#REF!+#REF!","v":{"$error":"#REF!"}}]

{"sheet":"Proof-Inv.","index":34,"n_rows":33,"n_cols":22,"rows_kept":33,"cut":false,"hidden":true,"merged":[]}
[]
["Investments"]
[{"$f":"FORMQTR&\", \"&VALUE(CV)","v":{"$error":"#REF!"}}]
[null,null,null,null,null,null,null,null,null,null,{"$f":"CQ&\"' \"&RIGHT(CV,2)","v":{"$error":"#REF!"}},null,{"$f":"CQ&\"' \"&RIGHT(PV,2)","v":{"$error":"#REF!"}},null,null,null,null,{"$f":"\"YTD\"&\" \"&RIGHT(CV,2)","v":{"$error":"#REF!"}},null,{"$f":"\"YTD\"&\" \"&RIGHT(PV,2)","v":{"$error":"#REF!"}}]
[null,null,null,null,null,null,null,"Page #'s",null,null,"Variance",null,"Variance",null,"Page #'s",null,null,"Variance",null,"Variance",null,"Notes"]
["Net Investment Income:",null,null,null,null,null,null," ",null," ",null,null,null,null," ",null," ",null,null,null,null,"Uses retrieves to verify the NII for the period."]
["         Total Company",null,null,null,null,null,null,4,"13, 14-Q1",null,{"$f":"+'3'!D11-'17'!#REF!","v":{"$error":"#REF!"}},null,{"$f":"+'3'!G11-'17'!N13","v":68300000},null,4,13,null,{"$f":"+'3'!L11-'17'!#REF!","v":{"$error":"#REF!"}},null,{"$f":"+'3'!O11-'17'!N13","v":209100000}]
[null,null,{"$f":"CY","v":{"$error":"#REF!"}},null,{"$f":"CY","v":{"$error":"#REF!"}},null,{"$f":"CY","v":{"$error":"#REF!"}}]
[null,null,{"$f":"VALUE(CV)&\" Actuals\"","v":{"$error":"#REF!"}},null,{"$f":"VALUE(CV)&\" Actuals\"","v":{"$error":"#REF!"}},null,{"$f":"VALUE(PV)&\" Actuals\"","v":{"$error":"#REF!"}}]
[null,null,"Net Investment  Income-",null,"Net Investment  Income-",null,"Net Investment  Income-"]
[null,null,"GAAP",null,"GAAP",null,"GAAP"]
[null,null,"Product Qualifier",null,"Product Qualifier",null,"Product Qualifier"]
[null,null,"Corporate-Capacity",null,"Corporate-Capacity",null,"Corporate-Capacity"]
[null,null,"THG Consolidated",null,"THG Consolidated",null,"THG Consolidated"]
[null,"Corporate Segment","-","Eliminations",0,"Eliminations",0]
[null,null,{"$f":"(+C15)*-1","v":{"$error":"#VALUE!"}}]
[]
["         Property and Casualty",null,null,null,null,null,null,"xxxxxxxxx","xxxxxxxxx",null,"xxxxxxxxxxxxx",null,"xxxxxxxxxxxxx",null,5,{"$f":"+P7","v":13},null,{"$f":"+#REF!-'17'!#REF!-'Proof-Inv.'!E15+'Proof-Inv.'!C16","v":{"$error":"#REF!"}},null,{"$f":"+#REF!/1000000-'Proof-Inv.'!G15/1000000+'17'!N13/10000000","v":{"$error":"#REF!"}},null,"P&C plus corp seg less elims = page 19"]
["         Life Companies",null,null,null,null,null,null,"xxxxxxxxx","xxxxxxxxx",null,"xxxxxxxxxxxxx",null,"xxxxxxxxxxxxx",null,12,{"$f":"+P7","v":13},null,{"$f":"+#REF!-'17'!#REF!","v":{"$error":"#REF!"}},null,{"$f":"+#REF!-'17'!#REF!","v":{"$error":"#REF!"}}]
[]
["Net realized investment gains",null,null,null,null,null,null,{"$f":"+O7","v":4},14,null,{"$f":"+'3'!D12-#REF!*1000000","v":{"$error":"#REF!"}},null,{"$f":"+'3'!G12-#REF!*1000000","v":{"$error":"#REF!"}},null,{"$f":"+H21","v":4},14,null,{"$f":"+'3'!L12-#REF!*1000000","v":{"$error":"#REF!"}},null,{"$f":"+'3'!O12-#REF!*1000000","v":{"$error":"#REF!"}}]
[]
["Fixed maturities amortized cost:"]
["    Life companies",null,null,null,null,null,null,"xxxxxxxxx","xxxxxxxxx",null,"xxxxxxxxxxxxx",null,"xxxxxxxxxxxxx",null,"OLD14",16,null,{"$f":"+#REF!-'19'!#REF!","v":{"$error":"#REF!"}},null,"n/a"]
["     Total",null,null,null,null,null,null,"xxxxxxxxx","xxxxxxxxx",null,"xxxxxxxxxxxxx",null,"xxxxxxxxxxxxx",null,6,16,null,{"$f":"+#REF!-'19'!#REF!","v":{"$error":"#REF!"}},null,{"$f":"+#REF!-'19'!#REF!","v":{"$error":"#REF!"}}]
[]
["Fixed maturities fair value:"]
["    Life companies",null,null,null,null,null,null,"xxxxxxxxx","xxxxxxxxx",null,"xxxxxxxxxxxxx",null,"xxxxxxxxxxxxx",null,"OLD14",16,null,{"$f":"+#REF!-'19'!#REF!*1000000","v":{"$error":"#REF!"}},null,"n/a"]
["     Total",null,null,null,null,null,null,"xxxxxxxxx","xxxxxxxxx",null,"xxxxxxxxxxxxx",null,"xxxxxxxxxxxxx",null,6,16,null,{"$f":"+'4'!D10-('19'!#REF!-'19'!#REF!)*1000000","v":{"$error":"#REF!"}},null,{"$f":"+'4'!G10-'19'!#REF!*1000000","v":{"$error":"#REF!"}}]
[]
[]
["updated 08/03/2006 by SHA"]
["updated 7/24/08 by JPH"]

{"sheet":"Proof-History","index":35,"n_rows":57,"n_cols":13,"rows_kept":57,"cut":false,"hidden":true,"merged":[]}
[]
["Historical Financial Highlights"]
[{"$f":"FORMQTR&\", \"&VALUE(CV)","v":{"$error":"#REF!"}},null,"MANUALLY UPDATE CELL REFERENCES FOR QTR COLUMNS!!"]
[null,null,null,null,{"$f":"CQ&\"' \"&RIGHT(CV,2)","v":{"$error":"#REF!"}},null,{"$f":"CQ&\"' \"&RIGHT(PV,2)","v":{"$error":"#REF!"}},null,{"$f":"CY&\"' \"&RIGHT(CV,2)","v":{"$error":"#REF!"}},null,{"$f":"CY&\"' \"&RIGHT(PV,2)","v":{"$error":"#REF!"}}]
[null,"Page #'s",null,null,"Variance",null,"Variance",null,"Variance",null,"Variance"]
["SEGMENT INCOME:"," ",null," ",null,null,null,null,null,null," ",null," "]
["Property and Casualty"]
["       Personal Lines",1,"19, 15Q1",null,{"$f":"+#REF!-'21'!P13","v":{"$error":"#REF!"}},null,{"$f":"+#REF!-'21'!#REF!","v":{"$error":"#REF!"}},null,{"$f":"+#REF!-SUM('21'!F13:Q13)","v":{"$error":"#REF!"}},null,{"$f":"+#REF!-SUM('21'!#REF!)","v":{"$error":"#REF!"}}]
["       Commercial Lines",1,{"$f":"+C8","v":"19, 15Q1"},null,{"$f":"+#REF!-'21'!P12","v":{"$error":"#REF!"}},null,{"$f":"+#REF!-'21'!#REF!","v":{"$error":"#REF!"}},null,{"$f":"+#REF!-SUM('21'!F12:Q12)","v":{"$error":"#REF!"}},null,{"$f":"+#REF!-SUM('21'!#REF!)","v":{"$error":"#REF!"}}]
["       Other",1,{"$f":"+C8","v":"19, 15Q1"},null,{"$f":"+#REF!-'21'!P15","v":{"$error":"#REF!"}},null,{"$f":"+#REF!-'21'!#REF!","v":{"$error":"#REF!"}},null,{"$f":"+#REF!-SUM('21'!F15:Q15)","v":{"$error":"#REF!"}},null,{"$f":"+#REF!-SUM('21'!#REF!)","v":{"$error":"#REF!"}}]
["Total Property and Casualty",1,{"$f":"+C$8","v":"19, 15Q1"},null,{"$f":"+#REF!-'21'!P16","v":{"$error":"#REF!"}},null,{"$f":"+#REF!-'21'!#REF!","v":{"$error":"#REF!"}},null,{"$f":"+#REF!-SUM('21'!F16:Q16)","v":{"$error":"#REF!"}},null,{"$f":"+#REF!-SUM('21'!#REF!)","v":{"$error":"#REF!"}}]
["Life Companies",1,{"$f":"+C$8","v":"19, 15Q1"},null,{"$f":"+#REF!-'21'!#REF!","v":{"$error":"#REF!"}},null,{"$f":"+#REF!-'21'!#REF!","v":{"$error":"#REF!"}},null,{"$f":"+#REF!-SUM('21'!#REF!)","v":{"$error":"#REF!"}},null,{"$f":"+#REF!-SUM('21'!#REF!)","v":{"$error":"#REF!"}}]
["Corporate Debt ",1,{"$f":"+C$8","v":"19, 15Q1"},null,{"$f":"+#REF!-'21'!P18","v":{"$error":"#REF!"}},null,{"$f":"+#REF!-'21'!#REF!","v":{"$error":"#REF!"}},null,{"$f":"+#REF!-SUM('21'!F18:Q18)","v":{"$error":"#REF!"}},null,{"$f":"+#REF!-SUM('21'!#REF!)","v":{"$error":"#REF!"}}]
[]
["Total segment income before federal income taxes",1,{"$f":"+C$8","v":"19, 15Q1"},null,{"$f":"+#REF!-'21'!P20","v":{"$error":"#REF!"}},null,{"$f":"+#REF!-'21'!#REF!","v":{"$error":"#REF!"}},null,{"$f":"+#REF!-SUM('21'!F20:Q20)","v":{"$error":"#REF!"}},null,{"$f":"+#REF!-SUM('21'!#REF!)","v":{"$error":"#REF!"}}]
[]
["Federal income tax (expense) benefit on segment income",1,{"$f":"+C$8","v":"19, 15Q1"},null,{"$f":"+#REF!-'21'!P22","v":{"$error":"#REF!"}},null,{"$f":"+#REF!-'21'!#REF!","v":{"$error":"#REF!"}},null,{"$f":"+#REF!-SUM('21'!F22:Q22)","v":{"$error":"#REF!"}},null,{"$f":"+#REF!-SUM('21'!#REF!)","v":{"$error":"#REF!"}}]
["Total segment income after federal income taxes",1,{"$f":"+C$8","v":"19, 15Q1"},null,{"$f":"+#REF!-SUM('21'!P24)","v":{"$error":"#REF!"}},null,{"$f":"+#REF!-'21'!#REF!","v":{"$error":"#REF!"}},null,{"$f":"+#REF!-SUM('21'!F24:Q24)","v":{"$error":"#REF!"}},null,{"$f":"+#REF!-SUM('21'!#REF!)","v":{"$error":"#REF!"}}]
["Change in prior years tax reserves",1,{"$f":"+C$8","v":"19, 15Q1"},null,{"$f":"+#REF!-'21'!#REF!","v":{"$error":"#REF!"}},null,{"$f":"+#REF!-'21'!#REF!","v":{"$error":"#REF!"}},null,{"$f":"+#REF!-SUM('21'!#REF!)","v":{"$error":"#REF!"}},null,{"$f":"+#REF!-SUM('21'!#REF!)","v":{"$error":"#REF!"}}]
["Net realized investment gains (losses), net of amortization and taxes",1,{"$f":"+C$8","v":"19, 15Q1"},null,{"$f":"+#REF!-'21'!P27","v":{"$error":"#REF!"}},null,{"$f":"+#REF!-'21'!#REF!","v":{"$error":"#REF!"}},null,{"$f":"+#REF!-SUM('21'!F27:Q27)","v":{"$error":"#REF!"}},null,{"$f":"+#REF!-SUM('21'!#REF!)","v":{"$error":"#REF!"}}]
["(Losses) gains from retirement of funding agreements and trust"]
["     instruments supported by funding obligations, net of taxes",1,{"$f":"+C$8","v":"19, 15Q1"},null,{"$f":"SUM(#REF!)-SUM('21'!#REF!)","v":{"$error":"#REF!"}},null,{"$f":"+#REF!-'21'!#REF!","v":{"$error":"#REF!"}},null,{"$f":"+#REF!-SUM('21'!#REF!)","v":{"$error":"#REF!"}},null,{"$f":"+#REF!-SUM('21'!#REF!)","v":{"$error":"#REF!"}}]
["Restructuring costs, net of taxes",1,"19, 15Q1",null,{"$f":"+#REF!-'21'!#REF!","v":{"$error":"#REF!"}},null,{"$f":"+#REF!-'21'!#REF!","v":{"$error":"#REF!"}},null,{"$f":"+#REF!-SUM('21'!#REF!)","v":{"$error":"#REF!"}},null,{"$f":"+#REF!-SUM('21'!#REF!)","v":{"$error":"#REF!"}}]
["Federal income tax expense on non-segment income",1,"19, 15Q1",null,{"$f":"+#REF!-'21'!P30","v":{"$error":"#REF!"}},null,{"$f":"+#REF!-'21'!#REF!","v":{"$error":"#REF!"}},null,{"$f":"+#REF!-SUM('21'!F30:Q30)","v":{"$error":"#REF!"}},null,{"$f":"+#REF!-SUM('21'!#REF!)","v":{"$error":"#REF!"}}]
["  Income from continuing operations, net of taxes",1,"19, 15Q1",null,{"$f":"+#REF!-'21'!P31","v":{"$error":"#REF!"}},null,{"$f":"+#REF!-'21'!#REF!","v":{"$error":"#REF!"}},null,{"$f":"+#REF!-SUM('21'!F31:Q31)","v":{"$error":"#REF!"}},null,{"$f":"+#REF!-SUM('21'!#REF!)","v":{"$error":"#REF!"}}]
[]
["Income from discontinued variable life insurance and"]
["annuity business, net of taxes",1,"19, 15Q1",null,{"$f":"+#REF!-'21'!#REF!","v":{"$error":"#REF!"}},null,{"$f":"+#REF!-'21'!#REF!","v":{"$error":"#REF!"}},null,{"$f":"+#REF!-SUM('21'!#REF!)","v":{"$error":"#REF!"}},null,{"$f":"+#REF!-SUM('21'!#REF!)","v":{"$error":"#REF!"}}]
["(Loss) income from operations of discontiued FAFLIC",1,"19, 15Q1",null,{"$f":"#REF!-'21'!#REF!","v":{"$error":"#REF!"}},null,{"$f":"#REF!-'21'!#REF!","v":{"$error":"#REF!"}},null,{"$f":"#REF!-'21'!#REF!-'21'!#REF!","v":{"$error":"#REF!"}},null,{"$f":"#REF!-'21'!#REF!-'21'!#REF!","v":{"$error":"#REF!"}}]
["Income from operations of AMGRO",1,"19, 15Q1",null,{"$f":"#REF!-'21'!#REF!","v":{"$error":"#REF!"}},null,{"$f":"#REF!-'21'!#REF!","v":{"$error":"#REF!"}},null,{"$f":"#REF!-'21'!#REF!-'21'!#REF!","v":{"$error":"#REF!"}},null,{"$f":"#REF!-'21'!#REF!-'21'!#REF!","v":{"$error":"#REF!"}},null,"Amgro sale "]
["Loss on disposal of variable life insurance and annuity"]
["    business, net of taxes",1,"19, 15Q1",null,{"$f":"+#REF!-'21'!#REF!","v":{"$error":"#REF!"}},null,{"$f":"+#REF!-'21'!#REF!","v":{"$error":"#REF!"}},null,{"$f":"+#REF!-SUM('21'!#REF!)","v":{"$error":"#REF!"}},null,{"$f":"+#REF!-SUM('21'!#REF!)","v":{"$error":"#REF!"}}]
["Other",1,"19, 15Q1",null,{"$f":"+#REF!-'21'!#REF!","v":{"$error":"#REF!"}},null,{"$f":"+#REF!-'21'!#REF!","v":{"$error":"#REF!"}},null,{"$f":"+#REF!-SUM('21'!#REF!)","v":{"$error":"#REF!"}},null,{"$f":"+#REF!-SUM('21'!#REF!)","v":{"$error":"#REF!"}}]
[" Income before cumulative effect of accounting change",1,"19, 15Q1",null,{"$f":"+#REF!-'21'!#REF!","v":{"$error":"#REF!"}},null,{"$f":"+#REF!-'21'!#REF!","v":{"$error":"#REF!"}},null,{"$f":"+#REF!-SUM('21'!#REF!)","v":{"$error":"#REF!"}},null,{"$f":"+#REF!-SUM('21'!#REF!)","v":{"$error":"#REF!"}}]
["Cumulative effect of change in accounting "]
["principle, net of taxes",1,"19, 15Q1",null,{"$f":"SUM(#REF!)-SUM('21'!#REF!)","v":{"$error":"#REF!"}},null,{"$f":"+#REF!-'21'!#REF!","v":{"$error":"#REF!"}},null,{"$f":"+#REF!-SUM('21'!#REF!-'21'!#REF!)","v":{"$error":"#REF!"}},null,{"$f":"+#REF!-SUM('21'!#REF!)","v":{"$error":"#REF!"}}]
["Net income ",1,"19, 15Q1",null,{"$f":"+#REF!-'21'!P34","v":{"$error":"#REF!"}},null,{"$f":"+#REF!-'21'!#REF!","v":{"$error":"#REF!"}},null,{"$f":"+#REF!-SUM('21'!F34:Q34)","v":{"$error":"#REF!"}},null,{"$f":"+#REF!-SUM('21'!#REF!)","v":{"$error":"#REF!"}}]
[]
["PER SHARE DATA (DILUTED)"]
["     INCOME (LOSS) FROM CONTINUING OPERATIONS",2,{"$f":"+C$8","v":"19, 15Q1"},null,{"$f":"+#REF!-'21'!#REF!","v":{"$error":"#REF!"}},null,{"$f":"+#REF!-'21'!#REF!","v":{"$error":"#REF!"}},null,"n/a",null,"n/a"]
["     (LOSS) INCOME FROM DISCONTINUED OPERATIONS,"]
["       NET OF TAXES",2,{"$f":"+C$8","v":"19, 15Q1"},null,{"$f":"+#REF!+#REF!-'21'!#REF!","v":{"$error":"#REF!"}},null,{"$f":"+#REF!+#REF!-'21'!#REF!","v":{"$error":"#REF!"}},null,"n/a",null,"n/a"]
["     NET INCOME (LOSS) ",2,{"$f":"+C$8","v":"19, 15Q1"},null,{"$f":"+#REF!-'21'!#REF!","v":{"$error":"#REF!"}},null,{"$f":"+#REF!-'21'!#REF!","v":{"$error":"#REF!"}},null,"n/a",null,"n/a"]
[]
["WEIGHTED AVERAGE SHARES"]
["     OUTSTANDING (DILUTED)",5,{"$f":"+C$8","v":"19, 15Q1"},null,{"$f":"+#REF!-'21'!#REF!","v":{"$error":"#REF!"}},null,{"$f":"+#REF!-'21'!#REF!","v":{"$error":"#REF!"}},null,"n/a",null,"n/a"]
[]
["BALANCE SHEET:",null,null,null,{"$f":"CQ&\"' \"&RIGHT(CV,2)","v":{"$error":"#REF!"}},null,"PY End"]
["     Total investments",6,{"$f":"+C$8","v":"19, 15Q1"},null,{"$f":"+'4'!D13-'21'!#REF!","v":{"$error":"#REF!"}},null,{"$f":"+'4'!G13-'21'!#REF!","v":{"$error":"#REF!"}},null,"n/a",null,"n/a"]
["     Separate account assets",6,{"$f":"+C$8","v":"19, 15Q1"},null,{"$f":"+'4'!#REF!-'21'!#REF!","v":{"$error":"#REF!"}},null,{"$f":"+'4'!#REF!-'21'!#REF!","v":{"$error":"#REF!"}},null,"n/a",null,"n/a"]
["     Total assets",6,{"$f":"+C$8","v":"19, 15Q1"},null,{"$f":"+'4'!D23-'21'!#REF!","v":{"$error":"#REF!"}},null,{"$f":"+'4'!G23-'21'!#REF!","v":{"$error":"#REF!"}},null,"n/a",null,"n/a"]
["     Total shareholders' equity",6,{"$f":"+C$8","v":"19, 15Q1"},null,{"$f":"+'4'!D45-'21'!#REF!","v":{"$error":"#REF!"}},null,{"$f":"+'4'!G45-'21'!#REF!","v":{"$error":"#REF!"}},null,"n/a",null,"n/a"]
["     Book value per share",3,{"$f":"+C$8","v":"19, 15Q1"},null,{"$f":"SUM(#REF!)-SUM('21'!#REF!)","v":{"$error":"#REF!"}},null,{"$f":"+#REF!-'21'!#REF!","v":{"$error":"#REF!"}},null,"n/a",null,"n/a"]
["     Book value per share, excluding accumulated "]
["         other comprehensive income",3,{"$f":"+C$8","v":"19, 15Q1"},null,{"$f":"SUM(#REF!)-SUM('21'!#REF!)","v":{"$error":"#REF!"}},null,{"$f":"+#REF!-'21'!#REF!","v":{"$error":"#REF!"}},null,"n/a",null,"n/a"]
[]
["updated Q4-07 &06 columns,  CP 12-14-07"]

{"sheet":"Ver Doc 2.2","index":36,"n_rows":42,"n_cols":4,"rows_kept":42,"cut":false,"hidden":true,"merged":[]}
[]
["Name of Spreadsheet",null,"Stat Supp Working File - Pages 3(P&L) and 4(BS), 5(P&C Segment Income)"]
[null,null,"12(Life Segment Income) are used for SEC External Reporting"]
[]
["Drive & Directory Location",null,"Homcfaf1\\vol5\\Stat Supp\\Year\\Quarter"]
[]
["Date Created; Most Recent Change Date",null,"2001-04-20","2006-03-30"]
[]
["Version #",null,2.2000000000000002]
[]
["Spreadsheet Owner; Contact Info",null,"Sandra Aramony; saramony@allmerica.com"]
[]
["Total # of Users; # of Users outside Dept.",null,"8; none"]
[]
["Frequency of Change:"]
[null,"Formula/Calculations","quarterly"]
[null,"Input/Data Changes","quarterly"]
[]
["Purpose of model logic/formulas:",null,"Summarizes financial information from the general ledger and formats"]
[null,null,"it for the Statistical Supplement.  Also used to produce the Balance Sheet"]
[null,null,"P&L and other financial statement disclosures"]
[]
["Operating instructions for use/input:",null,"The pages are updated through an Essbase retrieve program.  Use \"Run\" tab to"]
[null,null,"select pages for which you want to retrieve information by entering \"y\" in the Run cell."]
[null,null,"After retrieve, compare information to Product Reports, Production Reports.  Enter"]
[null,null,"rounding in the shaded columns to the right of the page, if necessary."]
[null,null,"All manual input of information is entered on Input, Calc, or Footnote tabs.  There is no manual "]
[null,null,"input on actual stat supp pages."]
[null,null," Use Proof tabs to check balancing."]
[]
["Historical/Standing data",null,"Prior Quarter\\Prior Year"]
[]
["Complex Functions or Links",null,"Macros are used to retrieve information from the ledger and to print the entire document."]
[]
["Input Integrity Checks",null,"Same as output integrity checks below"]
[]
["Output Integrity Checks",null,"Reviewed by 2 individuals; beginning balances agreed to prior period analysis;"]
[null,null,"data agreed to the general ledger; manual recalculations performed on a test basis"]
[]
["Cell & Formula Protection",null,"None"]
[]
["Access Protection",null,"Access restricted to Afgaap on Homcfaf1\\Vol 5"]

{"sheet":"Ver Doc 2.1","index":37,"n_rows":42,"n_cols":4,"rows_kept":42,"cut":false,"hidden":true,"merged":[]}
[]
["Name of Spreadsheet",null,"Stat Supp Working File - Pages 3(P&L) and 4(BS), 5(P&C Segment Income)"]
[null,null,"12(Life Segment Income) are used for SEC External Reporting"]
[]
["Drive & Directory Location",null,"Homcfaf1\\vol5\\Stat Supp\\Year\\Quarter"]
[]
["Date Created; Most Recent Change Date",null,"2001-04-20","2005-12-30"]
[]
["Version #",null,2.1]
[]
["Spreadsheet Owner; Contact Info",null,"Sandra Aramony; saramony@allmerica.com"]
[]
["Total # of Users; # of Users outside Dept.",null,"8; none"]
[]
["Frequency of Change:"]
[null,"Formula/Calculations","quarterly"]
[null,"Input/Data Changes","quarterly"]
[]
["Purpose of model logic/formulas:",null,"Summarizes financial information from the general ledger and formats"]
[null,null,"it for the Statistical Supplement.  Also used to produce the Balance Sheet"]
[null,null,"P&L and other financial statement disclosures"]
[]
["Operating instructions for use/input:",null,"The pages are updated through an Essbase retrieve program.  Use \"Run\" tab to"]
[null,null,"select pages for which you want to retrieve information by entering \"y\" in the Run cell."]
[null,null,"After retrieve, compare information to Product Reports, Production Reports.  Enter"]
[null,null,"rounding in the shaded columns to the right of the page, if necessary."]
[null,null,"All manual input of information is entered on Input, Calc, or Footnote tabs.  There is no manual "]
[null,null,"input on actual stat supp pages."]
[null,null," Use Proof tabs to check balancing."]
[]
["Historical/Standing data",null,"Prior Quarter\\Prior Year"]
[]
["Complex Functions or Links",null,"Macros are used to retrieve information from the ledger and to print the entire document."]
[]
["Input Integrity Checks",null,"Same as output integrity checks below"]
[]
["Output Integrity Checks",null,"Reviewed by 2 individuals; beginning balances agreed to prior period analysis;"]
[null,null,"data agreed to the general ledger; manual recalculations performed on a test basis"]
[]
["Cell & Formula Protection",null,"None"]
[]
["Access Protection",null,"Access restricted to Afgaap on Homcfaf1\\Vol 5"]

{"sheet":"Ver Doc 2.0","index":38,"n_rows":42,"n_cols":4,"rows_kept":42,"cut":false,"hidden":true,"merged":[]}
[]
["Name of Spreadsheet",null,"Stat Supp Working File - Pages 3(P&L) and 4(BS), 5(P&C Segment Income)"]
[null,null,"12(Life Segment Income) are used for SEC External Reporting"]
[]
["Drive & Directory Location",null,"Homcfaf1\\vol5\\Stat Supp\\Year\\Quarter"]
[]
["Date Created; Most Recent Change Date",null,"2001-04-20","2005-01-19"]
[]
["Version #",null,2]
[]
["Spreadsheet Owner; Contact Info",null,"Sandra Aramony; saramony@allmerica.com"]
[]
["Total # of Users; # of Users outside Dept.",null,"8; none"]
[]
["Frequency of Change:"]
[null,"Formula/Calculations","quarterly"]
[null,"Input/Data Changes","quarterly"]
[]
["Purpose of model logic/formulas:",null,"Summarizes financial information from the general ledger and formats"]
[null,null,"it for the Statistical Supplement.  Also used to produce the Balance Sheet"]
[null,null,"P&L and other financial statement disclosures"]
[]
["Operating instructions for use/input:",null,"The pages are updated through an Essbase retrieve program.  Use \"Run\" tab to"]
[null,null,"select pages for which you want to retrieve information by entering \"y\" in the Run cell."]
[null,null,"After retrieve, compare information to Product Reports, Production Reports.  Enter"]
[null,null,"rounding in the shaded columns to the right of the page, if necessary."]
[null,null,"All manual input of information is entered on Input, Calc, or Footnote tabs.  There is no manual "]
[null,null,"input on actual stat supp pages."]
[null,null," Use Proof tabs to check balancing."]
[]
["Historical/Standing data",null,"Prior Quarter\\Prior Year"]
[]
["Complex Functions or Links",null,"Macros are used to retrieve information from the ledger and to print the entire document."]
[]
["Input Integrity Checks",null,"Same as output integrity checks below"]
[]
["Output Integrity Checks",null,"Reviewed by 2 individuals; beginning balances agreed to prior period analysis;"]
[null,null,"data agreed to the general ledger; manual recalculations performed on a test basis"]
[]
["Cell & Formula Protection",null,"None"]
[]
["Access Protection",null,"Access restricted to Afgaap on Homcfaf1\\Vol 5"]

{"sheet":"Ver Doc 1.0","index":39,"n_rows":37,"n_cols":4,"rows_kept":37,"cut":false,"hidden":true,"merged":[]}
[]
["Name of Spreadsheet",null,"Stat Supp Working File - Pages 3(P&L) and 4(BS), 5(P&C Segment Income)"]
[null,null,"12(Life Segment Income) are used for SEC External Reporting"]
[]
["Drive & Directory Location",null,"Homcfaf1\\vol5\\Stat Supp\\Year\\Quarter"]
[]
["Date Created; Most Recent Change Date",null,"2001-04-20"," "]
[]
["Version #",null,1]
[]
["Spreadsheet Owner; Contact Info",null,"Sandra Aramony; saramony@allmerica.com"]
[]
["Total # of Users; # of Users outside Dept.",null,"8; none"]
[]
["Frequency of Change:"]
[null,"Formula/Calculations","quarterly"]
[null,"Input/Data Changes","quarterly"]
[]
["Purpose of model logic/formulas:",null,"Summarizes financial information from the general ledger and formats"]
[null,null,"it for the Statistical Supplement.  Also used to produce the Balance Sheet"]
[null,null,"P&L and other financial statement disclosures"]
[]
["Operating instructions for use/input:",null,"The pages are updated through an Essbase retrieve program with limited"]
[null,null,"manual manipulation of numbers."]
[]
["Historical/Standing data",null,"Prior Quarter\\Prior Year"]
[]
["Complex Functions or Links",null,"Macros are used to retrieve information from the ledger"]
[]
["Input Integrity Checks",null,"Same as output integrity checks below"]
[]
["Output Integrity Checks",null,"Reviewed by 2 individuals; beginning balances agreed to prior period analysis;"]
[null,null,"data agreed to the general ledger; manual recalculations performed on a test basis"]
[]
["Cell & Formula Protection",null,"None"]
[]
["Access Protection",null,"Access restricted to Afgaap on Homcfaf1\\Vol 5"]

{"sheet":"Ver Doc","index":40,"n_rows":37,"n_cols":3,"rows_kept":37,"cut":false,"hidden":true,"merged":[]}
[]
["Name of Spreadsheet",null,"Stat Supp Working File - Pages 3(P&L) and 4(BS), 5(P&C Segment Income)"]
[null,null,"12(Life Segment Income) are used for SEC External Reporting"]
[]
["Drive & Directory Location",null,"Homcfaf1\\vol5\\Stat Supp\\Year\\Quarter"]
[]
["Date Created; Most Recent Change Date",null,"2001-04-20"]
[]
["Version #",null,"1.0"]
[]
["Spreadsheet Owner; Contact Info",null,"Sandra Aramony; saramony@allmerica.com"]
[]
["Total # of Users; # of Users outside Dept.",null,"8; none"]
[]
["Frequency of Change:"]
[null,"Formula/Calculations","quarterly"]
[null,"Input/Data Changes","quarterly"]
[]
["Purpose of model logic/formulas:",null,"Summarizes financial information from the general ledger and formats"]
[null,null,"it for the Statistical Supplement.  Also used to produce the Balance Sheet"]
[null,null,"P&L and other financial statement disclosures"]
[]
["Operating instructions for use/input:",null,"The pages are updated through an Essbase retrieve program with limited"]
[null,null,"manual manipulation of numbers."]
[]
["Historical/Standing data",null,"Prior Quarter\\Prior Year"]
[]
["Complex Functions or Links",null,"Macros are used to retrieve information from the ledger"]
[]
["Input Integrity Checks",null,"Same as output integrity checks below"]
[]
["Output Integrity Checks",null,"Reviewed by 2 individuals; beginning balances agreed to prior period analysis;"]
[null,null,"data agreed to the general ledger; manual recalculations performed on a test basis"]
[]
["Cell & Formula Protection",null,"None"]
[]
["Access Protection",null,"Access restricted to Afgaap on Homcfaf1\\Vol 5"]